{"text_format":"1","workbook":"xlsx","n_sheets":4,"sheets":["Труба","Д","Лист3","Расчеты"],"not_rendered":{"charts":0,"images":0,"macros":1,"external_links":0,"defined_names":1,"comments":1,"pivot_tables":0},"unopened":[],"bounds":{"document_bytes":16777216,"sheet_cells":100000,"rows_first":2000,"rows_last":500,"rows_between":2000,"halvings":0,"cell_chars":16384,"cell_head_chars":4096},"cells_cut":0,"cells_raw":0,"read":"whole","date_system":"1900"}

{"sheet":"Труба","index":0,"n_rows":199,"n_cols":44,"rows_kept":199,"cut":false,"hidden":false,"merged":[[7,4,7,5],[87,12,87,13],[87,15,87,16],[87,18,87,19],[87,21,87,22],[37,11,38,11],[37,12,37,13],[37,15,37,16],[37,21,37,22],[37,18,37,19],[39,4,39,5],[40,4,40,5],[41,4,41,5],[42,4,42,5],[43,4,43,5],[44,4,44,5],[45,4,45,5],[46,4,46,5],[47,4,47,5],[48,4,48,5],[49,4,49,5],[50,4,50,5],[51,4,51,5],[52,4,52,5],[53,4,53,5],[54,4,54,5],[55,4,55,5],[56,4,56,5],[57,4,57,5],[58,4,58,5],[59,4,59,5],[60,4,60,5],[61,4,61,5],[62,4,62,5],[63,4,63,5],[64,4,64,5],[65,4,65,5],[66,4,66,5],[67,4,67,5],[77,4,77,5],[68,4,68,5],[69,4,69,5],[70,4,70,5],[71,4,71,5],[72,4,72,5],[83,4,83,5],[84,4,84,5],[37,9,38,9],[37,8,38,8],[37,7,38,7],[37,6,38,6],[37,4,38,5],[78,4,78,5],[79,4,79,5],[80,4,80,5],[81,4,81,5],[82,4,82,5],[73,4,73,5],[74,4,74,5],[75,4,75,5],[76,4,76,5],[37,3,38,3],[37,2,38,2],[37,1,38,1],[37,0,38,0],[37,14,38,14],[87,8,88,8],[87,9,88,9],[87,26,88,26],[37,17,38,17],[87,14,88,14],[87,17,88,17],[87,20,88,20],[87,23,88,23],[87,27,88,27],[87,28,88,28],[87,29,88,29],[87,24,88,24],[87,25,88,25]]}
[null,null,null,null,null,"            Приложение № 2 к ЛЗК ___",null,null,null,null,"z","z",null,null,null,null,null,null,null,null,null,null,null,null,null,null,null,null,null,null,null,null,"z","z",null,"z",null,"z","z","z","z","z","z","z"]
[]
[null,null,null,null,null,null,null,null,null,null,{"$f":"IF(K9:K14=0,\"тревога\",\"всё ок\")","v":{"$error":"#VALUE!"}}]
[]
[]
[null,null,null,null,null,null,null,null,null,null,"Коэфициент ","Маса "]
["См. Косые резы и выполнять согласно чертежа",null,null,null,null,null,null,"План / шт",10,null,null,{"$f":"#REF!-#REF!","v":{"$error":"#REF!"}}]
["№ п/п","длина ","ширина условная расчет программы","кол-во на изделие","материал профиль трубы",null,"тол-на","План","кол-во на план",null,{"$f":"SUM(I9:I36)","v":0},{"$f":"SUM(L9:L36)","v":0}]
[{"$f":"IF(I9=0,\"z\",R9)","v":"z"},null,500,null,null,null,{"$f":"VLOOKUP(F9,Таблица1[],7,0)","v":0.74},{"$f":"$I$7","v":10},{"$f":"D9*H9","v":0},null,{"$f":"IFERROR(VLOOKUP(F9,$AL$126:$AM$191,3,0),0)","v":0},{"$f":"B9*C9*I9*K9/1000000-M9","v":0},0,null,null,null,null,{"$f":"IF(I9=0,0,1)","v":0}]
[{"$f":"IF(I10=0,\"z\",R10)","v":"z"},null,500,null,null,null,{"$f":"IFERROR(VLOOKUP(F10,$AL$126:$AM$191,2,0),\"\")","v":""},{"$f":"$I$7","v":10},{"$f":"D10*H10","v":0},null,0,{"$f":"B10*C10*I10*K10/1000000","v":0},0.78500000000000003,null,null,null,null,{"$f":"IF(I10=0,R9,R9+1)","v":0}]
["z",null,500,null,null,null,"",10,0,null,0,0,null,null,null,null,null,{"$f":"IF(I11=0,R10,R10+1)","v":0}]
["z",null,500,null,null,null,"",10,0,null,0,0,null,null,null,null,null,{"$f":"IF(I12=0,R11,R11+1)","v":0}]
["z",null,500,null,null,null,"",10,0,null,0,0,null,null,null,null,null,0]
["z",null,500,null,null,null,"",10,0,null,0,0,null,null,null,null,null,0]
["z",null,500,null,null,null,"",10,0,null,0,0,null,null,null,null,null,0]
["z",null,500,null,null,null,"",10,0,null,0,0,null,null,null,null,null,0]
["z",null,500,null,null,null,"",10,0,null,0,0,null,null,null,null,null,0]
["z",null,500,null,null,null,"",10,0,null,0,0,null,null,null,null,null,0]
["z",null,500,null,null,null,"",10,0,null,0,0,null,null,null,null,null,0]
[{"$f":"IF(I20=0,\"z\",R20)","v":"z"},null,491,null,null,null,"",10,{"$f":"D20*H20","v":0},null,0,{"$f":"B20*C20*I20*K20/1000000","v":0},null,null,null,null,null,0]
["z",null,492,null,null,null,"",10,0,null,0,0,null,null,null,null,null,0]
["z",null,493,null,null,null,"",10,0,null,0,0,null,null,null,null,null,0]
["z",null,494,null,null,null,"",10,0,null,0,0,null,null,null,null,null,0]
["z",null,495,null,null,null,"",10,0,null,0,0,null,null,null,null,null,0]
["z",null,496,null,null,null,"",10,0,null,0,0,null,null,null,null,null,0]
["z",null,497,null,null,null,"",10,0,null,0,0,null,null,null,null,null,0]
["z",null,498,null,null,null,"",10,0,null,0,0,null,null,null,null,null,0]
["z",null,500,null,null,null,"",10,0,null,0,0,null,null,null,null,null,0]
["z",null,500,null,null,null,"",10,0,null,0,0,null,null,null,null,null,0]
["z",null,500,null,null,null,"",10,0,null,0,0,null,null,null,null,null,0]
["z",null,500,null,null,null,"",10,0,null,0,0,null,null,null,null,null,0]
["z",null,500,null,null,null,"",10,0,null,0,0,null,null,null,null,null,0]
["z",null,500,null,null,null,"",10,0,null,0,0,null,null,null,null,null,0]
["z",null,500,null,null,null,"",10,0,null,0,0,null,null,null,null,null,0]
["z",null,500,null,null,null,"",10,0,null,0,0,null,null,null,null,null,0]
["z",null,500,null,null,null,"",10,0,null,0,0,null,null,null,null,null,0]
[]
["Карта рас-кроя №","Длина, мм","Ширина, мм","Толщина, мм","Марка материала",null,"Кол-во","Площадь остатков всего, кв.м","Площадь деталей всего, кв.м","Количество деталей",null,"Коэфициент ","Трубы/остатка со склада масса (кг)",null,"Получил","Деловой остаток на склад (кг)",null,"Получил кла-довщик","ЛОМ общий (кг)",null,"Получил кладовщик","Масса деталей (кг)",null,"Количество деталей","Получил","Расход (кг)","ЛОМ (кг)"]
[null,null,null,null,null,null,null,null,null,null,null,null,"теория","факт",null,"теория","факт",null,"теория","факт",null,"теория","факт"]
["z",null,null,null,null,null,null,null,null,null,null,{"$f":"IFERROR(VLOOKUP(E40,$AL$126:$AM$191,3,0),0)","v":0},{"$f":"B40*C40*G40*L40/1000000","v":0},null,null,{"$f":"H40*L40","v":0},null,null,{"$f":"Z40-V40","v":0},null,null,{"$f":"I40*L40","v":0},null,null,null,{"$f":"M40-P40","v":0},{"$f":"Z40-V40","v":0}]
["z",null,null,null,null,null,null,null,null,null,null,{"$f":"IFERROR(VLOOKUP(F41,$AL$126:$AM$191,3,0),0)","v":0},0,null,null,0,null,null,{"$f":"Z41-V41","v":0},null,null,{"$f":"I41*L41","v":0},null,null,null,{"$f":"M41-P41","v":0},{"$f":"Z41-V41","v":0}]
["z",null,null,null,null,null,null,null,null,null,null,0,0,null,null,0,null,null,null,null,null,0,null,null,null,0,0]
["z",null,null,null,null,null,null,null,null,null,null,0,0,null,null,0,null,null,null,null,null,0,null,null,null,0,0]
["z",null,null,null,null,null,null,null,null,null,null,0,0,null,null,0,null,null,null,null,null,0,null,null,null,0,0]
["z",null,null,null,null,null,null,null,null,null,null,0,0,null,null,0,null,null,null,null,null,0,null,null,null,0,0]
["z",null,null,null,null,null,null,null,null,null,null,0,0,null,null,0,null,null,null,null,null,0,null,null,null,0,0]
["z",null,null,null,null,null,null,null,null,null,null,0,0,null,null,0,null,null,null,null,null,0,null,null,null,0,0]
["z",null,null,null,null,null,null,null,null,null,null,0,0,null,null,0,null,null,null,null,null,0,null,null,null,0,0]
["z",null,null,null,null,null,null,null,null,null,null,0,{"$f":"B49*C49*G49*L49/1000000","v":0},null,null,{"$f":"H49*L49","v":0},null,null,null,null,null,{"$f":"I49*L49","v":0},null,null,null,{"$f":"M49-P49","v":0},{"$f":"Z49-V49","v":0}]
["z",null,null,null,null,null,null,null,null,null,null,0,0,null,null,0,null,null,null,null,null,0,null,null,null,0,0]
["z",null,null,null,null,null,null,null,null,null,null,0,0,null,null,0,null,null,null,null,null,0,null,null,null,0,0]
["z",null,null,null,null,null,null,null,null,null,null,0,0,null,null,0,null,null,null,null,null,0,null,null,null,0,0]
["z",null,null,null,null,null,null,null,null,null,null,0,0,null,null,0,null,null,null,null,null,0,null,null,null,0,0]
["z",null,null,null,null,null,null,null,null,null,null,0,0,null,null,0,null,null,null,null,null,0,null,null,null,0,0]
["z",null,null,null,null,null,null,null,null,null,null,0,0,null,null,0,null,null,null,null,null,0,null,null,null,0,0]
["z",null,null,null,null,null,null,null,null,null,null,0,0,null,null,0,null,null,null,null,null,0,null,null,null,0,0]
["z",null,null,null,null,null,null,null,null,null,null,0,0,null,null,0,null,null,null,null,null,0,null,null,null,0,0]
["z",null,null,null,null,null,null,null,null,null,null,0,0,null,null,0,null,null,null,null,null,0,null,null,null,0,0]
["z",null,null,null,null,null,null,null,null,null,null,0,0,null,null,0,null,null,null,null,null,0,null,null,null,0,0]
["z",null,null,null,null,null,null,null,null,null,null,0,0,null,null,0,null,null,null,null,null,0,null,null,null,0,0]
["z",null,null,null,null,null,null,null,null,null,null,0,0,null,null,0,null,null,null,null,null,0,null,null,null,0,0]
["z",null,null,null,null,null,null,null,null,null,null,0,0,null,null,0,null,null,null,null,null,0,null,null,null,0,0]
["z",null,null,null,null,null,null,null,null,null,null,0,0,null,null,0,null,null,null,null,null,0,null,null,null,0,0]
["z",null,null,null,null,null,null,null,null,null,null,0,0,null,null,0,null,null,null,null,null,0,null,null,null,0,0]
["z",null,null,null,null,null,null,null,null,null,null,0,0,null,null,0,null,null,null,null,null,0,null,null,null,0,0]
["z",null,null,null,null,null,null,null,null,null,null,0,0,null,null,0,null,null,null,null,null,0,null,null,null,0,0]
["z",null,null,null,null,null,null,null,null,null,null,0,0,null,null,0,null,null,null,null,null,0,null,null,null,0,0]
["z",null,null,null,null,null,null,null,null,null,null,0,0,null,null,0,null,null,null,null,null,0,null,null,null,0,0]
["z",null,null,null,null,null,null,null,null,null,null,0,0,null,null,0,null,null,null,null,null,0,null,null,null,0,0]
["z",null,null,null,null,null,null,null,null,null,null,0,0,null,null,0,null,null,null,null,null,0,null,null,null,0,0]
["z",null,null,null,null,null,null,null,null,null,null,0,0,null,null,0,null,null,null,null,null,0,null,null,null,0,0]
["z",null,null,null,null,null,null,null,null,null,null,0,0,null,null,0,null,null,null,null,null,0,null,null,null,0,0]
["z",null,null,null,null,null,null,null,null,null,null,0,0,null,null,0,null,null,null,null,null,0,null,null,null,{"$f":"M73-P73","v":0},0]
["z",null,null,null,null,null,null,null,null,null,null,0,0,null,null,0,null,null,null,null,null,0,null,null,null,{"$f":"M74-P74","v":0},0]
["z",null,null,null,null,null,null,null,null,null,null,0,0,null,null,0,null,null,null,null,null,0,null,null,null,0,0]
["z",null,null,null,null,null,null,null,null,null,null,0,0,null,null,0,null,null,null,null,null,0,null,null,null,0,0]
["z",null,null,null,null,null,null,null,null,null,null,0,0,null,null,0,null,null,null,null,null,0,null,null,null,0,0]
["z",null,null,null,null,null,null,null,null,null,null,0,0,null,null,0,null,null,null,null,null,0,null,null,null,0,0]
["z",null,null,null,null,null,null,null,null,null,null,0,0,null,null,0,null,null,null,null,null,0,null,null,null,0,0]
["z",null,null,null,null,null,null,null,null,null,null,0,0,null,null,0,null,null,null,null,null,0,null,null,null,0,0]
["z",null,null,null,null,null,null,null,null,null,null,0,0,null,null,0,null,null,null,null,null,0,null,null,null,0,0]
["z",null,null,null,null,null,null,null,null,null,null,0,0,null,null,0,null,null,null,null,null,0,null,null,null,0,0]
["z",null,null,null,null,null,null,null,null,null,null,0,0,null,null,0,null,null,null,null,null,0,null,null,null,0,0]
["z",null,null,null,null,null,null,null,null,null,null,0,0,null,null,0,null,null,null,null,null,0,null,null,null,0,0]
["z",null,null,null,null,null,null,null,null,null,null,0,0,null,null,0,null,null,null,null,null,0,null,null,null,0,0]
[null,null,null,null,null,null,null,null,null,null,null,null,{"$f":"SUM(M40:M85)","v":0},null,null,{"$f":"SUM(P40:P85)","v":0},null,null,null,null,null,{"$f":"SUM(V40:V85)","v":0},null,null,null,{"$f":"SUM(Z40:Z85)","v":0},{"$f":"SUM(AA40:AA85)","v":0}]
[]
[null,null,null,null,null,null,null,null,"Кол-во труб чм ","Трубы по толщине",null,null,"Трубы/остатка со склада масса (кг)",null,"Получил","Деловой остаток на склад (кг)",null,"Получил кладовщик","ЛОМ (кг)",null,"Получил кладовщик","масса деталей (кг)",null,"Количество","Получил","Расход (кг)",null,"ЛОМ (кг) дубль","отход на порезку","лом чистый"]
[null,null,null,null,null,null,null,null,null,null,null,null,"теория","факт",null,"теория","факт",null,"теория","факт",null,"теория","факт"]
[null,null,null,null,1]
[1,{"$f":"A91+1","v":2},{"$f":"B91+1","v":3},4,5,6,7,"Остатки",{"$error":"#VALUE!"},{"$error":"#VALUE!"},{"$error":"#VALUE!"},{"$error":"#VALUE!"},null,1,2,null,1,2,3,4,5,null,1,2,3,4,5,6,7,8]
[]
[null,null,null,null,2]
[null,null,null,null,null,null,null,"Остатки"]
[]
[null,null,null,null,3,null,null,null,null,10]
[null,null,null,null,null,null,null,"Остатки"]
[]
[null,null,null,null,4,null,null,"тол-на",null,"кол-во на план"]
[null,null,null,null,null,null,null,"Остатки"]
[]
[null,null,null,null,5,null,null,0.74,null,0,null,null,0]
[null,null,null,null,null,null,null,"Остатки",null,null,null,null,0]
[]
[{"$f":"IF(V107=0,\"z\",\" \")","v":"z"},null,null,null,6,null,null,"",null,0,null,{"$f":"Расчеты!J21","v":1.8720000000000001},0,null,null,null,null,null,null,null,null,null,null,null,null,null,null,{"$f":"AD105+AD106-AC105","v":0},{"$f":"Расчеты!D21*Расчеты!M21/1000/2*Расчеты!J21","v":0},{"$f":"SUMIFS($AA$40:$AA$85,$B$40:$B$85,Расчеты!K21,$C$40:$C$85,\"=500\",$D$40:$D$85,Расчеты!I21,$F$40:$F$85,Расчеты!H21)","v":0}]
[{"$f":"IF(V107=0,\"z\",\" \")","v":"z"},null,null,null,null,null,null,"Остатки",null,null,null,null,0,null,null,null,null,null,null,null,null,null,null,null,null,{"$f":"SUMIFS($Z$40:$Z$85,$B$40:$B$85,Расчеты!L21,$C$40:$C$85,\"=500\",$D$40:$D$85,Расчеты!I21,$F$40:$F$85,Расчеты!H21)","v":0},null,null,null,{"$f":"SUMIFS($AA$40:$AA$85,$B$40:$B$85,Расчеты!L21,$C$40:$C$85,\"=500\",$D$40:$D$85,Расчеты!I21,$F$40:$F$85,Расчеты!H21)","v":0}]
[{"$f":"IF(V107=0,\"z\",\" \")","v":"z"},null,null,null,null,null,null,"общая",null,null,null,null,{"$f":"M105+M106","v":0},null,null,{"$f":"P105+P106","v":0},null,null,{"$f":"S105","v":0},null,null,{"$f":"V105+V106+AC105","v":0},null,null,null,{"$f":"Z105+Z106","v":0}]
[{"$f":"IF(V110=0,\"z\",\" \")","v":"z"},null,null,null,7,null,null,"",null,0,null,{"$f":"Расчеты!J24","v":1.548},0,null,null,null,null,null,null,null,null,null,null,null,null,null,null,{"$f":"AD108+AD109-AC108","v":0},{"$f":"Расчеты!D24*Расчеты!M24/1000/2*Расчеты!J24","v":0},{"$f":"SUMIFS($AA$40:$AA$85,$B$40:$B$85,Расчеты!K24,$C$40:$C$85,\"=500\",$D$40:$D$85,Расчеты!I24,$F$40:$F$85,Расчеты!H24)","v":0}]
[{"$f":"IF(V110=0,\"z\",\" \")","v":"z"},null,null,null,null,null,null,"Остатки",null,null,null,null,0,null,null,null,null,null,null,null,null,null,null,null,null,{"$f":"SUMIFS($Z$40:$Z$85,$B$40:$B$85,Расчеты!L24,$C$40:$C$85,\"=500\",$D$40:$D$85,Расчеты!I24,$F$40:$F$85,Расчеты!H24)","v":0},null,null,null,{"$f":"SUMIFS($AA$40:$AA$85,$B$40:$B$85,Расчеты!L24,$C$40:$C$85,\"=500\",$D$40:$D$85,Расчеты!I24,$F$40:$F$85,Расчеты!H24)","v":0}]
[{"$f":"IF(V110=0,\"z\",\" \")","v":"z"},null,null,null,null,null,null,"общая",null,null,null,null,{"$f":"M108+M109","v":0},null,null,{"$f":"P108+P109","v":0},null,null,{"$f":"S108","v":0},null,null,{"$f":"V108+V109+AC108","v":0},null,null,null,{"$f":"Z108+Z109","v":0}]
[{"$f":"IF(V113=0,\"z\",\" \")","v":"z"},null,null,null,8,null,null,"",null,0,null,{"$f":"Расчеты!J27","v":3.0960000000000001},0,null,null,null,null,null,null,null,null,null,null,null,null,null,null,{"$f":"AD111+AD112-AC111","v":0},{"$f":"Расчеты!D27*Расчеты!M27/1000/2*Расчеты!J27","v":0},{"$f":"SUMIFS($AA$40:$AA$85,$B$40:$B$85,Расчеты!K27,$C$40:$C$85,\"=500\",$D$40:$D$85,Расчеты!I27,$F$40:$F$85,Расчеты!H27)","v":0}]
[{"$f":"IF(V113=0,\"z\",\" \")","v":"z"},null,null,null,null,null,null,"Остатки",null,null,null,null,0,null,null,null,null,null,null,null,null,null,null,null,null,{"$f":"SUMIFS($Z$40:$Z$85,$B$40:$B$85,Расчеты!L27,$C$40:$C$85,\"=500\",$D$40:$D$85,Расчеты!I27,$F$40:$F$85,Расчеты!H27)","v":0},null,null,null,{"$f":"SUMIFS($AA$40:$AA$85,$B$40:$B$85,Расчеты!L27,$C$40:$C$85,\"=500\",$D$40:$D$85,Расчеты!I27,$F$40:$F$85,Расчеты!H27)","v":0}]
[{"$f":"IF(V113=0,\"z\",\" \")","v":"z"},null,null,null,null,null,null,"общая",null,null,null,null,{"$f":"M111+M112","v":0},null,null,{"$f":"P111+P112","v":0},null,null,{"$f":"S111","v":0},null,null,{"$f":"V111+V112+AC111","v":0},null,null,null,{"$f":"Z111+Z112","v":0}]
[{"$f":"IF(V116=0,\"z\",\" \")","v":"z"},null,null,null,9,null,null,"",null,0,null,{"$f":"Расчеты!J30","v":2.7},0,null,null,null,null,null,null,null,null,null,null,null,null,null,null,{"$f":"AD114+AD115-AC114","v":0},{"$f":"Расчеты!D30*Расчеты!M30/1000/2*Расчеты!J30","v":0},{"$f":"SUMIFS($AA$40:$AA$85,$B$40:$B$85,Расчеты!K30,$C$40:$C$85,\"=500\",$D$40:$D$85,Расчеты!I30,$F$40:$F$85,Расчеты!H30)","v":0}]
[{"$f":"IF(V116=0,\"z\",\" \")","v":"z"},null,null,null,null,null,null,"Остатки",null,null,null,null,0,null,null,null,null,null,null,null,null,null,null,null,null,{"$f":"SUMIFS($Z$40:$Z$85,$B$40:$B$85,Расчеты!L30,$C$40:$C$85,\"=500\",$D$40:$D$85,Расчеты!I30,$F$40:$F$85,Расчеты!H30)","v":0},null,null,null,{"$f":"SUMIFS($AA$40:$AA$85,$B$40:$B$85,Расчеты!L30,$C$40:$C$85,\"=500\",$D$40:$D$85,Расчеты!I30,$F$40:$F$85,Расчеты!H30)","v":0}]
[{"$f":"IF(V116=0,\"z\",\" \")","v":"z"},null,null,null,null,null,null,"общая",null,null,null,null,{"$f":"M114+M115","v":0},null,null,{"$f":"P114+P115","v":0},null,null,{"$f":"S114","v":0},null,null,{"$f":"V114+V115+AC114","v":0},null,null,null,{"$f":"Z114+Z115","v":0}]
[{"$f":"IF(V119=0,\"z\",\" \")","v":"z"},null,null,null,10,null,null,"",null,0,null,{"$f":"Расчеты!J33","v":4.8899999999999997},0,null,null,null,null,null,null,null,null,null,null,null,null,null,null,{"$f":"AD117+AD118-AC117","v":0},{"$f":"Расчеты!D33*Расчеты!M33/1000/2*Расчеты!J33","v":0},{"$f":"SUMIFS($AA$40:$AA$85,$B$40:$B$85,Расчеты!K33,$C$40:$C$85,\"=500\",$D$40:$D$85,Расчеты!I33,$F$40:$F$85,Расчеты!H33)","v":0}]
[{"$f":"IF(V119=0,\"z\",\" \")","v":"z"},null,null,null,null,null,null,"Остатки",null,null,null,null,0,null,null,null,null,null,null,null,null,null,null,null,null,{"$f":"SUMIFS($Z$40:$Z$85,$B$40:$B$85,Расчеты!L33,$C$40:$C$85,\"=500\",$D$40:$D$85,Расчеты!I33,$F$40:$F$85,Расчеты!H33)","v":0},null,null,null,{"$f":"SUMIFS($AA$40:$AA$85,$B$40:$B$85,Расчеты!L33,$C$40:$C$85,\"=500\",$D$40:$D$85,Расчеты!I33,$F$40:$F$85,Расчеты!H33)","v":0}]
[{"$f":"IF(V119=0,\"z\",\" \")","v":"z"},null,null,null,null,null,null,"общая",null,null,null,null,{"$f":"M117+M118","v":0},null,null,{"$f":"P117+P118","v":0},null,null,{"$f":"S117","v":0},null,null,{"$f":"V117+V118+AC117","v":0},null,null,null,{"$f":"Z117+Z118","v":0}]
[{"$f":"IF(V122=0,\"z\",\" \")","v":{"$error":"#REF!"}},null,null,null,11,null,null,"",null,0,null,{"$f":"Расчеты!#REF!","v":{"$error":"#REF!"}},0,null,null,null,null,null,null,null,null,null,null,null,null,null,null,{"$f":"AD120+AD121-AC120","v":{"$error":"#REF!"}},{"$f":"Расчеты!#REF!*Расчеты!#REF!/1000/2*Расчеты!#REF!","v":{"$error":"#REF!"}},{"$f":"SUMIFS($AA$40:$AA$85,$B$40:$B$85,Расчеты!#REF!,$C$40:$C$85,\"=500\",$D$40:$D$85,Расчеты!#REF!,$F$40:$F$85,Расчеты!#REF!)","v":0}]
[{"$f":"IF(V122=0,\"z\",\" \")","v":{"$error":"#REF!"}},null,null,null,null,null,null,"Остатки",null,null,null,null,0,null,null,null,null,null,null,null,null,null,null,null,null,{"$f":"SUMIFS($Z$40:$Z$85,$B$40:$B$85,Расчеты!#REF!,$C$40:$C$85,\"=500\",$D$40:$D$85,Расчеты!#REF!,$F$40:$F$85,Расчеты!#REF!)","v":0},null,null,null,{"$f":"SUMIFS($AA$40:$AA$85,$B$40:$B$85,Расчеты!#REF!,$C$40:$C$85,\"=500\",$D$40:$D$85,Расчеты!#REF!,$F$40:$F$85,Расчеты!#REF!)","v":0}]
[{"$f":"IF(V122=0,\"z\",\" \")","v":{"$error":"#REF!"}},null,null,null,null,null,null,"общая",null,null,null,null,{"$f":"M120+M121","v":0},null,null,{"$f":"P120+P121","v":0},null,null,{"$f":"S120","v":0},null,null,{"$f":"V120+V121+AC120","v":{"$error":"#REF!"}},null,null,null,{"$f":"Z120+Z121","v":0}]
[{"$f":"IF(V125=0,\"z\",\" \")","v":{"$error":"#REF!"}},null,null,null,12,null,null,"",null,0,null,{"$f":"Расчеты!#REF!","v":{"$error":"#REF!"}},0,null,null,null,null,null,null,null,null,null,null,null,null,null,null,{"$f":"AD123+AD124-AC123","v":{"$error":"#REF!"}},{"$f":"Расчеты!#REF!*Расчеты!#REF!/1000/2*Расчеты!#REF!","v":{"$error":"#REF!"}},{"$f":"SUMIFS($AA$40:$AA$85,$B$40:$B$85,Расчеты!#REF!,$C$40:$C$85,\"=500\",$D$40:$D$85,Расчеты!#REF!,$F$40:$F$85,Расчеты!#REF!)","v":0}]
[{"$f":"IF(V125=0,\"z\",\" \")","v":{"$error":"#REF!"}},null,null,null,null,null,null,"Остатки",null,null,null,null,0,null,null,null,null,null,null,null,null,null,null,null,null,{"$f":"SUMIFS($Z$40:$Z$85,$B$40:$B$85,Расчеты!#REF!,$C$40:$C$85,\"=500\",$D$40:$D$85,Расчеты!#REF!,$F$40:$F$85,Расчеты!#REF!)","v":0},null,null,null,{"$f":"SUMIFS($AA$40:$AA$85,$B$40:$B$85,Расчеты!#REF!,$C$40:$C$85,\"=500\",$D$40:$D$85,Расчеты!#REF!,$F$40:$F$85,Расчеты!#REF!)","v":0}]
[{"$f":"IF(V125=0,\"z\",\" \")","v":{"$error":"#REF!"}},null,null,null,null,null,null,"общая",null,null,null,null,{"$f":"M123+M124","v":0},null,null,{"$f":"P123+P124","v":0},null,null,{"$f":"S123","v":0},null,null,{"$f":"V123+V124+AC123","v":{"$error":"#REF!"}},null,null,null,{"$f":"Z123+Z124","v":0}]
[{"$f":"IF(V128=0,\"z\",\" \")","v":{"$error":"#REF!"}},null,null,null,13,null,null,"",null,0,null,{"$f":"Расчеты!#REF!","v":{"$error":"#REF!"}},0,null,null,null,null,null,null,null,null,null,null,null,null,null,null,{"$f":"AD126+AD127-AC126","v":{"$error":"#REF!"}},{"$f":"Расчеты!#REF!*Расчеты!#REF!/1000/2*Расчеты!#REF!","v":{"$error":"#REF!"}},{"$f":"SUMIFS($AA$40:$AA$85,$B$40:$B$85,Расчеты!#REF!,$C$40:$C$85,\"=500\",$D$40:$D$85,Расчеты!#REF!,$F$40:$F$85,Расчеты!#REF!)","v":0}]
[{"$f":"IF(V128=0,\"z\",\" \")","v":{"$error":"#REF!"}},null,null,null,null,null,null,"Остатки",null,null,null,null,0,null,null,null,null,null,null,null,null,null,null,null,null,{"$f":"SUMIFS($Z$40:$Z$85,$B$40:$B$85,Расчеты!#REF!,$C$40:$C$85,\"=500\",$D$40:$D$85,Расчеты!#REF!,$F$40:$F$85,Расчеты!#REF!)","v":0},null,null,null,{"$f":"SUMIFS($AA$40:$AA$85,$B$40:$B$85,Расчеты!#REF!,$C$40:$C$85,\"=500\",$D$40:$D$85,Расчеты!#REF!,$F$40:$F$85,Расчеты!#REF!)","v":0}]
[{"$f":"IF(V128=0,\"z\",\" \")","v":{"$error":"#REF!"}},null,null,null,null,null,null,"общая",null,null,null,null,{"$f":"M126+M127","v":0},null,null,{"$f":"P126+P127","v":0},null,null,{"$f":"S126","v":0},null,null,{"$f":"V126+V127+AC126","v":{"$error":"#REF!"}},null,null,null,{"$f":"Z126+Z127","v":0}]
[{"$f":"IF(V131=0,\"z\",\" \")","v":{"$error":"#REF!"}},null,null,null,14,null,null,"",null,0,null,{"$f":"Расчеты!#REF!","v":{"$error":"#REF!"}},0,null,null,null,null,null,null,null,null,null,null,null,null,null,null,{"$f":"AD129+AD130-AC129","v":{"$error":"#REF!"}},{"$f":"Расчеты!#REF!*Расчеты!#REF!/1000/2*Расчеты!#REF!","v":{"$error":"#REF!"}},{"$f":"SUMIFS($AA$40:$AA$85,$B$40:$B$85,Расчеты!#REF!,$C$40:$C$85,\"=500\",$D$40:$D$85,Расчеты!#REF!,$F$40:$F$85,Расчеты!#REF!)","v":0}]
[{"$f":"IF(V131=0,\"z\",\" \")","v":{"$error":"#REF!"}},null,null,null,null,null,null,"Остатки",null,null,null,null,0,null,null,null,null,null,null,null,null,null,null,null,null,{"$f":"SUMIFS($Z$40:$Z$85,$B$40:$B$85,Расчеты!#REF!,$C$40:$C$85,\"=500\",$D$40:$D$85,Расчеты!#REF!,$F$40:$F$85,Расчеты!#REF!)","v":0},null,null,null,{"$f":"SUMIFS($AA$40:$AA$85,$B$40:$B$85,Расчеты!#REF!,$C$40:$C$85,\"=500\",$D$40:$D$85,Расчеты!#REF!,$F$40:$F$85,Расчеты!#REF!)","v":0}]
[{"$f":"IF(V131=0,\"z\",\" \")","v":{"$error":"#REF!"}},null,null,null,null,null,null,"общая",null,null,null,null,{"$f":"M129+M130","v":0},null,null,{"$f":"P129+P130","v":0},null,null,{"$f":"S129","v":0},null,null,{"$f":"V129+V130+AC129","v":{"$error":"#REF!"}},null,null,null,{"$f":"Z129+Z130","v":0}]
[{"$f":"IF(V134=0,\"z\",\" \")","v":{"$error":"#REF!"}},null,null,null,15,null,null,"",null,0,null,{"$f":"Расчеты!#REF!","v":{"$error":"#REF!"}},0,null,null,null,null,null,null,null,null,null,null,null,null,null,null,{"$f":"AD132+AD133-AC132","v":{"$error":"#REF!"}},{"$f":"Расчеты!#REF!*Расчеты!#REF!/1000/2*Расчеты!#REF!","v":{"$error":"#REF!"}},{"$f":"SUMIFS($AA$40:$AA$85,$B$40:$B$85,Расчеты!#REF!,$C$40:$C$85,\"=500\",$D$40:$D$85,Расчеты!#REF!,$F$40:$F$85,Расчеты!#REF!)","v":0}]
[{"$f":"IF(V134=0,\"z\",\" \")","v":{"$error":"#REF!"}},null,null,null,null,null,null,"Остатки",null,null,null,null,0,null,null,null,null,null,null,null,null,null,null,null,null,{"$f":"SUMIFS($Z$40:$Z$85,$B$40:$B$85,Расчеты!#REF!,$C$40:$C$85,\"=500\",$D$40:$D$85,Расчеты!#REF!,$F$40:$F$85,Расчеты!#REF!)","v":0},null,null,null,{"$f":"SUMIFS($AA$40:$AA$85,$B$40:$B$85,Расчеты!#REF!,$C$40:$C$85,\"=500\",$D$40:$D$85,Расчеты!#REF!,$F$40:$F$85,Расчеты!#REF!)","v":0}]
[{"$f":"IF(V134=0,\"z\",\" \")","v":{"$error":"#REF!"}},null,null,null,null,null,null,"общая",null,null,null,null,{"$f":"M132+M133","v":0},null,null,{"$f":"P132+P133","v":0},null,null,{"$f":"S132","v":0},null,null,{"$f":"V132+V133+AC132","v":{"$error":"#REF!"}},null,null,null,{"$f":"Z132+Z133","v":0}]
[{"$f":"IF(V137=0,\"z\",\" \")","v":{"$error":"#REF!"}},null,null,null,16,null,null,"",null,0,null,{"$f":"Расчеты!#REF!","v":{"$error":"#REF!"}},0,null,null,null,null,null,null,null,null,null,null,null,null,null,null,{"$f":"AD135+AD136-AC135","v":{"$error":"#REF!"}},{"$f":"Расчеты!#REF!*Расчеты!#REF!/1000/2*Расчеты!#REF!","v":{"$error":"#REF!"}},{"$f":"SUMIFS($AA$40:$AA$85,$B$40:$B$85,Расчеты!#REF!,$C$40:$C$85,\"=500\",$D$40:$D$85,Расчеты!#REF!,$F$40:$F$85,Расчеты!#REF!)","v":0}]
[{"$f":"IF(V137=0,\"z\",\" \")","v":{"$error":"#REF!"}},null,null,null,null,null,null,"Остатки",null,null,null,null,0,null,null,null,null,null,null,null,null,null,null,null,null,{"$f":"SUMIFS($Z$40:$Z$85,$B$40:$B$85,Расчеты!#REF!,$C$40:$C$85,\"=500\",$D$40:$D$85,Расчеты!#REF!,$F$40:$F$85,Расчеты!#REF!)","v":0},null,null,null,{"$f":"SUMIFS($AA$40:$AA$85,$B$40:$B$85,Расчеты!#REF!,$C$40:$C$85,\"=500\",$D$40:$D$85,Расчеты!#REF!,$F$40:$F$85,Расчеты!#REF!)","v":0}]
[{"$f":"IF(V137=0,\"z\",\" \")","v":{"$error":"#REF!"}},null,null,null,null,null,null,"общая",null,null,null,null,{"$f":"M135+M136","v":0},null,null,{"$f":"P135+P136","v":0},null,null,{"$f":"S135","v":0},null,null,{"$f":"V135+V136+AC135","v":{"$error":"#REF!"}},null,null,null,{"$f":"Z135+Z136","v":0}]
[{"$f":"IF(V140=0,\"z\",\" \")","v":{"$error":"#REF!"}},null,null,null,17,null,null,"",null,0,null,{"$f":"Расчеты!#REF!","v":{"$error":"#REF!"}},0,null,null,null,null,null,null,null,null,null,null,null,null,null,null,{"$f":"AD138+AD139-AC138","v":{"$error":"#REF!"}},{"$f":"Расчеты!#REF!*Расчеты!#REF!/1000/2*Расчеты!#REF!","v":{"$error":"#REF!"}},{"$f":"SUMIFS($AA$40:$AA$85,$B$40:$B$85,Расчеты!#REF!,$C$40:$C$85,\"=500\",$D$40:$D$85,Расчеты!#REF!,$F$40:$F$85,Расчеты!#REF!)","v":0}]
[{"$f":"IF(V140=0,\"z\",\" \")","v":{"$error":"#REF!"}},null,null,null,null,null,null,"Остатки",null,null,null,null,0,null,null,null,null,null,null,null,null,null,null,null,null,{"$f":"SUMIFS($Z$40:$Z$85,$B$40:$B$85,Расчеты!#REF!,$C$40:$C$85,\"=500\",$D$40:$D$85,Расчеты!#REF!,$F$40:$F$85,Расчеты!#REF!)","v":0},null,null,null,{"$f":"SUMIFS($AA$40:$AA$85,$B$40:$B$85,Расчеты!#REF!,$C$40:$C$85,\"=500\",$D$40:$D$85,Расчеты!#REF!,$F$40:$F$85,Расчеты!#REF!)","v":0}]
[{"$f":"IF(V140=0,\"z\",\" \")","v":{"$error":"#REF!"}},null,null,null,null,null,null,"общая",null,null,null,null,{"$f":"M138+M139","v":0},null,null,{"$f":"P138+P139","v":0},null,null,{"$f":"S138","v":0},null,null,{"$f":"V138+V139+AC138","v":{"$error":"#REF!"}},null,null,null,{"$f":"Z138+Z139","v":0}]
[{"$f":"IF(V143=0,\"z\",\" \")","v":{"$error":"#REF!"}},null,null,null,18,null,null,"",null,0,null,{"$f":"Расчеты!#REF!","v":{"$error":"#REF!"}},0,null,null,null,null,null,null,null,null,null,null,null,null,null,null,{"$f":"AD141+AD142-AC141","v":{"$error":"#REF!"}},{"$f":"Расчеты!#REF!*Расчеты!#REF!/1000/2*Расчеты!#REF!","v":{"$error":"#REF!"}},{"$f":"SUMIFS($AA$40:$AA$85,$B$40:$B$85,Расчеты!#REF!,$C$40:$C$85,\"=500\",$D$40:$D$85,Расчеты!#REF!,$F$40:$F$85,Расчеты!#REF!)","v":0}]
[{"$f":"IF(V143=0,\"z\",\" \")","v":{"$error":"#REF!"}},null,null,null,null,null,null,"Остатки",null,null,null,null,0,null,null,null,null,null,null,null,null,null,null,null,null,{"$f":"SUMIFS($Z$40:$Z$85,$B$40:$B$85,Расчеты!#REF!,$C$40:$C$85,\"=500\",$D$40:$D$85,Расчеты!#REF!,$F$40:$F$85,Расчеты!#REF!)","v":0},null,null,null,{"$f":"SUMIFS($AA$40:$AA$85,$B$40:$B$85,Расчеты!#REF!,$C$40:$C$85,\"=500\",$D$40:$D$85,Расчеты!#REF!,$F$40:$F$85,Расчеты!#REF!)","v":0}]
[{"$f":"IF(V143=0,\"z\",\" \")","v":{"$error":"#REF!"}},null,null,null,null,null,null,"общая",null,null,null,null,{"$f":"M141+M142","v":0},null,null,{"$f":"P141+P142","v":0},null,null,{"$f":"S141","v":0},null,null,{"$f":"V141+V142+AC141","v":{"$error":"#REF!"}},null,null,null,{"$f":"Z141+Z142","v":0}]
[{"$f":"IF(V146=0,\"z\",\" \")","v":{"$error":"#REF!"}},null,null,null,19,null,null,"",null,0,null,{"$f":"Расчеты!#REF!","v":{"$error":"#REF!"}},0,null,null,null,null,null,null,null,null,null,null,null,null,null,null,{"$f":"AD144+AD145-AC144","v":{"$error":"#REF!"}},{"$f":"Расчеты!#REF!*Расчеты!#REF!/1000/2*Расчеты!#REF!","v":{"$error":"#REF!"}},{"$f":"SUMIFS($AA$40:$AA$85,$B$40:$B$85,Расчеты!#REF!,$C$40:$C$85,\"=500\",$D$40:$D$85,Расчеты!#REF!,$F$40:$F$85,Расчеты!#REF!)","v":0}]
[{"$f":"IF(V146=0,\"z\",\" \")","v":{"$error":"#REF!"}},null,null,null,null,null,null,"Остатки",null,null,null,null,0,null,null,null,null,null,null,null,null,null,null,null,null,{"$f":"SUMIFS($Z$40:$Z$85,$B$40:$B$85,Расчеты!#REF!,$C$40:$C$85,\"=500\",$D$40:$D$85,Расчеты!#REF!,$F$40:$F$85,Расчеты!#REF!)","v":0},null,null,null,{"$f":"SUMIFS($AA$40:$AA$85,$B$40:$B$85,Расчеты!#REF!,$C$40:$C$85,\"=500\",$D$40:$D$85,Расчеты!#REF!,$F$40:$F$85,Расчеты!#REF!)","v":0}]
[{"$f":"IF(V146=0,\"z\",\" \")","v":{"$error":"#REF!"}},null,null,null,null,null,null,"общая",null,null,null,null,{"$f":"M144+M145","v":0},null,null,{"$f":"P144+P145","v":0},null,null,{"$f":"S144","v":0},null,null,{"$f":"V144+V145+AC144","v":{"$error":"#REF!"}},null,null,null,{"$f":"Z144+Z145","v":0}]
[{"$f":"IF(V149=0,\"z\",\" \")","v":{"$error":"#REF!"}},null,null,null,20,null,null,"",null,0,null,{"$f":"Расчеты!#REF!","v":{"$error":"#REF!"}},0,null,null,null,null,null,null,null,null,null,null,null,null,null,null,{"$f":"AD147+AD148-AC147","v":{"$error":"#REF!"}},{"$f":"Расчеты!#REF!*Расчеты!#REF!/1000/2*Расчеты!#REF!","v":{"$error":"#REF!"}},{"$f":"SUMIFS($AA$40:$AA$85,$B$40:$B$85,Расчеты!#REF!,$C$40:$C$85,\"=500\",$D$40:$D$85,Расчеты!#REF!,$F$40:$F$85,Расчеты!#REF!)","v":0}]
[{"$f":"IF(V149=0,\"z\",\" \")","v":{"$error":"#REF!"}},null,null,null,null,null,null,"Остатки",null,null,null,null,0,null,null,null,null,null,null,null,null,null,null,null,null,{"$f":"SUMIFS($Z$40:$Z$85,$B$40:$B$85,Расчеты!#REF!,$C$40:$C$85,\"=500\",$D$40:$D$85,Расчеты!#REF!,$F$40:$F$85,Расчеты!#REF!)","v":0},null,null,null,{"$f":"SUMIFS($AA$40:$AA$85,$B$40:$B$85,Расчеты!#REF!,$C$40:$C$85,\"=500\",$D$40:$D$85,Расчеты!#REF!,$F$40:$F$85,Расчеты!#REF!)","v":0}]
[{"$f":"IF(V149=0,\"z\",\" \")","v":{"$error":"#REF!"}},null,null,null,null,null,null,"общая",null,null,null,null,{"$f":"M147+M148","v":0},null,null,{"$f":"P147+P148","v":0},null,null,{"$f":"S147","v":0},null,null,{"$f":"V147+V148+AC147","v":{"$error":"#REF!"}},null,null,null,{"$f":"Z147+Z148","v":0}]
[{"$f":"IF(V152=0,\"z\",\" \")","v":{"$error":"#REF!"}},null,null,null,21,null,null,"",null,0,null,{"$f":"Расчеты!#REF!","v":{"$error":"#REF!"}},0,null,null,null,null,null,null,null,null,null,null,null,null,null,null,{"$f":"AD150+AD151-AC150","v":{"$error":"#REF!"}},{"$f":"Расчеты!#REF!*Расчеты!#REF!/1000/2*Расчеты!#REF!","v":{"$error":"#REF!"}},{"$f":"SUMIFS($AA$40:$AA$85,$B$40:$B$85,Расчеты!#REF!,$C$40:$C$85,\"=500\",$D$40:$D$85,Расчеты!#REF!,$F$40:$F$85,Расчеты!#REF!)","v":0}]
[{"$f":"IF(V152=0,\"z\",\" \")","v":{"$error":"#REF!"}},null,null,null,null,null,null,"Остатки",null,null,null,null,0,null,null,null,null,null,null,null,null,null,null,null,null,{"$f":"SUMIFS($Z$40:$Z$85,$B$40:$B$85,Расчеты!#REF!,$C$40:$C$85,\"=500\",$D$40:$D$85,Расчеты!#REF!,$F$40:$F$85,Расчеты!#REF!)","v":0},null,null,null,{"$f":"SUMIFS($AA$40:$AA$85,$B$40:$B$85,Расчеты!#REF!,$C$40:$C$85,\"=500\",$D$40:$D$85,Расчеты!#REF!,$F$40:$F$85,Расчеты!#REF!)","v":0}]
[{"$f":"IF(V152=0,\"z\",\" \")","v":{"$error":"#REF!"}},null,null,null,null,null,null,"общая",null,null,null,null,{"$f":"M150+M151","v":0},null,null,{"$f":"P150+P151","v":0},null,null,{"$f":"S150","v":0},null,null,{"$f":"V150+V151+AC150","v":{"$error":"#REF!"}},null,null,null,{"$f":"Z150+Z151","v":0}]
[{"$f":"IF(V155=0,\"z\",\" \")","v":{"$error":"#REF!"}},null,null,null,22,null,null,"",null,0,null,{"$f":"Расчеты!#REF!","v":{"$error":"#REF!"}},0,null,null,null,null,null,null,null,null,null,null,null,null,null,null,{"$f":"AD153+AD154-AC153","v":{"$error":"#REF!"}},{"$f":"Расчеты!#REF!*Расчеты!#REF!/1000/2*Расчеты!#REF!","v":{"$error":"#REF!"}},{"$f":"SUMIFS($AA$40:$AA$85,$B$40:$B$85,Расчеты!#REF!,$C$40:$C$85,\"=500\",$D$40:$D$85,Расчеты!#REF!,$F$40:$F$85,Расчеты!#REF!)","v":0}]
[{"$f":"IF(V155=0,\"z\",\" \")","v":{"$error":"#REF!"}},null,null,null,null,null,null,"Остатки",null,null,null,null,0,null,null,null,null,null,null,null,null,null,null,null,null,{"$f":"SUMIFS($Z$40:$Z$85,$B$40:$B$85,Расчеты!#REF!,$C$40:$C$85,\"=500\",$D$40:$D$85,Расчеты!#REF!,$F$40:$F$85,Расчеты!#REF!)","v":0},null,null,null,{"$f":"SUMIFS($AA$40:$AA$85,$B$40:$B$85,Расчеты!#REF!,$C$40:$C$85,\"=500\",$D$40:$D$85,Расчеты!#REF!,$F$40:$F$85,Расчеты!#REF!)","v":0}]
[{"$f":"IF(V155=0,\"z\",\" \")","v":{"$error":"#REF!"}},null,null,null,null,null,null,"общая",null,null,null,null,{"$f":"M153+M154","v":0},null,null,{"$f":"P153+P154","v":0},null,null,{"$f":"S153","v":0},null,null,{"$f":"V153+V154+AC153","v":{"$error":"#REF!"}},null,null,null,{"$f":"Z153+Z154","v":0}]
[{"$f":"IF(V158=0,\"z\",\" \")","v":{"$error":"#REF!"}},null,null,null,23,null,null,"",null,0,null,{"$f":"Расчеты!#REF!","v":{"$error":"#REF!"}},0,null,null,null,null,null,null,null,null,null,null,null,null,null,null,{"$f":"AD156+AD157-AC156","v":{"$error":"#REF!"}},{"$f":"Расчеты!#REF!*Расчеты!#REF!/1000/2*Расчеты!#REF!","v":{"$error":"#REF!"}},{"$f":"SUMIFS($AA$40:$AA$85,$B$40:$B$85,Расчеты!#REF!,$C$40:$C$85,\"=500\",$D$40:$D$85,Расчеты!#REF!,$F$40:$F$85,Расчеты!#REF!)","v":0}]
[{"$f":"IF(V158=0,\"z\",\" \")","v":{"$error":"#REF!"}},null,null,null,null,null,null,"Остатки",null,null,null,null,0,null,null,null,null,null,null,null,null,null,null,null,null,{"$f":"SUMIFS($Z$40:$Z$85,$B$40:$B$85,Расчеты!#REF!,$C$40:$C$85,\"=500\",$D$40:$D$85,Расчеты!#REF!,$F$40:$F$85,Расчеты!#REF!)","v":0},null,null,null,{"$f":"SUMIFS($AA$40:$AA$85,$B$40:$B$85,Расчеты!#REF!,$C$40:$C$85,\"=500\",$D$40:$D$85,Расчеты!#REF!,$F$40:$F$85,Расчеты!#REF!)","v":0}]
[{"$f":"IF(V158=0,\"z\",\" \")","v":{"$error":"#REF!"}},null,null,null,null,null,null,"общая",null,null,null,null,{"$f":"M156+M157","v":0},null,null,{"$f":"P156+P157","v":0},null,null,{"$f":"S156","v":0},null,null,{"$f":"V156+V157+AC156","v":{"$error":"#REF!"}},null,null,null,{"$f":"Z156+Z157","v":0}]
[{"$f":"IF(V161=0,\"z\",\" \")","v":{"$error":"#REF!"}},null,null,null,24,null,null,"",null,0,null,{"$f":"Расчеты!#REF!","v":{"$error":"#REF!"}},0,null,null,null,null,null,null,null,null,null,null,null,null,null,null,{"$f":"AD159+AD160-AC159","v":{"$error":"#REF!"}},{"$f":"Расчеты!#REF!*Расчеты!#REF!/1000/2*Расчеты!#REF!","v":{"$error":"#REF!"}},{"$f":"SUMIFS($AA$40:$AA$85,$B$40:$B$85,Расчеты!#REF!,$C$40:$C$85,\"=500\",$D$40:$D$85,Расчеты!#REF!,$F$40:$F$85,Расчеты!#REF!)","v":0}]
[{"$f":"IF(V161=0,\"z\",\" \")","v":{"$error":"#REF!"}},null,null,null,null,null,null,"Остатки",null,null,null,null,0,null,null,null,null,null,null,null,null,null,null,null,null,{"$f":"SUMIFS($Z$40:$Z$85,$B$40:$B$85,Расчеты!#REF!,$C$40:$C$85,\"=500\",$D$40:$D$85,Расчеты!#REF!,$F$40:$F$85,Расчеты!#REF!)","v":0},null,null,null,{"$f":"SUMIFS($AA$40:$AA$85,$B$40:$B$85,Расчеты!#REF!,$C$40:$C$85,\"=500\",$D$40:$D$85,Расчеты!#REF!,$F$40:$F$85,Расчеты!#REF!)","v":0}]
[{"$f":"IF(V161=0,\"z\",\" \")","v":{"$error":"#REF!"}},null,null,null,null,null,null,"общая",null,null,null,null,{"$f":"M159+M160","v":0},null,null,{"$f":"P159+P160","v":0},null,null,{"$f":"S159","v":0},null,null,{"$f":"V159+V160+AC159","v":{"$error":"#REF!"}},null,null,null,{"$f":"Z159+Z160","v":0}]
[{"$f":"IF(V164=0,\"z\",\" \")","v":{"$error":"#REF!"}},null,null,null,25,null,null,"",null,0,null,{"$f":"Расчеты!#REF!","v":{"$error":"#REF!"}},0,null,null,null,null,null,null,null,null,null,null,null,null,null,null,{"$f":"AD162+AD163-AC162","v":{"$error":"#REF!"}},{"$f":"Расчеты!#REF!*Расчеты!#REF!/1000/2*Расчеты!#REF!","v":{"$error":"#REF!"}},{"$f":"SUMIFS($AA$40:$AA$85,$B$40:$B$85,Расчеты!#REF!,$C$40:$C$85,\"=500\",$D$40:$D$85,Расчеты!#REF!,$F$40:$F$85,Расчеты!#REF!)","v":0}]
[{"$f":"IF(V164=0,\"z\",\" \")","v":{"$error":"#REF!"}},null,null,null,null,null,null,"Остатки",null,null,null,null,0,null,null,null,null,null,null,null,null,null,null,null,null,{"$f":"SUMIFS($Z$40:$Z$85,$B$40:$B$85,Расчеты!#REF!,$C$40:$C$85,\"=500\",$D$40:$D$85,Расчеты!#REF!,$F$40:$F$85,Расчеты!#REF!)","v":0},null,null,null,{"$f":"SUMIFS($AA$40:$AA$85,$B$40:$B$85,Расчеты!#REF!,$C$40:$C$85,\"=500\",$D$40:$D$85,Расчеты!#REF!,$F$40:$F$85,Расчеты!#REF!)","v":0}]
[{"$f":"IF(V164=0,\"z\",\" \")","v":{"$error":"#REF!"}},null,null,null,null,null,null,"общая",null,null,null,null,{"$f":"M162+M163","v":0},null,null,{"$f":"P162+P163","v":0},null,null,{"$f":"S162","v":0},null,null,{"$f":"V162+V163+AC162","v":{"$error":"#REF!"}},null,null,null,{"$f":"Z162+Z163","v":0}]
[{"$f":"IF(V167=0,\"z\",\" \")","v":{"$error":"#REF!"}},null,null,null,26,null,null,"",null,0,null,{"$f":"Расчеты!#REF!","v":{"$error":"#REF!"}},0,null,null,null,null,null,null,null,null,null,null,null,null,null,null,{"$f":"AD165+AD166-AC165","v":{"$error":"#REF!"}},{"$f":"Расчеты!#REF!*Расчеты!#REF!/1000/2*Расчеты!#REF!","v":{"$error":"#REF!"}},{"$f":"SUMIFS($AA$40:$AA$85,$B$40:$B$85,Расчеты!#REF!,$C$40:$C$85,\"=500\",$D$40:$D$85,Расчеты!#REF!,$F$40:$F$85,Расчеты!#REF!)","v":0}]
[{"$f":"IF(V167=0,\"z\",\" \")","v":{"$error":"#REF!"}},null,null,null,null,null,null,"Остатки",null,null,null,null,0,null,null,null,null,null,null,null,null,null,null,null,null,{"$f":"SUMIFS($Z$40:$Z$85,$B$40:$B$85,Расчеты!#REF!,$C$40:$C$85,\"=500\",$D$40:$D$85,Расчеты!#REF!,$F$40:$F$85,Расчеты!#REF!)","v":0},null,null,null,{"$f":"SUMIFS($AA$40:$AA$85,$B$40:$B$85,Расчеты!#REF!,$C$40:$C$85,\"=500\",$D$40:$D$85,Расчеты!#REF!,$F$40:$F$85,Расчеты!#REF!)","v":0}]
[{"$f":"IF(V167=0,\"z\",\" \")","v":{"$error":"#REF!"}},null,null,null,null,null,null,"общая",null,null,null,null,{"$f":"M165+M166","v":0},null,null,{"$f":"P165+P166","v":0},null,null,{"$f":"S165","v":0},null,null,{"$f":"V165+V166+AC165","v":{"$error":"#REF!"}},null,null,null,{"$f":"Z165+Z166","v":0}]
[{"$f":"IF(V170=0,\"z\",\" \")","v":{"$error":"#REF!"}},null,null,null,27,null,null,"",null,0,null,{"$f":"Расчеты!#REF!","v":{"$error":"#REF!"}},0,null,null,null,null,null,null,null,null,null,null,null,null,null,null,{"$f":"AD168+AD169-AC168","v":{"$error":"#REF!"}},{"$f":"Расчеты!#REF!*Расчеты!#REF!/1000/2*Расчеты!#REF!","v":{"$error":"#REF!"}},{"$f":"SUMIFS($AA$40:$AA$85,$B$40:$B$85,Расчеты!#REF!,$C$40:$C$85,\"=500\",$D$40:$D$85,Расчеты!#REF!,$F$40:$F$85,Расчеты!#REF!)","v":0}]
[{"$f":"IF(V170=0,\"z\",\" \")","v":{"$error":"#REF!"}},null,null,null,null,null,null,"Остатки",null,null,null,null,0,null,null,null,null,null,null,null,null,null,null,null,null,{"$f":"SUMIFS($Z$40:$Z$85,$B$40:$B$85,Расчеты!#REF!,$C$40:$C$85,\"=500\",$D$40:$D$85,Расчеты!#REF!,$F$40:$F$85,Расчеты!#REF!)","v":0},null,null,null,{"$f":"SUMIFS($AA$40:$AA$85,$B$40:$B$85,Расчеты!#REF!,$C$40:$C$85,\"=500\",$D$40:$D$85,Расчеты!#REF!,$F$40:$F$85,Расчеты!#REF!)","v":0}]
[{"$f":"IF(V170=0,\"z\",\" \")","v":{"$error":"#REF!"}},null,null,null,null,null,null,"общая",null,null,null,null,{"$f":"M168+M169","v":0},null,null,{"$f":"P168+P169","v":0},null,null,{"$f":"S168","v":0},null,null,{"$f":"V168+V169+AC168","v":{"$error":"#REF!"}},null,null,null,{"$f":"Z168+Z169","v":0}]
[{"$f":"IF(V173=0,\"z\",\" \")","v":{"$error":"#REF!"}},null,null,null,28,null,null,"",null,0,null,{"$f":"Расчеты!#REF!","v":{"$error":"#REF!"}},0,null,null,null,null,null,null,null,null,null,null,null,null,null,null,{"$f":"AD171+AD172-AC171","v":{"$error":"#REF!"}},{"$f":"Расчеты!#REF!*Расчеты!#REF!/1000/2*Расчеты!#REF!","v":{"$error":"#REF!"}},{"$f":"SUMIFS($AA$40:$AA$85,$B$40:$B$85,Расчеты!#REF!,$C$40:$C$85,\"=500\",$D$40:$D$85,Расчеты!#REF!,$F$40:$F$85,Расчеты!#REF!)","v":0}]
[{"$f":"IF(V173=0,\"z\",\" \")","v":{"$error":"#REF!"}},null,null,null,null,null,null,"Остатки",null,null,null,null,0,null,null,null,null,null,null,null,null,null,null,null,null,{"$f":"SUMIFS($Z$40:$Z$85,$B$40:$B$85,Расчеты!#REF!,$C$40:$C$85,\"=500\",$D$40:$D$85,Расчеты!#REF!,$F$40:$F$85,Расчеты!#REF!)","v":0},null,null,null,{"$f":"SUMIFS($AA$40:$AA$85,$B$40:$B$85,Расчеты!#REF!,$C$40:$C$85,\"=500\",$D$40:$D$85,Расчеты!#REF!,$F$40:$F$85,Расчеты!#REF!)","v":0}]
[{"$f":"IF(V173=0,\"z\",\" \")","v":{"$error":"#REF!"}},null,null,null,null,null,null,"общая",null,null,null,null,{"$f":"M171+M172","v":0},null,null,{"$f":"P171+P172","v":0},null,null,{"$f":"S171","v":0},null,null,{"$f":"V171+V172+AC171","v":{"$error":"#REF!"}},null,null,null,{"$f":"Z171+Z172","v":0}]
[{"$f":"IF(V176=0,\"z\",\" \")","v":{"$error":"#REF!"}},null,null,null,29,null,null,"",null,0,null,{"$f":"Расчеты!#REF!","v":{"$error":"#REF!"}},0,null,null,null,null,null,null,null,null,null,null,null,null,null,null,{"$f":"AD174+AD175-AC174","v":{"$error":"#REF!"}},{"$f":"Расчеты!#REF!*Расчеты!#REF!/1000/2*Расчеты!#REF!","v":{"$error":"#REF!"}},{"$f":"SUMIFS($AA$40:$AA$85,$B$40:$B$85,Расчеты!#REF!,$C$40:$C$85,\"=500\",$D$40:$D$85,Расчеты!#REF!,$F$40:$F$85,Расчеты!#REF!)","v":0}]
[{"$f":"IF(V176=0,\"z\",\" \")","v":{"$error":"#REF!"}},null,null,null,null,null,null,"Остатки",null,null,null,null,0,null,null,null,null,null,null,null,null,null,null,null,null,{"$f":"SUMIFS($Z$40:$Z$85,$B$40:$B$85,Расчеты!#REF!,$C$40:$C$85,\"=500\",$D$40:$D$85,Расчеты!#REF!,$F$40:$F$85,Расчеты!#REF!)","v":0},null,null,null,{"$f":"SUMIFS($AA$40:$AA$85,$B$40:$B$85,Расчеты!#REF!,$C$40:$C$85,\"=500\",$D$40:$D$85,Расчеты!#REF!,$F$40:$F$85,Расчеты!#REF!)","v":0}]
[{"$f":"IF(V176=0,\"z\",\" \")","v":{"$error":"#REF!"}},null,null,null,null,null,null,"общая",null,null,null,null,{"$f":"M174+M175","v":0},null,null,{"$f":"P174+P175","v":0},null,null,{"$f":"S174","v":0},null,null,{"$f":"V174+V175+AC174","v":{"$error":"#REF!"}},null,null,null,{"$f":"Z174+Z175","v":0}]
[{"$f":"IF(V179=0,\"z\",\" \")","v":{"$error":"#REF!"}},null,null,null,30,null,null,"",null,0,null,{"$f":"Расчеты!#REF!","v":{"$error":"#REF!"}},0,null,null,null,null,null,null,null,null,null,null,null,null,null,null,{"$f":"AD177+AD178-AC177","v":{"$error":"#REF!"}},{"$f":"Расчеты!#REF!*Расчеты!#REF!/1000/2*Расчеты!#REF!","v":{"$error":"#REF!"}},{"$f":"SUMIFS($AA$40:$AA$85,$B$40:$B$85,Расчеты!#REF!,$C$40:$C$85,\"=500\",$D$40:$D$85,Расчеты!#REF!,$F$40:$F$85,Расчеты!#REF!)","v":0}]
[{"$f":"IF(V179=0,\"z\",\" \")","v":{"$error":"#REF!"}},null,null,null,null,null,null,"Остатки",null,null,null,null,0,null,null,null,null,null,null,null,null,null,null,null,null,{"$f":"SUMIFS($Z$40:$Z$85,$B$40:$B$85,Расчеты!#REF!,$C$40:$C$85,\"=500\",$D$40:$D$85,Расчеты!#REF!,$F$40:$F$85,Расчеты!#REF!)","v":0},null,null,null,{"$f":"SUMIFS($AA$40:$AA$85,$B$40:$B$85,Расчеты!#REF!,$C$40:$C$85,\"=500\",$D$40:$D$85,Расчеты!#REF!,$F$40:$F$85,Расчеты!#REF!)","v":0}]
[{"$f":"IF(V179=0,\"z\",\" \")","v":{"$error":"#REF!"}},null,null,null,null,null,null,"общая",null,null,null,null,{"$f":"M177+M178","v":0},null,null,{"$f":"P177+P178","v":0},null,null,{"$f":"S177","v":0},null,null,{"$f":"V177+V178+AC177","v":{"$error":"#REF!"}},null,null,null,{"$f":"Z177+Z178","v":0}]
[{"$f":"IF(V182=0,\"z\",\" \")","v":{"$error":"#REF!"}},null,null,null,31,null,null,"",null,0,null,{"$f":"Расчеты!#REF!","v":{"$error":"#REF!"}},0,null,null,null,null,null,null,null,null,null,null,null,null,null,null,{"$f":"AD180+AD181-AC180","v":{"$error":"#REF!"}},{"$f":"Расчеты!#REF!*Расчеты!#REF!/1000/2*Расчеты!#REF!","v":{"$error":"#REF!"}},{"$f":"SUMIFS($AA$40:$AA$85,$B$40:$B$85,Расчеты!#REF!,$C$40:$C$85,\"=500\",$D$40:$D$85,Расчеты!#REF!,$F$40:$F$85,Расчеты!#REF!)","v":0}]
[{"$f":"IF(V182=0,\"z\",\" \")","v":{"$error":"#REF!"}},null,null,null,null,null,null,"Остатки",null,null,null,null,0,null,null,null,null,null,null,null,null,null,null,null,null,{"$f":"SUMIFS($Z$40:$Z$85,$B$40:$B$85,Расчеты!#REF!,$C$40:$C$85,\"=500\",$D$40:$D$85,Расчеты!#REF!,$F$40:$F$85,Расчеты!#REF!)","v":0},null,null,null,{"$f":"SUMIFS($AA$40:$AA$85,$B$40:$B$85,Расчеты!#REF!,$C$40:$C$85,\"=500\",$D$40:$D$85,Расчеты!#REF!,$F$40:$F$85,Расчеты!#REF!)","v":0}]
[{"$f":"IF(V182=0,\"z\",\" \")","v":{"$error":"#REF!"}},null,null,null,null,null,null,"общая",null,null,null,null,{"$f":"M180+M181","v":0},null,null,{"$f":"P180+P181","v":0},null,null,{"$f":"S180","v":0},null,null,{"$f":"V180+V181+AC180","v":{"$error":"#REF!"}},null,null,null,{"$f":"Z180+Z181","v":0}]
[{"$f":"IF(V185=0,\"z\",\" \")","v":{"$error":"#REF!"}},null,null,null,32,null,null,"",null,0,null,{"$f":"Расчеты!#REF!","v":{"$error":"#REF!"}},0,null,null,null,null,null,null,null,null,null,null,null,null,null,null,{"$f":"AD183+AD184-AC183","v":{"$error":"#REF!"}},{"$f":"Расчеты!#REF!*Расчеты!#REF!/1000/2*Расчеты!#REF!","v":{"$error":"#REF!"}},{"$f":"SUMIFS($AA$40:$AA$85,$B$40:$B$85,Расчеты!#REF!,$C$40:$C$85,\"=500\",$D$40:$D$85,Расчеты!#REF!,$F$40:$F$85,Расчеты!#REF!)","v":0}]
[{"$f":"IF(V185=0,\"z\",\" \")","v":{"$error":"#REF!"}},null,null,null,null,null,null,"Остатки",null,null,null,null,0,null,null,null,null,null,null,null,null,null,null,null,null,{"$f":"SUMIFS($Z$40:$Z$85,$B$40:$B$85,Расчеты!#REF!,$C$40:$C$85,\"=500\",$D$40:$D$85,Расчеты!#REF!,$F$40:$F$85,Расчеты!#REF!)","v":0},null,null,null,{"$f":"SUMIFS($AA$40:$AA$85,$B$40:$B$85,Расчеты!#REF!,$C$40:$C$85,\"=500\",$D$40:$D$85,Расчеты!#REF!,$F$40:$F$85,Расчеты!#REF!)","v":0}]
[{"$f":"IF(V185=0,\"z\",\" \")","v":{"$error":"#REF!"}},null,null,null,null,null,null,"общая",null,null,null,null,{"$f":"M183+M184","v":0},null,null,{"$f":"P183+P184","v":0},null,null,{"$f":"S183","v":0},null,null,{"$f":"V183+V184+AC183","v":{"$error":"#REF!"}},null,null,null,{"$f":"Z183+Z184","v":0}]
[{"$f":"IF(V188=0,\"z\",\" \")","v":{"$error":"#REF!"}},null,null,null,33,null,null,null,null,null,null,{"$f":"Расчеты!#REF!","v":{"$error":"#REF!"}},null,null,null,null,null,null,null,null,null,null,null,null,null,null,null,{"$f":"AD186+AD187-AC186","v":{"$error":"#REF!"}},{"$f":"Расчеты!#REF!*Расчеты!#REF!/1000/2*Расчеты!#REF!","v":{"$error":"#REF!"}},{"$f":"SUMIFS($AA$40:$AA$85,$B$40:$B$85,Расчеты!#REF!,$C$40:$C$85,\"=500\",$D$40:$D$85,Расчеты!#REF!,$F$40:$F$85,Расчеты!#REF!)","v":0}]
[{"$f":"IF(V188=0,\"z\",\" \")","v":{"$error":"#REF!"}},null,null,null,null,null,null,"Остатки",null,null,null,null,null,null,null,null,null,null,null,null,null,null,null,null,null,{"$f":"SUMIFS($Z$40:$Z$85,$B$40:$B$85,Расчеты!#REF!,$C$40:$C$85,\"=500\",$D$40:$D$85,Расчеты!#REF!,$F$40:$F$85,Расчеты!#REF!)","v":0},null,null,null,{"$f":"SUMIFS($AA$40:$AA$85,$B$40:$B$85,Расчеты!#REF!,$C$40:$C$85,\"=500\",$D$40:$D$85,Расчеты!#REF!,$F$40:$F$85,Расчеты!#REF!)","v":0}]
[{"$f":"IF(V188=0,\"z\",\" \")","v":{"$error":"#REF!"}},null,null,null,null,null,null,"общая",null,null,null,null,{"$f":"M186+M187","v":0},null,null,{"$f":"P186+P187","v":0},null,null,{"$f":"S186","v":0},null,null,{"$f":"V186+V187+AC186","v":{"$error":"#REF!"}},null,null,null,{"$f":"Z186+Z187","v":0}]
[{"$f":"IF(V191=0,\"z\",\" \")","v":{"$error":"#VALUE!"}},null,null,null,34,null,null,"Кол-во",null,"Площадь деталей всего, кв.м",null,{"$f":"Расчеты!#REF!","v":{"$error":"#REF!"}},"Получил кла-довщик",null,null,"Получил кладовщик",null,null,"ЛОМ (кг)",null,null,"Получил",null,null,null,"Количество деталей",null,{"$f":"AD189+AD190-AC189","v":{"$error":"#REF!"}},{"$f":"Расчеты!#REF!*Расчеты!#REF!/1000/2*Расчеты!#REF!","v":{"$error":"#REF!"}},{"$f":"SUMIFS($AA$40:$AA$85,$B$40:$B$85,Расчеты!#REF!,$C$40:$C$85,\"=500\",$D$40:$D$85,Расчеты!#REF!,$F$40:$F$85,Расчеты!#REF!)","v":0}]
[{"$f":"IF(V191=0,\"z\",\" \")","v":{"$error":"#VALUE!"}},null,null,null,null,null,null,"Остатки",null,null,null,null,"Получил кла-довщик",null,null,"Масса деталей (кг)",null,null,null,null,null,"Деловой остаток на склад (кг)",null,null,null,{"$f":"SUMIFS($Z$40:$Z$85,$B$40:$B$85,Расчеты!#REF!,$C$40:$C$85,\"=500\",$D$40:$D$85,Расчеты!#REF!,$F$40:$F$85,Расчеты!#REF!)","v":0},null,null,null,{"$f":"SUMIFS($AA$40:$AA$85,$B$40:$B$85,Расчеты!#REF!,$C$40:$C$85,\"=500\",$D$40:$D$85,Расчеты!#REF!,$F$40:$F$85,Расчеты!#REF!)","v":0}]
[{"$f":"IF(V191=0,\"z\",\" \")","v":{"$error":"#VALUE!"}},null,null,null,null,null,null,"общая",null,null,null,null,{"$f":"M189+M190","v":{"$error":"#VALUE!"}},null,null,{"$f":"P189+P190","v":{"$error":"#VALUE!"}},null,null,{"$f":"S189","v":"ЛОМ (кг)"},null,null,{"$f":"V189+V190+AC189","v":{"$error":"#VALUE!"}},null,null,null,{"$f":"Z189+Z190","v":{"$error":"#VALUE!"}}]
["Подпись",null,null,null,35,"Инженер-технолог",null,null,"факт"]
["Подпись",null,null,null,null,"Нач техотдела",null,"Остатки",null,null,null,null,null,null,null,"теория",null,null,null,null,null,"теория"]
["Подпись",null,null,null,null,"Генеральный директор"]
[null,null,null,null,36,null,null,null,null,null,null,null,null,null,null,null,null,null,0]
[null,null,null,null,null,null,null,"Остатки",null,null,null,null,null,null,null,0,null,null,null,null,null,0]
[]
[null,null,null,null,37,null,null,null,null,null,null,null,null,null,null,null,null,null,0]
[null,null,null,null,null,null,null,"Остатки",null,null,null,null,null,null,null,0,null,null,null,null,null,0]

{"sheet":"Д","index":1,"n_rows":24,"n_cols":7,"rows_kept":24,"cut":false,"hidden":false,"merged":[]}
[{"$f":"IF(Труба!I9=0,\"z\",1)","v":"z"},{"$f":"CONCATENATE(\"х\",Труба!G9,\"х\",Труба!B9)","v":"х0,74х"},{"$f":"Труба!I7","v":10},{"$f":"Труба!D9","v":0},{"$f":"Труба!I9","v":0},{"$f":"Лист3!G4","v":0},{"$f":"Лист3!F4","v":0}]
[{"$f":"IF(Труба!I10=0,\"z\",1)","v":"z"},{"$f":"CONCATENATE(\"х\",Труба!G10,\"х\",Труба!B10)","v":"хх"},{"$f":"Труба!I7","v":10},{"$f":"Труба!D10","v":0},{"$f":"Труба!I10","v":0},{"$f":"Лист3!G5","v":0},{"$f":"Лист3!F5","v":0}]
[{"$f":"IF(Труба!I11=0,\"z\",1)","v":"z"},{"$f":"CONCATENATE(\"х\",Труба!G11,\"х\",Труба!B11)","v":"хх"},{"$f":"Труба!I7","v":10},{"$f":"Труба!D11","v":0},{"$f":"Труба!I11","v":0},{"$f":"Лист3!G6","v":0},{"$f":"Лист3!F6","v":0}]
[{"$f":"IF(Труба!I12=0,\"z\",1)","v":"z"},{"$f":"CONCATENATE(\"х\",Труба!G12,\"х\",Труба!B12)","v":"хх"},{"$f":"Труба!I7","v":10},{"$f":"Труба!D12","v":0},{"$f":"Труба!I12","v":0},{"$f":"Лист3!G7","v":0},{"$f":"Лист3!F7","v":0}]
[{"$f":"IF(Труба!I13=0,\"z\",1)","v":"z"},{"$f":"CONCATENATE(\"х\",Труба!G13,\"х\",Труба!B13)","v":"хх"},{"$f":"Труба!I7","v":10},{"$f":"Труба!D13","v":0},{"$f":"Труба!I13","v":0},{"$f":"Лист3!G8","v":0},{"$f":"Лист3!F8","v":0}]
[{"$f":"IF(Труба!I14=0,\"z\",1)","v":"z"},{"$f":"CONCATENATE(\"х\",Труба!G14,\"х\",Труба!B14)","v":"хх"},{"$f":"Труба!I7","v":10},{"$f":"Труба!D14","v":0},{"$f":"Труба!I14","v":0},{"$f":"Лист3!G9","v":0},{"$f":"Лист3!F9","v":0}]
[{"$f":"IF(Труба!I15=0,\"z\",1)","v":"z"},{"$f":"CONCATENATE(\"х\",Труба!G15,\"х\",Труба!B15)","v":"хх"},{"$f":"Труба!I7","v":10},{"$f":"Труба!D15","v":0},{"$f":"Труба!I15","v":0},{"$f":"Лист3!G10","v":0},{"$f":"Лист3!F10","v":0}]
[{"$f":"IF(Труба!I16=0,\"z\",1)","v":"z"},{"$f":"CONCATENATE(\"х\",Труба!G16,\"х\",Труба!B16)","v":"хх"},{"$f":"Труба!I7","v":10},{"$f":"Труба!D16","v":0},{"$f":"Труба!I16","v":0},{"$f":"Лист3!G11","v":0},{"$f":"Лист3!F11","v":0}]
[{"$f":"IF(Труба!I17=0,\"z\",1)","v":"z"},{"$f":"CONCATENATE(\"х\",Труба!G17,\"х\",Труба!B17)","v":"хх"},{"$f":"Труба!I7","v":10},{"$f":"Труба!D17","v":0},{"$f":"Труба!I17","v":0},{"$f":"Лист3!G12","v":0},{"$f":"Лист3!F12","v":0}]
[{"$f":"IF(Труба!I18=0,\"z\",1)","v":"z"},{"$f":"CONCATENATE(\"х\",Труба!G18,\"х\",Труба!B18)","v":"хх"},{"$f":"Труба!I7","v":10},{"$f":"Труба!D18","v":0},{"$f":"Труба!I18","v":0},{"$f":"Лист3!G13","v":0},{"$f":"Лист3!F13","v":0}]
[{"$f":"IF(Труба!I19=0,\"z\",1)","v":"z"},{"$f":"CONCATENATE(\"х\",Труба!G19,\"х\",Труба!B19)","v":"хх"},{"$f":"Труба!I7","v":10},{"$f":"Труба!D19","v":0},{"$f":"Труба!I19","v":0},{"$f":"Лист3!G14","v":0},{"$f":"Лист3!F14","v":0}]
[{"$f":"IF(Труба!#REF!=0,\"z\",1)","v":{"$error":"#REF!"}},{"$f":"CONCATENATE(\"х\",Труба!#REF!,\"х\",Труба!#REF!)","v":{"$error":"#REF!"}},{"$f":"Труба!I7","v":10},{"$f":"Труба!#REF!","v":{"$error":"#REF!"}},{"$f":"Труба!#REF!","v":{"$error":"#REF!"}},{"$f":"Лист3!G15","v":{"$error":"#REF!"}},{"$f":"Лист3!F15","v":{"$error":"#REF!"}}]
[{"$f":"IF(Труба!#REF!=0,\"z\",1)","v":{"$error":"#REF!"}},{"$f":"CONCATENATE(\"х\",Труба!#REF!,\"х\",Труба!#REF!)","v":{"$error":"#REF!"}},{"$f":"Труба!I7","v":10},{"$f":"Труба!#REF!","v":{"$error":"#REF!"}},{"$f":"Труба!#REF!","v":{"$error":"#REF!"}},{"$f":"Лист3!G16","v":{"$error":"#REF!"}},{"$f":"Лист3!F16","v":{"$error":"#REF!"}}]
[{"$f":"IF(Труба!#REF!=0,\"z\",1)","v":{"$error":"#REF!"}},{"$f":"CONCATENATE(\"х\",Труба!#REF!,\"х\",Труба!#REF!)","v":{"$error":"#REF!"}},{"$f":"Труба!I7","v":10},{"$f":"Труба!#REF!","v":{"$error":"#REF!"}},{"$f":"Труба!#REF!","v":{"$error":"#REF!"}},{"$f":"Лист3!G17","v":{"$error":"#REF!"}},{"$f":"Лист3!F17","v":{"$error":"#REF!"}}]
[{"$f":"IF(Труба!I28=0,\"z\",1)","v":"z"},{"$f":"CONCATENATE(\"х\",Труба!G28,\"х\",Труба!B28)","v":"хх"},{"$f":"Труба!I7","v":10},{"$f":"Труба!D28","v":0},{"$f":"Труба!I28","v":0},{"$f":"Лист3!G18","v":0},{"$f":"Лист3!F18","v":0}]
[{"$f":"IF(Труба!I29=0,\"z\",1)","v":"z"},{"$f":"CONCATENATE(\"х\",Труба!G29,\"х\",Труба!B29)","v":"хх"},{"$f":"Труба!I7","v":10},{"$f":"Труба!D29","v":0},{"$f":"Труба!I29","v":0},{"$f":"Лист3!G19","v":0},{"$f":"Лист3!F19","v":0}]
[{"$f":"IF(Труба!I30=0,\"z\",1)","v":"z"},{"$f":"CONCATENATE(\"х\",Труба!G30,\"х\",Труба!B30)","v":"хх"},{"$f":"Труба!I7","v":10},{"$f":"Труба!D30","v":0},{"$f":"Труба!I30","v":0},{"$f":"Лист3!G20","v":0},{"$f":"Лист3!F20","v":0}]
[{"$f":"IF(Труба!I31=0,\"z\",1)","v":"z"},{"$f":"CONCATENATE(\"х\",Труба!G31,\"х\",Труба!B31)","v":"хх"},{"$f":"Труба!I7","v":10},{"$f":"Труба!D31","v":0},{"$f":"Труба!I31","v":0},{"$f":"Лист3!G21","v":0},{"$f":"Лист3!F21","v":0}]
[{"$f":"IF(Труба!I32=0,\"z\",1)","v":"z"},{"$f":"CONCATENATE(\"х\",Труба!G32,\"х\",Труба!B32)","v":"хх"},{"$f":"Труба!I7","v":10},{"$f":"Труба!D32","v":0},{"$f":"Труба!I32","v":0},{"$f":"Лист3!G22","v":0},{"$f":"Лист3!F22","v":0}]
[{"$f":"IF(Труба!I33=0,\"z\",1)","v":"z"},{"$f":"CONCATENATE(\"х\",Труба!G33,\"х\",Труба!B33)","v":"хх"},{"$f":"Труба!I7","v":10},{"$f":"Труба!D33","v":0},{"$f":"Труба!I33","v":0},{"$f":"Лист3!G23","v":0},{"$f":"Лист3!F23","v":0}]
[{"$f":"IF(Труба!I34=0,\"z\",1)","v":"z"},{"$f":"CONCATENATE(\"х\",Труба!G34,\"х\",Труба!B34)","v":"хх"},{"$f":"Труба!I7","v":10},{"$f":"Труба!D34","v":0},{"$f":"Труба!I34","v":0},{"$f":"Лист3!G24","v":0},{"$f":"Лист3!F24","v":0}]
[{"$f":"IF(Труба!I35=0,\"z\",1)","v":"z"},{"$f":"CONCATENATE(\"х\",Труба!G35,\"х\",Труба!B35)","v":"хх"},{"$f":"Труба!I7","v":10},{"$f":"Труба!D35","v":0},{"$f":"Труба!I35","v":0},{"$f":"Лист3!G25","v":0},{"$f":"Лист3!F25","v":0}]
[{"$f":"IF(Труба!I36=0,\"z\",1)","v":"z"},{"$f":"CONCATENATE(\"х\",Труба!G36,\"х\",Труба!B36)","v":"хх"},{"$f":"Труба!I7","v":10},{"$f":"Труба!D36","v":0},{"$f":"Труба!I36","v":0},{"$f":"Лист3!G26","v":0},{"$f":"Лист3!F26","v":0}]
[null,null,null,null,null,null,{"$f":"SUM(G1:G23)","v":{"$error":"#REF!"}}]

{"sheet":"Лист3","index":2,"n_rows":28,"n_cols":9,"rows_kept":28,"cut":false,"hidden":false,"merged":[]}
[null,null,null,null,null,{"$f":"Труба!L9","v":0}]
[null,null,null,null,null,null,{"$f":"SUM(E4:E27)","v":{"$error":"#REF!"}},{"$f":"B28","v":{"$error":"#REF!"}},{"$f":"(H2-G2)/D28","v":{"$error":"#REF!"}}]
[]
[null,{"$f":"IF(Труба!#REF!=\"z\",0,Труба!#REF!)","v":{"$error":"#REF!"}},null,{"$f":"IF(E4=0,0,1)","v":0},{"$f":"IF(Труба!L9=0,0,Труба!L9)","v":0},{"$f":"IF(E4=0,0,I2+E4)","v":0},{"$f":"IF(F4=0,0,F4/Труба!I7)","v":0}]
[null,{"$f":"IF(Труба!#REF!=\"z\",0,Труба!#REF!)","v":{"$error":"#REF!"}},null,{"$f":"IF(E5=0,0,1)","v":0},{"$f":"IF(Труба!L10=0,0,Труба!L10)","v":0},{"$f":"IF(E5=0,0,I2+E5)","v":0},{"$f":"IF(F5=0,0,F5/Труба!I7)","v":0}]
[null,{"$f":"IF(Труба!#REF!=\"z\",0,Труба!#REF!)","v":{"$error":"#REF!"}},null,0,{"$f":"IF(Труба!L11=0,0,Труба!L11)","v":0},{"$f":"IF(E6=0,0,I2+E6)","v":0},{"$f":"IF(F6=0,0,F6/Труба!I7)","v":0}]
[null,{"$f":"IF(Труба!#REF!=\"z\",0,Труба!#REF!)","v":{"$error":"#REF!"}},null,0,{"$f":"IF(Труба!L12=0,0,Труба!L12)","v":0},{"$f":"IF(E7=0,0,I2+E7)","v":0},{"$f":"IF(F7=0,0,F7/Труба!I7)","v":0}]
[null,{"$f":"IF(Труба!#REF!=\"z\",0,Труба!#REF!)","v":{"$error":"#REF!"}},null,0,{"$f":"IF(Труба!L13=0,0,Труба!L13)","v":0},{"$f":"IF(E8=0,0,I2+E8)","v":0},{"$f":"IF(F8=0,0,F8/Труба!I7)","v":0}]
[null,{"$f":"IF(Труба!A107=\"z\",0,Труба!V107)","v":0},null,0,{"$f":"IF(Труба!L14=0,0,Труба!L14)","v":0},{"$f":"IF(E9=0,0,I2+E9)","v":0},{"$f":"IF(F9=0,0,F9/Труба!I7)","v":0}]
[null,{"$f":"IF(Труба!A110=\"z\",0,Труба!V110)","v":0},null,0,{"$f":"IF(Труба!L15=0,0,Труба!L15)","v":0},{"$f":"IF(E10=0,0,I2+E10)","v":0},{"$f":"IF(F10=0,0,F10/Труба!I7)","v":0}]
[null,{"$f":"IF(Труба!A173=\"z\",0,Труба!V173)","v":{"$error":"#REF!"}},null,0,{"$f":"IF(Труба!L16=0,0,Труба!L16)","v":0},{"$f":"IF(E11=0,0,I2+E11)","v":0},{"$f":"IF(F11=0,0,F11/Труба!I7)","v":0}]
[null,{"$f":"IF(Труба!A176=\"z\",0,Труба!V176)","v":{"$error":"#REF!"}},null,0,{"$f":"IF(Труба!L17=0,0,Труба!L17)","v":0},{"$f":"IF(E12=0,0,I2+E12)","v":0},{"$f":"IF(F12=0,0,F12/Труба!I7)","v":0}]
[null,{"$f":"IF(Труба!A179=\"z\",0,Труба!V179)","v":{"$error":"#REF!"}},null,0,{"$f":"IF(Труба!L18=0,0,Труба!L18)","v":0},{"$f":"IF(E13=0,0,I2+E13)","v":0},{"$f":"IF(F13=0,0,F13/Труба!I7)","v":0}]
[null,{"$f":"IF(Труба!A182=\"z\",0,Труба!V182)","v":{"$error":"#REF!"}},null,0,{"$f":"IF(Труба!L19=0,0,Труба!L19)","v":0},{"$f":"IF(E14=0,0,I2+E14)","v":0},{"$f":"IF(F14=0,0,F14/Труба!I7)","v":0}]
[null,{"$f":"IF(Труба!A185=\"z\",0,Труба!V185)","v":{"$error":"#REF!"}},null,{"$error":"#REF!"},{"$f":"IF(Труба!#REF!=0,0,Труба!#REF!)","v":{"$error":"#REF!"}},{"$f":"IF(E15=0,0,I2+E15)","v":{"$error":"#REF!"}},{"$f":"IF(F15=0,0,F15/Труба!I7)","v":{"$error":"#REF!"}}]
[null,{"$f":"IF(Труба!A188=\"z\",0,Труба!V188)","v":{"$error":"#REF!"}},null,{"$error":"#REF!"},{"$f":"IF(Труба!#REF!=0,0,Труба!#REF!)","v":{"$error":"#REF!"}},{"$f":"IF(E16=0,0,I2+E16)","v":{"$error":"#REF!"}},{"$f":"IF(F16=0,0,F16/Труба!I7)","v":{"$error":"#REF!"}}]
[null,{"$f":"IF(Труба!A191=\"z\",0,Труба!V191)","v":{"$error":"#VALUE!"}},null,{"$error":"#REF!"},{"$f":"IF(Труба!#REF!=0,0,Труба!#REF!)","v":{"$error":"#REF!"}},{"$f":"IF(E17=0,0,I2+E17)","v":{"$error":"#REF!"}},{"$f":"IF(F17=0,0,F17/Труба!I7)","v":{"$error":"#REF!"}}]
[null,{"$f":"IF(Труба!#REF!=\"z\",0,Труба!#REF!)","v":{"$error":"#REF!"}},null,0,{"$f":"IF(Труба!L28=0,0,Труба!L28)","v":0},{"$f":"IF(E18=0,0,I2+E18)","v":0},{"$f":"IF(F18=0,0,F18/Труба!I7)","v":0}]
[{"$f":"IF(Труба!#REF!=\"z\",Труба!#REF!,0)","v":{"$error":"#REF!"}},{"$f":"IF(A19>0.004,Труба!#REF!,0)","v":{"$error":"#REF!"}},null,0,{"$f":"IF(Труба!L29=0,0,Труба!L29)","v":0},{"$f":"IF(E19=0,0,I2+E19)","v":0},{"$f":"IF(F19=0,0,F19/Труба!I7)","v":0}]
[{"$f":"IF(Труба!#REF!=\"z\",Труба!#REF!,0)","v":{"$error":"#REF!"}},{"$f":"IF(A20>0.005,Труба!#REF!,0)","v":{"$error":"#REF!"}},null,0,{"$f":"IF(Труба!L30=0,0,Труба!L30)","v":0},{"$f":"IF(E20=0,0,I2+E20)","v":0},{"$f":"IF(F20=0,0,F20/Труба!I7)","v":0}]
[null,null,null,0,{"$f":"IF(Труба!L31=0,0,Труба!L31)","v":0},{"$f":"IF(E21=0,0,I2+E21)","v":0},{"$f":"IF(F21=0,0,F21/Труба!I7)","v":0}]
[null,null,null,0,{"$f":"IF(Труба!L32=0,0,Труба!L32)","v":0},{"$f":"IF(E22=0,0,I2+E22)","v":0},{"$f":"IF(F22=0,0,F22/Труба!I7)","v":0}]
[null,null,null,0,{"$f":"IF(Труба!L33=0,0,Труба!L33)","v":0},{"$f":"IF(E23=0,0,I2+E23)","v":0},{"$f":"IF(F23=0,0,F23/Труба!I7)","v":0}]
[null,null,null,0,{"$f":"IF(Труба!L34=0,0,Труба!L34)","v":0},{"$f":"IF(E24=0,0,I2+E24)","v":0},{"$f":"IF(F24=0,0,F24/Труба!I7)","v":0}]
[null,null,null,0,{"$f":"IF(Труба!L35=0,0,Труба!L35)","v":0},{"$f":"IF(E25=0,0,I2+E25)","v":0},{"$f":"IF(F25=0,0,F25/Труба!I7)","v":0}]
[null,null,null,0,{"$f":"IF(Труба!L36=0,0,Труба!L36)","v":0},{"$f":"IF(E26=0,0,I2+E26)","v":0},{"$f":"IF(F26=0,0,F26/Труба!I7)","v":0}]
[null,null,null,0,{"$f":"IF(Труба!L37=0,0,Труба!L37)","v":0},{"$f":"IF(E27=0,0,I2+E27)","v":0},{"$f":"IF(F27=0,0,F27/Труба!I7)","v":0}]
[null,{"$f":"Труба!#REF!","v":{"$error":"#REF!"}},null,{"$f":"SUM(D4:D27)","v":{"$error":"#REF!"}},null,{"$f":"SUM(F4:F27)","v":{"$error":"#REF!"}}]

{"sheet":"Расчеты","index":3,"n_rows":37,"n_cols":30,"rows_kept":37,"cut":false,"hidden":false,"merged":[]}
[]
["№ в макросе",null,null,"Cl",1,{"$f":"E2+1","v":2},{"$f":"F2+1","v":3},4,5,6,7,8,9,10,11,12,13,14,15,16,17,18,19,20,21,22,23,24,25,26]
["дублир столбиков",null,null,"D","E","F","G","H","I","J","K","L","M","N","O","P","Q","R","S","T","U","V","W","X","Y","Z","AA","AB","AC","AD"]
[null,null,null,"кол-во\n на план\n этого профиля","Профиль\n(для сортировки)","Название","Размер\nБхМхТ","название в \nАСТРА","толщина\nмм ","масса 2м\n(коэф)","длина трубы\nмм","не равно\n(для расчета)","толщина реза\nмм","Кол-во труб целых","Масса дет. целых","Масса дет. Деловых","Масса деталей","Масса целых","Масса деловых","Масса труб","Дел. ост.  Целых","Дел. ост. Деловых","Деловые остатки","Расход целых","Расход деловых","Общий расход","Лом дубль","Отход на порезку","Чистый лом целых","Чистый лом деловых"]
[null,null,null,{"$f":"SUMIFS(Труба!$I$9:$I$36,Труба!$F$9:$F$36,Таблица1[[#This Row],[название в \nАСТРА]])","v":0},"Круглая","Труба","16х1",1,1,0.74,6000,{"$f":"CONCATENATE(\"<>\",K5)","v":"<>6000"},5,{"$f":"SUMIFS(Труба!$G$40:$G$85,Труба!$B$40:$B$85,Таблица1[[#This Row],[длина трубы\nмм]],Труба!$C$40:$C$85,\"=500\",Труба!$D$40:$D$85,Таблица1[[#This Row],[толщина\nмм ]],Труба!$F$40:$F$85,Таблица1[[#This Row],[название в \nАСТРА]])","v":0},{"$f":"SUMIFS(Труба!$V$40:$V$85,Труба!$B$40:$B$85,Таблица1[[#This Row],[длина трубы\nмм]],Труба!$C$40:$C$85,\"=500\",Труба!$D$40:$D$85,Таблица1[[#This Row],[толщина\nмм ]],Труба!$F$40:$F$85,Таблица1[[#This Row],[название в \nАСТРА]])","v":0},{"$f":"SUMIFS(Труба!$V$40:$V$85,Труба!$B$40:$B$85,Таблица1[[#This Row],[не равно\n(для расчета)]],Труба!$C$40:$C$85,\"=500\",Труба!$D$40:$D$85,Таблица1[[#This Row],[толщина\nмм ]],Труба!$F$40:$F$85,Таблица1[[#This Row],[название в \nАСТРА]])","v":0},{"$f":"Таблица1[[#This Row],[Масса дет. целых]]+Таблица1[[#This Row],[Масса дет. Деловых]]","v":0},{"$f":"SUMIFS(Труба!$M$40:$M$85,Труба!$B$40:$B$85,Таблица1[[#This Row],[длина трубы\nмм]],Труба!$C$40:$C$85,\"=500\",Труба!$D$40:$D$85,Таблица1[[#This Row],[толщина\nмм ]],Труба!$F$40:$F$85,Таблица1[[#This Row],[название в \nАСТРА]])","v":0},{"$f":"SUMIFS(Труба!$M$40:$M$85,Труба!$B$40:$B$85,Таблица1[[#This Row],[не равно\n(для расчета)]],Труба!$C$40:$C$85,\"=500\",Труба!$D$40:$D$85,Таблица1[[#This Row],[толщина\nмм ]],Труба!$F$40:$F$85,Таблица1[[#This Row],[название в \nАСТРА]])","v":0},{"$f":"Таблица1[[#This Row],[Масса целых]]+Таблица1[[#This Row],[Масса деловых]]","v":0},{"$f":"SUMIFS(Труба!$P$40:$P$85,Труба!$B$40:$B$85,Таблица1[[#This Row],[длина трубы\nмм]],Труба!$C$40:$C$85,\"=500\",Труба!$D$40:$D$85,Таблица1[[#This Row],[толщина\nмм ]],Труба!$F$40:$F$85,Таблица1[[#This Row],[название в \nАСТРА]])","v":0},{"$f":"SUMIFS(Труба!$P$40:$P$85,Труба!$B$40:$B$85,Таблица1[[#This Row],[не равно\n(для расчета)]],Труба!$C$40:$C$85,\"=500\",Труба!$D$40:$D$85,Таблица1[[#This Row],[толщина\nмм ]],Труба!$F$40:$F$85,Таблица1[[#This Row],[название в \nАСТРА]])","v":0},{"$f":"Таблица1[[#This Row],[Дел. ост.  Целых]]+Таблица1[[#This Row],[Дел. ост. Деловых]]","v":0},{"$f":"SUMIFS(Труба!$Z$40:$Z$85,Труба!$B$40:$B$85,Таблица1[[#This Row],[длина трубы\nмм]],Труба!$C$40:$C$85,\"=500\",Труба!$D$40:$D$85,Таблица1[[#This Row],[толщина\nмм ]],Труба!$F$40:$F$85,Таблица1[[#This Row],[название в \nАСТРА]])","v":0},{"$f":"SUMIFS(Труба!$Z$40:$Z$85,Труба!$B$40:$B$85,Таблица1[[#This Row],[не равно\n(для расчета)]],Труба!$C$40:$C$85,\"=500\",Труба!$D$40:$D$85,Таблица1[[#This Row],[толщина\nмм ]],Труба!$F$40:$F$85,Таблица1[[#This Row],[название в \nАСТРА]])","v":0},{"$f":"Таблица1[[#This Row],[Расход целых]]+Таблица1[[#This Row],[Расход деловых]]","v":0},{"$f":"Таблица1[[#This Row],[Чистый лом целых]]+Таблица1[[#This Row],[Чистый лом деловых]]-Таблица1[[#This Row],[Отход на порезку]]","v":0},{"$f":"Таблица1[[#This Row],[кол-во\n на план\n этого профиля]]*Таблица1[[#This Row],[толщина реза\nмм]]/1000/2*Таблица1[[#This Row],[масса 2м\n(коэф)]]","v":0},{"$f":"SUMIFS(Труба!$AA$40:$AA$85,Труба!$B$40:$B$85,Таблица1[[#This Row],[длина трубы\nмм]],Труба!$C$40:$C$85,\"=500\",Труба!$D$40:$D$85,Таблица1[[#This Row],[толщина\nмм ]],Труба!$F$40:$F$85,Таблица1[[#This Row],[название в \nАСТРА]])","v":0},{"$f":"SUMIFS(Труба!$AA$40:$AA$85,Труба!$B$40:$B$85,Таблица1[[#This Row],[не равно\n(для расчета)]],Труба!$C$40:$C$85,\"=500\",Труба!$D$40:$D$85,Таблица1[[#This Row],[толщина\nмм ]],Труба!$F$40:$F$85,Таблица1[[#This Row],[название в \nАСТРА]])","v":0}]
[null,null,null,{"$f":"SUMIFS(Труба!$I$9:$I$36,Труба!$F$9:$F$36,Таблица1[[#This Row],[название в \nАСТРА]])","v":0},"Круглая","Труба","20х1","Труба 20 чм, 1.0 мм",1,0.98,6000,"<>6000",5,{"$f":"SUMIFS(Труба!$G$40:$G$85,Труба!$B$40:$B$85,Таблица1[[#This Row],[длина трубы\nмм]],Труба!$C$40:$C$85,\"=500\",Труба!$D$40:$D$85,Таблица1[[#This Row],[толщина\nмм ]],Труба!$F$40:$F$85,Таблица1[[#This Row],[название в \nАСТРА]])","v":0},{"$f":"SUMIFS(Труба!$V$40:$V$85,Труба!$B$40:$B$85,Таблица1[[#This Row],[длина трубы\nмм]],Труба!$C$40:$C$85,\"=500\",Труба!$D$40:$D$85,Таблица1[[#This Row],[толщина\nмм ]],Труба!$F$40:$F$85,Таблица1[[#This Row],[название в \nАСТРА]])","v":0},{"$f":"SUMIFS(Труба!$V$40:$V$85,Труба!$B$40:$B$85,Таблица1[[#This Row],[не равно\n(для расчета)]],Труба!$C$40:$C$85,\"=500\",Труба!$D$40:$D$85,Таблица1[[#This Row],[толщина\nмм ]],Труба!$F$40:$F$85,Таблица1[[#This Row],[название в \nАСТРА]])","v":0},{"$f":"Таблица1[[#This Row],[Масса дет. целых]]+Таблица1[[#This Row],[Масса дет. Деловых]]","v":0},{"$f":"SUMIFS(Труба!$M$40:$M$85,Труба!$B$40:$B$85,Таблица1[[#This Row],[длина трубы\nмм]],Труба!$C$40:$C$85,\"=500\",Труба!$D$40:$D$85,Таблица1[[#This Row],[толщина\nмм ]],Труба!$F$40:$F$85,Таблица1[[#This Row],[название в \nАСТРА]])","v":0},{"$f":"SUMIFS(Труба!$M$40:$M$85,Труба!$B$40:$B$85,Таблица1[[#This Row],[не равно\n(для расчета)]],Труба!$C$40:$C$85,\"=500\",Труба!$D$40:$D$85,Таблица1[[#This Row],[толщина\nмм ]],Труба!$F$40:$F$85,Таблица1[[#This Row],[название в \nАСТРА]])","v":0},{"$f":"Таблица1[[#This Row],[Масса целых]]+Таблица1[[#This Row],[Масса деловых]]","v":0},{"$f":"SUMIFS(Труба!$P$40:$P$85,Труба!$B$40:$B$85,Таблица1[[#This Row],[длина трубы\nмм]],Труба!$C$40:$C$85,\"=500\",Труба!$D$40:$D$85,Таблица1[[#This Row],[толщина\nмм ]],Труба!$F$40:$F$85,Таблица1[[#This Row],[название в \nАСТРА]])","v":0},{"$f":"SUMIFS(Труба!$P$40:$P$85,Труба!$B$40:$B$85,Таблица1[[#This Row],[не равно\n(для расчета)]],Труба!$C$40:$C$85,\"=500\",Труба!$D$40:$D$85,Таблица1[[#This Row],[толщина\nмм ]],Труба!$F$40:$F$85,Таблица1[[#This Row],[название в \nАСТРА]])","v":0},{"$f":"Таблица1[[#This Row],[Дел. ост.  Целых]]+Таблица1[[#This Row],[Дел. ост. Деловых]]","v":0},{"$f":"SUMIFS(Труба!$Z$40:$Z$85,Труба!$B$40:$B$85,Таблица1[[#This Row],[длина трубы\nмм]],Труба!$C$40:$C$85,\"=500\",Труба!$D$40:$D$85,Таблица1[[#This Row],[толщина\nмм ]],Труба!$F$40:$F$85,Таблица1[[#This Row],[название в \nАСТРА]])","v":0},{"$f":"SUMIFS(Труба!$Z$40:$Z$85,Труба!$B$40:$B$85,Таблица1[[#This Row],[не равно\n(для расчета)]],Труба!$C$40:$C$85,\"=500\",Труба!$D$40:$D$85,Таблица1[[#This Row],[толщина\nмм ]],Труба!$F$40:$F$85,Таблица1[[#This Row],[название в \nАСТРА]])","v":0},{"$f":"Таблица1[[#This Row],[Расход целых]]+Таблица1[[#This Row],[Расход деловых]]","v":0},{"$f":"Таблица1[[#This Row],[Чистый лом целых]]+Таблица1[[#This Row],[Чистый лом деловых]]-Таблица1[[#This Row],[Отход на порезку]]","v":0},{"$f":"Таблица1[[#This Row],[кол-во\n на план\n этого профиля]]*Таблица1[[#This Row],[толщина реза\nмм]]/1000/2*Таблица1[[#This Row],[масса 2м\n(коэф)]]","v":0},{"$f":"SUMIFS(Труба!$AA$40:$AA$85,Труба!$B$40:$B$85,Таблица1[[#This Row],[длина трубы\nмм]],Труба!$C$40:$C$85,\"=500\",Труба!$D$40:$D$85,Таблица1[[#This Row],[толщина\nмм ]],Труба!$F$40:$F$85,Таблица1[[#This Row],[название в \nАСТРА]])","v":0},{"$f":"SUMIFS(Труба!$AA$40:$AA$85,Труба!$B$40:$B$85,Таблица1[[#This Row],[не равно\n(для расчета)]],Труба!$C$40:$C$85,\"=500\",Труба!$D$40:$D$85,Таблица1[[#This Row],[толщина\nмм ]],Труба!$F$40:$F$85,Таблица1[[#This Row],[название в \nАСТРА]])","v":0}]
[null,null,null,{"$f":"SUMIFS(Труба!$I$9:$I$36,Труба!$F$9:$F$36,Таблица1[[#This Row],[название в \nАСТРА]])","v":0},"Круглая","Труба","25х1,5","Труба 25 чм, 1.5 мм",1.5,1.86,6000,"<>6000",5,{"$f":"SUMIFS(Труба!$G$40:$G$85,Труба!$B$40:$B$85,Таблица1[[#This Row],[длина трубы\nмм]],Труба!$C$40:$C$85,\"=500\",Труба!$D$40:$D$85,Таблица1[[#This Row],[толщина\nмм ]],Труба!$F$40:$F$85,Таблица1[[#This Row],[название в \nАСТРА]])","v":0},{"$f":"SUMIFS(Труба!$V$40:$V$85,Труба!$B$40:$B$85,Таблица1[[#This Row],[длина трубы\nмм]],Труба!$C$40:$C$85,\"=500\",Труба!$D$40:$D$85,Таблица1[[#This Row],[толщина\nмм ]],Труба!$F$40:$F$85,Таблица1[[#This Row],[название в \nАСТРА]])","v":0},{"$f":"SUMIFS(Труба!$V$40:$V$85,Труба!$B$40:$B$85,Таблица1[[#This Row],[не равно\n(для расчета)]],Труба!$C$40:$C$85,\"=500\",Труба!$D$40:$D$85,Таблица1[[#This Row],[толщина\nмм ]],Труба!$F$40:$F$85,Таблица1[[#This Row],[название в \nАСТРА]])","v":0},{"$f":"Таблица1[[#This Row],[Масса дет. целых]]+Таблица1[[#This Row],[Масса дет. Деловых]]","v":0},{"$f":"SUMIFS(Труба!$M$40:$M$85,Труба!$B$40:$B$85,Таблица1[[#This Row],[длина трубы\nмм]],Труба!$C$40:$C$85,\"=500\",Труба!$D$40:$D$85,Таблица1[[#This Row],[толщина\nмм ]],Труба!$F$40:$F$85,Таблица1[[#This Row],[название в \nАСТРА]])","v":0},{"$f":"SUMIFS(Труба!$M$40:$M$85,Труба!$B$40:$B$85,Таблица1[[#This Row],[не равно\n(для расчета)]],Труба!$C$40:$C$85,\"=500\",Труба!$D$40:$D$85,Таблица1[[#This Row],[толщина\nмм ]],Труба!$F$40:$F$85,Таблица1[[#This Row],[название в \nАСТРА]])","v":0},{"$f":"Таблица1[[#This Row],[Масса целых]]+Таблица1[[#This Row],[Масса деловых]]","v":0},{"$f":"SUMIFS(Труба!$P$40:$P$85,Труба!$B$40:$B$85,Таблица1[[#This Row],[длина трубы\nмм]],Труба!$C$40:$C$85,\"=500\",Труба!$D$40:$D$85,Таблица1[[#This Row],[толщина\nмм ]],Труба!$F$40:$F$85,Таблица1[[#This Row],[название в \nАСТРА]])","v":0},{"$f":"SUMIFS(Труба!$P$40:$P$85,Труба!$B$40:$B$85,Таблица1[[#This Row],[не равно\n(для расчета)]],Труба!$C$40:$C$85,\"=500\",Труба!$D$40:$D$85,Таблица1[[#This Row],[толщина\nмм ]],Труба!$F$40:$F$85,Таблица1[[#This Row],[название в \nАСТРА]])","v":0},{"$f":"Таблица1[[#This Row],[Дел. ост.  Целых]]+Таблица1[[#This Row],[Дел. ост. Деловых]]","v":0},{"$f":"SUMIFS(Труба!$Z$40:$Z$85,Труба!$B$40:$B$85,Таблица1[[#This Row],[длина трубы\nмм]],Труба!$C$40:$C$85,\"=500\",Труба!$D$40:$D$85,Таблица1[[#This Row],[толщина\nмм ]],Труба!$F$40:$F$85,Таблица1[[#This Row],[название в \nАСТРА]])","v":0},{"$f":"SUMIFS(Труба!$Z$40:$Z$85,Труба!$B$40:$B$85,Таблица1[[#This Row],[не равно\n(для расчета)]],Труба!$C$40:$C$85,\"=500\",Труба!$D$40:$D$85,Таблица1[[#This Row],[толщина\nмм ]],Труба!$F$40:$F$85,Таблица1[[#This Row],[название в \nАСТРА]])","v":0},{"$f":"Таблица1[[#This Row],[Расход целых]]+Таблица1[[#This Row],[Расход деловых]]","v":0},{"$f":"Таблица1[[#This Row],[Чистый лом целых]]+Таблица1[[#This Row],[Чистый лом деловых]]-Таблица1[[#This Row],[Отход на порезку]]","v":0},{"$f":"Таблица1[[#This Row],[кол-во\n на план\n этого профиля]]*Таблица1[[#This Row],[толщина реза\nмм]]/1000/2*Таблица1[[#This Row],[масса 2м\n(коэф)]]","v":0},{"$f":"SUMIFS(Труба!$AA$40:$AA$85,Труба!$B$40:$B$85,Таблица1[[#This Row],[длина трубы\nмм]],Труба!$C$40:$C$85,\"=500\",Труба!$D$40:$D$85,Таблица1[[#This Row],[толщина\nмм ]],Труба!$F$40:$F$85,Таблица1[[#This Row],[название в \nАСТРА]])","v":0},{"$f":"SUMIFS(Труба!$AA$40:$AA$85,Труба!$B$40:$B$85,Таблица1[[#This Row],[не равно\n(для расчета)]],Труба!$C$40:$C$85,\"=500\",Труба!$D$40:$D$85,Таблица1[[#This Row],[толщина\nмм ]],Труба!$F$40:$F$85,Таблица1[[#This Row],[название в \nАСТРА]])","v":0}]
[null,null,null,{"$f":"SUMIFS(Труба!$I$9:$I$36,Труба!$F$9:$F$36,Таблица1[[#This Row],[название в \nАСТРА]])","v":0},"Круглая","Труба","30х15",2,1.5,1.9179999999999999,6000,"<>6000",5,{"$f":"SUMIFS(Труба!$G$40:$G$85,Труба!$B$40:$B$85,Таблица1[[#This Row],[длина трубы\nмм]],Труба!$C$40:$C$85,\"=500\",Труба!$D$40:$D$85,Таблица1[[#This Row],[толщина\nмм ]],Труба!$F$40:$F$85,Таблица1[[#This Row],[название в \nАСТРА]])","v":0},{"$f":"SUMIFS(Труба!$V$40:$V$85,Труба!$B$40:$B$85,Таблица1[[#This Row],[длина трубы\nмм]],Труба!$C$40:$C$85,\"=500\",Труба!$D$40:$D$85,Таблица1[[#This Row],[толщина\nмм ]],Труба!$F$40:$F$85,Таблица1[[#This Row],[название в \nАСТРА]])","v":0},{"$f":"SUMIFS(Труба!$V$40:$V$85,Труба!$B$40:$B$85,Таблица1[[#This Row],[не равно\n(для расчета)]],Труба!$C$40:$C$85,\"=500\",Труба!$D$40:$D$85,Таблица1[[#This Row],[толщина\nмм ]],Труба!$F$40:$F$85,Таблица1[[#This Row],[название в \nАСТРА]])","v":0},{"$f":"Таблица1[[#This Row],[Масса дет. целых]]+Таблица1[[#This Row],[Масса дет. Деловых]]","v":0},{"$f":"SUMIFS(Труба!$M$40:$M$85,Труба!$B$40:$B$85,Таблица1[[#This Row],[длина трубы\nмм]],Труба!$C$40:$C$85,\"=500\",Труба!$D$40:$D$85,Таблица1[[#This Row],[толщина\nмм ]],Труба!$F$40:$F$85,Таблица1[[#This Row],[название в \nАСТРА]])","v":0},{"$f":"SUMIFS(Труба!$M$40:$M$85,Труба!$B$40:$B$85,Таблица1[[#This Row],[не равно\n(для расчета)]],Труба!$C$40:$C$85,\"=500\",Труба!$D$40:$D$85,Таблица1[[#This Row],[толщина\nмм ]],Труба!$F$40:$F$85,Таблица1[[#This Row],[название в \nАСТРА]])","v":0},{"$f":"Таблица1[[#This Row],[Масса целых]]+Таблица1[[#This Row],[Масса деловых]]","v":0},{"$f":"SUMIFS(Труба!$P$40:$P$85,Труба!$B$40:$B$85,Таблица1[[#This Row],[длина трубы\nмм]],Труба!$C$40:$C$85,\"=500\",Труба!$D$40:$D$85,Таблица1[[#This Row],[толщина\nмм ]],Труба!$F$40:$F$85,Таблица1[[#This Row],[название в \nАСТРА]])","v":0},{"$f":"SUMIFS(Труба!$P$40:$P$85,Труба!$B$40:$B$85,Таблица1[[#This Row],[не равно\n(для расчета)]],Труба!$C$40:$C$85,\"=500\",Труба!$D$40:$D$85,Таблица1[[#This Row],[толщина\nмм ]],Труба!$F$40:$F$85,Таблица1[[#This Row],[название в \nАСТРА]])","v":0},{"$f":"Таблица1[[#This Row],[Дел. ост.  Целых]]+Таблица1[[#This Row],[Дел. ост. Деловых]]","v":0},{"$f":"SUMIFS(Труба!$Z$40:$Z$85,Труба!$B$40:$B$85,Таблица1[[#This Row],[длина трубы\nмм]],Труба!$C$40:$C$85,\"=500\",Труба!$D$40:$D$85,Таблица1[[#This Row],[толщина\nмм ]],Труба!$F$40:$F$85,Таблица1[[#This Row],[название в \nАСТРА]])","v":0},{"$f":"SUMIFS(Труба!$Z$40:$Z$85,Труба!$B$40:$B$85,Таблица1[[#This Row],[не равно\n(для расчета)]],Труба!$C$40:$C$85,\"=500\",Труба!$D$40:$D$85,Таблица1[[#This Row],[толщина\nмм ]],Труба!$F$40:$F$85,Таблица1[[#This Row],[название в \nАСТРА]])","v":0},{"$f":"Таблица1[[#This Row],[Расход целых]]+Таблица1[[#This Row],[Расход деловых]]","v":0},{"$f":"Таблица1[[#This Row],[Чистый лом целых]]+Таблица1[[#This Row],[Чистый лом деловых]]-Таблица1[[#This Row],[Отход на порезку]]","v":0},{"$f":"Таблица1[[#This Row],[кол-во\n на план\n этого профиля]]*Таблица1[[#This Row],[толщина реза\nмм]]/1000/2*Таблица1[[#This Row],[масса 2м\n(коэф)]]","v":0},{"$f":"SUMIFS(Труба!$AA$40:$AA$85,Труба!$B$40:$B$85,Таблица1[[#This Row],[длина трубы\nмм]],Труба!$C$40:$C$85,\"=500\",Труба!$D$40:$D$85,Таблица1[[#This Row],[толщина\nмм ]],Труба!$F$40:$F$85,Таблица1[[#This Row],[название в \nАСТРА]])","v":0},{"$f":"SUMIFS(Труба!$AA$40:$AA$85,Труба!$B$40:$B$85,Таблица1[[#This Row],[не равно\n(для расчета)]],Труба!$C$40:$C$85,\"=500\",Труба!$D$40:$D$85,Таблица1[[#This Row],[толщина\nмм ]],Труба!$F$40:$F$85,Таблица1[[#This Row],[название в \nАСТРА]])","v":0}]
[null,null,null,{"$f":"SUMIFS(Труба!$I$9:$I$36,Труба!$F$9:$F$36,Таблица1[[#This Row],[название в \nАСТРА]])","v":0},"Круглая","Труба","32,5х3",3,3,4.3159999999999998,6000,"<>6000",5,{"$f":"SUMIFS(Труба!$G$40:$G$85,Труба!$B$40:$B$85,Таблица1[[#This Row],[длина трубы\nмм]],Труба!$C$40:$C$85,\"=500\",Труба!$D$40:$D$85,Таблица1[[#This Row],[толщина\nмм ]],Труба!$F$40:$F$85,Таблица1[[#This Row],[название в \nАСТРА]])","v":0},{"$f":"SUMIFS(Труба!$V$40:$V$85,Труба!$B$40:$B$85,Таблица1[[#This Row],[длина трубы\nмм]],Труба!$C$40:$C$85,\"=500\",Труба!$D$40:$D$85,Таблица1[[#This Row],[толщина\nмм ]],Труба!$F$40:$F$85,Таблица1[[#This Row],[название в \nАСТРА]])","v":0},{"$f":"SUMIFS(Труба!$V$40:$V$85,Труба!$B$40:$B$85,Таблица1[[#This Row],[не равно\n(для расчета)]],Труба!$C$40:$C$85,\"=500\",Труба!$D$40:$D$85,Таблица1[[#This Row],[толщина\nмм ]],Труба!$F$40:$F$85,Таблица1[[#This Row],[название в \nАСТРА]])","v":0},{"$f":"Таблица1[[#This Row],[Масса дет. целых]]+Таблица1[[#This Row],[Масса дет. Деловых]]","v":0},{"$f":"SUMIFS(Труба!$M$40:$M$85,Труба!$B$40:$B$85,Таблица1[[#This Row],[длина трубы\nмм]],Труба!$C$40:$C$85,\"=500\",Труба!$D$40:$D$85,Таблица1[[#This Row],[толщина\nмм ]],Труба!$F$40:$F$85,Таблица1[[#This Row],[название в \nАСТРА]])","v":0},{"$f":"SUMIFS(Труба!$M$40:$M$85,Труба!$B$40:$B$85,Таблица1[[#This Row],[не равно\n(для расчета)]],Труба!$C$40:$C$85,\"=500\",Труба!$D$40:$D$85,Таблица1[[#This Row],[толщина\nмм ]],Труба!$F$40:$F$85,Таблица1[[#This Row],[название в \nАСТРА]])","v":0},{"$f":"Таблица1[[#This Row],[Масса целых]]+Таблица1[[#This Row],[Масса деловых]]","v":0},{"$f":"SUMIFS(Труба!$P$40:$P$85,Труба!$B$40:$B$85,Таблица1[[#This Row],[длина трубы\nмм]],Труба!$C$40:$C$85,\"=500\",Труба!$D$40:$D$85,Таблица1[[#This Row],[толщина\nмм ]],Труба!$F$40:$F$85,Таблица1[[#This Row],[название в \nАСТРА]])","v":0},{"$f":"SUMIFS(Труба!$P$40:$P$85,Труба!$B$40:$B$85,Таблица1[[#This Row],[не равно\n(для расчета)]],Труба!$C$40:$C$85,\"=500\",Труба!$D$40:$D$85,Таблица1[[#This Row],[толщина\nмм ]],Труба!$F$40:$F$85,Таблица1[[#This Row],[название в \nАСТРА]])","v":0},{"$f":"Таблица1[[#This Row],[Дел. ост.  Целых]]+Таблица1[[#This Row],[Дел. ост. Деловых]]","v":0},{"$f":"SUMIFS(Труба!$Z$40:$Z$85,Труба!$B$40:$B$85,Таблица1[[#This Row],[длина трубы\nмм]],Труба!$C$40:$C$85,\"=500\",Труба!$D$40:$D$85,Таблица1[[#This Row],[толщина\nмм ]],Труба!$F$40:$F$85,Таблица1[[#This Row],[название в \nАСТРА]])","v":0},{"$f":"SUMIFS(Труба!$Z$40:$Z$85,Труба!$B$40:$B$85,Таблица1[[#This Row],[не равно\n(для расчета)]],Труба!$C$40:$C$85,\"=500\",Труба!$D$40:$D$85,Таблица1[[#This Row],[толщина\nмм ]],Труба!$F$40:$F$85,Таблица1[[#This Row],[название в \nАСТРА]])","v":0},{"$f":"Таблица1[[#This Row],[Расход целых]]+Таблица1[[#This Row],[Расход деловых]]","v":0},{"$f":"Таблица1[[#This Row],[Чистый лом целых]]+Таблица1[[#This Row],[Чистый лом деловых]]-Таблица1[[#This Row],[Отход на порезку]]","v":0},{"$f":"Таблица1[[#This Row],[кол-во\n на план\n этого профиля]]*Таблица1[[#This Row],[толщина реза\nмм]]/1000/2*Таблица1[[#This Row],[масса 2м\n(коэф)]]","v":0},{"$f":"SUMIFS(Труба!$AA$40:$AA$85,Труба!$B$40:$B$85,Таблица1[[#This Row],[длина трубы\nмм]],Труба!$C$40:$C$85,\"=500\",Труба!$D$40:$D$85,Таблица1[[#This Row],[толщина\nмм ]],Труба!$F$40:$F$85,Таблица1[[#This Row],[название в \nАСТРА]])","v":0},{"$f":"SUMIFS(Труба!$AA$40:$AA$85,Труба!$B$40:$B$85,Таблица1[[#This Row],[не равно\n(для расчета)]],Труба!$C$40:$C$85,\"=500\",Труба!$D$40:$D$85,Таблица1[[#This Row],[толщина\nмм ]],Труба!$F$40:$F$85,Таблица1[[#This Row],[название в \nАСТРА]])","v":0}]
[null,null,null,{"$f":"SUMIFS(Труба!$I$9:$I$36,Труба!$F$9:$F$36,Таблица1[[#This Row],[название в \nАСТРА]])","v":0},"Круглая","Труба","50х1.2","Труба 50 чм, 1.2 мм",1.2,2.88,6000,"<>6000",5,{"$f":"SUMIFS(Труба!$G$40:$G$85,Труба!$B$40:$B$85,Таблица1[[#This Row],[длина трубы\nмм]],Труба!$C$40:$C$85,\"=500\",Труба!$D$40:$D$85,Таблица1[[#This Row],[толщина\nмм ]],Труба!$F$40:$F$85,Таблица1[[#This Row],[название в \nАСТРА]])","v":0},{"$f":"SUMIFS(Труба!$V$40:$V$85,Труба!$B$40:$B$85,Таблица1[[#This Row],[длина трубы\nмм]],Труба!$C$40:$C$85,\"=500\",Труба!$D$40:$D$85,Таблица1[[#This Row],[толщина\nмм ]],Труба!$F$40:$F$85,Таблица1[[#This Row],[название в \nАСТРА]])","v":0},{"$f":"SUMIFS(Труба!$V$40:$V$85,Труба!$B$40:$B$85,Таблица1[[#This Row],[не равно\n(для расчета)]],Труба!$C$40:$C$85,\"=500\",Труба!$D$40:$D$85,Таблица1[[#This Row],[толщина\nмм ]],Труба!$F$40:$F$85,Таблица1[[#This Row],[название в \nАСТРА]])","v":0},{"$f":"Таблица1[[#This Row],[Масса дет. целых]]+Таблица1[[#This Row],[Масса дет. Деловых]]","v":0},{"$f":"SUMIFS(Труба!$M$40:$M$85,Труба!$B$40:$B$85,Таблица1[[#This Row],[длина трубы\nмм]],Труба!$C$40:$C$85,\"=500\",Труба!$D$40:$D$85,Таблица1[[#This Row],[толщина\nмм ]],Труба!$F$40:$F$85,Таблица1[[#This Row],[название в \nАСТРА]])","v":0},{"$f":"SUMIFS(Труба!$M$40:$M$85,Труба!$B$40:$B$85,Таблица1[[#This Row],[не равно\n(для расчета)]],Труба!$C$40:$C$85,\"=500\",Труба!$D$40:$D$85,Таблица1[[#This Row],[толщина\nмм ]],Труба!$F$40:$F$85,Таблица1[[#This Row],[название в \nАСТРА]])","v":0},{"$f":"Таблица1[[#This Row],[Масса целых]]+Таблица1[[#This Row],[Масса деловых]]","v":0},{"$f":"SUMIFS(Труба!$P$40:$P$85,Труба!$B$40:$B$85,Таблица1[[#This Row],[длина трубы\nмм]],Труба!$C$40:$C$85,\"=500\",Труба!$D$40:$D$85,Таблица1[[#This Row],[толщина\nмм ]],Труба!$F$40:$F$85,Таблица1[[#This Row],[название в \nАСТРА]])","v":0},{"$f":"SUMIFS(Труба!$P$40:$P$85,Труба!$B$40:$B$85,Таблица1[[#This Row],[не равно\n(для расчета)]],Труба!$C$40:$C$85,\"=500\",Труба!$D$40:$D$85,Таблица1[[#This Row],[толщина\nмм ]],Труба!$F$40:$F$85,Таблица1[[#This Row],[название в \nАСТРА]])","v":0},{"$f":"Таблица1[[#This Row],[Дел. ост.  Целых]]+Таблица1[[#This Row],[Дел. ост. Деловых]]","v":0},{"$f":"SUMIFS(Труба!$Z$40:$Z$85,Труба!$B$40:$B$85,Таблица1[[#This Row],[длина трубы\nмм]],Труба!$C$40:$C$85,\"=500\",Труба!$D$40:$D$85,Таблица1[[#This Row],[толщина\nмм ]],Труба!$F$40:$F$85,Таблица1[[#This Row],[название в \nАСТРА]])","v":0},{"$f":"SUMIFS(Труба!$Z$40:$Z$85,Труба!$B$40:$B$85,Таблица1[[#This Row],[не равно\n(для расчета)]],Труба!$C$40:$C$85,\"=500\",Труба!$D$40:$D$85,Таблица1[[#This Row],[толщина\nмм ]],Труба!$F$40:$F$85,Таблица1[[#This Row],[название в \nАСТРА]])","v":0},{"$f":"Таблица1[[#This Row],[Расход целых]]+Таблица1[[#This Row],[Расход деловых]]","v":0},{"$f":"Таблица1[[#This Row],[Чистый лом целых]]+Таблица1[[#This Row],[Чистый лом деловых]]-Таблица1[[#This Row],[Отход на порезку]]","v":0},{"$f":"Таблица1[[#This Row],[кол-во\n на план\n этого профиля]]*Таблица1[[#This Row],[толщина реза\nмм]]/1000/2*Таблица1[[#This Row],[масса 2м\n(коэф)]]","v":0},{"$f":"SUMIFS(Труба!$AA$40:$AA$85,Труба!$B$40:$B$85,Таблица1[[#This Row],[длина трубы\nмм]],Труба!$C$40:$C$85,\"=500\",Труба!$D$40:$D$85,Таблица1[[#This Row],[толщина\nмм ]],Труба!$F$40:$F$85,Таблица1[[#This Row],[название в \nАСТРА]])","v":0},{"$f":"SUMIFS(Труба!$AA$40:$AA$85,Труба!$B$40:$B$85,Таблица1[[#This Row],[не равно\n(для расчета)]],Труба!$C$40:$C$85,\"=500\",Труба!$D$40:$D$85,Таблица1[[#This Row],[толщина\nмм ]],Труба!$F$40:$F$85,Таблица1[[#This Row],[название в \nАСТРА]])","v":0}]
[null,null,null,{"$f":"SUMIFS(Труба!$I$9:$I$36,Труба!$F$9:$F$36,Таблица1[[#This Row],[название в \nАСТРА]])","v":0},"Круглая","Труба","ДУ15",4,3,2.3199999999999998,6000,"<>6000",5,{"$f":"SUMIFS(Труба!$G$40:$G$85,Труба!$B$40:$B$85,Таблица1[[#This Row],[длина трубы\nмм]],Труба!$C$40:$C$85,\"=500\",Труба!$D$40:$D$85,Таблица1[[#This Row],[толщина\nмм ]],Труба!$F$40:$F$85,Таблица1[[#This Row],[название в \nАСТРА]])","v":0},{"$f":"SUMIFS(Труба!$V$40:$V$85,Труба!$B$40:$B$85,Таблица1[[#This Row],[длина трубы\nмм]],Труба!$C$40:$C$85,\"=500\",Труба!$D$40:$D$85,Таблица1[[#This Row],[толщина\nмм ]],Труба!$F$40:$F$85,Таблица1[[#This Row],[название в \nАСТРА]])","v":0},{"$f":"SUMIFS(Труба!$V$40:$V$85,Труба!$B$40:$B$85,Таблица1[[#This Row],[не равно\n(для расчета)]],Труба!$C$40:$C$85,\"=500\",Труба!$D$40:$D$85,Таблица1[[#This Row],[толщина\nмм ]],Труба!$F$40:$F$85,Таблица1[[#This Row],[название в \nАСТРА]])","v":0},{"$f":"Таблица1[[#This Row],[Масса дет. целых]]+Таблица1[[#This Row],[Масса дет. Деловых]]","v":0},{"$f":"SUMIFS(Труба!$M$40:$M$85,Труба!$B$40:$B$85,Таблица1[[#This Row],[длина трубы\nмм]],Труба!$C$40:$C$85,\"=500\",Труба!$D$40:$D$85,Таблица1[[#This Row],[толщина\nмм ]],Труба!$F$40:$F$85,Таблица1[[#This Row],[название в \nАСТРА]])","v":0},{"$f":"SUMIFS(Труба!$M$40:$M$85,Труба!$B$40:$B$85,Таблица1[[#This Row],[не равно\n(для расчета)]],Труба!$C$40:$C$85,\"=500\",Труба!$D$40:$D$85,Таблица1[[#This Row],[толщина\nмм ]],Труба!$F$40:$F$85,Таблица1[[#This Row],[название в \nАСТРА]])","v":0},{"$f":"Таблица1[[#This Row],[Масса целых]]+Таблица1[[#This Row],[Масса деловых]]","v":0},{"$f":"SUMIFS(Труба!$P$40:$P$85,Труба!$B$40:$B$85,Таблица1[[#This Row],[длина трубы\nмм]],Труба!$C$40:$C$85,\"=500\",Труба!$D$40:$D$85,Таблица1[[#This Row],[толщина\nмм ]],Труба!$F$40:$F$85,Таблица1[[#This Row],[название в \nАСТРА]])","v":0},{"$f":"SUMIFS(Труба!$P$40:$P$85,Труба!$B$40:$B$85,Таблица1[[#This Row],[не равно\n(для расчета)]],Труба!$C$40:$C$85,\"=500\",Труба!$D$40:$D$85,Таблица1[[#This Row],[толщина\nмм ]],Труба!$F$40:$F$85,Таблица1[[#This Row],[название в \nАСТРА]])","v":0},{"$f":"Таблица1[[#This Row],[Дел. ост.  Целых]]+Таблица1[[#This Row],[Дел. ост. Деловых]]","v":0},{"$f":"SUMIFS(Труба!$Z$40:$Z$85,Труба!$B$40:$B$85,Таблица1[[#This Row],[длина трубы\nмм]],Труба!$C$40:$C$85,\"=500\",Труба!$D$40:$D$85,Таблица1[[#This Row],[толщина\nмм ]],Труба!$F$40:$F$85,Таблица1[[#This Row],[название в \nАСТРА]])","v":0},{"$f":"SUMIFS(Труба!$Z$40:$Z$85,Труба!$B$40:$B$85,Таблица1[[#This Row],[не равно\n(для расчета)]],Труба!$C$40:$C$85,\"=500\",Труба!$D$40:$D$85,Таблица1[[#This Row],[толщина\nмм ]],Труба!$F$40:$F$85,Таблица1[[#This Row],[название в \nАСТРА]])","v":0},{"$f":"Таблица1[[#This Row],[Расход целых]]+Таблица1[[#This Row],[Расход деловых]]","v":0},{"$f":"Таблица1[[#This Row],[Чистый лом целых]]+Таблица1[[#This Row],[Чистый лом деловых]]-Таблица1[[#This Row],[Отход на порезку]]","v":0},{"$f":"Таблица1[[#This Row],[кол-во\n на план\n этого профиля]]*Таблица1[[#This Row],[толщина реза\nмм]]/1000/2*Таблица1[[#This Row],[масса 2м\n(коэф)]]","v":0},{"$f":"SUMIFS(Труба!$AA$40:$AA$85,Труба!$B$40:$B$85,Таблица1[[#This Row],[длина трубы\nмм]],Труба!$C$40:$C$85,\"=500\",Труба!$D$40:$D$85,Таблица1[[#This Row],[толщина\nмм ]],Труба!$F$40:$F$85,Таблица1[[#This Row],[название в \nАСТРА]])","v":0},{"$f":"SUMIFS(Труба!$AA$40:$AA$85,Труба!$B$40:$B$85,Таблица1[[#This Row],[не равно\n(для расчета)]],Труба!$C$40:$C$85,\"=500\",Труба!$D$40:$D$85,Таблица1[[#This Row],[толщина\nмм ]],Труба!$F$40:$F$85,Таблица1[[#This Row],[название в \nАСТРА]])","v":0}]
[null,null,null,{"$f":"SUMIFS(Труба!$I$9:$I$36,Труба!$F$9:$F$36,Таблица1[[#This Row],[название в \nАСТРА]])","v":0},"Пруток","Пруток",10,5,{"$f":"Таблица1[[#This Row],[Размер\nБхМхТ]]","v":10},null,3000,"<>3000",5,{"$f":"SUMIFS(Труба!$G$40:$G$85,Труба!$B$40:$B$85,Таблица1[[#This Row],[длина трубы\nмм]],Труба!$C$40:$C$85,\"=500\",Труба!$D$40:$D$85,Таблица1[[#This Row],[толщина\nмм ]],Труба!$F$40:$F$85,Таблица1[[#This Row],[название в \nАСТРА]])","v":0},{"$f":"SUMIFS(Труба!$V$40:$V$85,Труба!$B$40:$B$85,Таблица1[[#This Row],[длина трубы\nмм]],Труба!$C$40:$C$85,\"=500\",Труба!$D$40:$D$85,Таблица1[[#This Row],[толщина\nмм ]],Труба!$F$40:$F$85,Таблица1[[#This Row],[название в \nАСТРА]])","v":0},{"$f":"SUMIFS(Труба!$V$40:$V$85,Труба!$B$40:$B$85,Таблица1[[#This Row],[не равно\n(для расчета)]],Труба!$C$40:$C$85,\"=500\",Труба!$D$40:$D$85,Таблица1[[#This Row],[толщина\nмм ]],Труба!$F$40:$F$85,Таблица1[[#This Row],[название в \nАСТРА]])","v":0},{"$f":"Таблица1[[#This Row],[Масса дет. целых]]+Таблица1[[#This Row],[Масса дет. Деловых]]","v":0},{"$f":"SUMIFS(Труба!$M$40:$M$85,Труба!$B$40:$B$85,Таблица1[[#This Row],[длина трубы\nмм]],Труба!$C$40:$C$85,\"=500\",Труба!$D$40:$D$85,Таблица1[[#This Row],[толщина\nмм ]],Труба!$F$40:$F$85,Таблица1[[#This Row],[название в \nАСТРА]])","v":0},{"$f":"SUMIFS(Труба!$M$40:$M$85,Труба!$B$40:$B$85,Таблица1[[#This Row],[не равно\n(для расчета)]],Труба!$C$40:$C$85,\"=500\",Труба!$D$40:$D$85,Таблица1[[#This Row],[толщина\nмм ]],Труба!$F$40:$F$85,Таблица1[[#This Row],[название в \nАСТРА]])","v":0},{"$f":"Таблица1[[#This Row],[Масса целых]]+Таблица1[[#This Row],[Масса деловых]]","v":0},{"$f":"SUMIFS(Труба!$P$40:$P$85,Труба!$B$40:$B$85,Таблица1[[#This Row],[длина трубы\nмм]],Труба!$C$40:$C$85,\"=500\",Труба!$D$40:$D$85,Таблица1[[#This Row],[толщина\nмм ]],Труба!$F$40:$F$85,Таблица1[[#This Row],[название в \nАСТРА]])","v":0},{"$f":"SUMIFS(Труба!$P$40:$P$85,Труба!$B$40:$B$85,Таблица1[[#This Row],[не равно\n(для расчета)]],Труба!$C$40:$C$85,\"=500\",Труба!$D$40:$D$85,Таблица1[[#This Row],[толщина\nмм ]],Труба!$F$40:$F$85,Таблица1[[#This Row],[название в \nАСТРА]])","v":0},{"$f":"Таблица1[[#This Row],[Дел. ост.  Целых]]+Таблица1[[#This Row],[Дел. ост. Деловых]]","v":0},{"$f":"SUMIFS(Труба!$Z$40:$Z$85,Труба!$B$40:$B$85,Таблица1[[#This Row],[длина трубы\nмм]],Труба!$C$40:$C$85,\"=500\",Труба!$D$40:$D$85,Таблица1[[#This Row],[толщина\nмм ]],Труба!$F$40:$F$85,Таблица1[[#This Row],[название в \nАСТРА]])","v":0},{"$f":"SUMIFS(Труба!$Z$40:$Z$85,Труба!$B$40:$B$85,Таблица1[[#This Row],[не равно\n(для расчета)]],Труба!$C$40:$C$85,\"=500\",Труба!$D$40:$D$85,Таблица1[[#This Row],[толщина\nмм ]],Труба!$F$40:$F$85,Таблица1[[#This Row],[название в \nАСТРА]])","v":0},{"$f":"Таблица1[[#This Row],[Расход целых]]+Таблица1[[#This Row],[Расход деловых]]","v":0},{"$f":"Таблица1[[#This Row],[Чистый лом целых]]+Таблица1[[#This Row],[Чистый лом деловых]]-Таблица1[[#This Row],[Отход на порезку]]","v":0},{"$f":"Таблица1[[#This Row],[кол-во\n на план\n этого профиля]]*Таблица1[[#This Row],[толщина реза\nмм]]/1000/2*Таблица1[[#This Row],[масса 2м\n(коэф)]]","v":0},{"$f":"SUMIFS(Труба!$AA$40:$AA$85,Труба!$B$40:$B$85,Таблица1[[#This Row],[длина трубы\nмм]],Труба!$C$40:$C$85,\"=500\",Труба!$D$40:$D$85,Таблица1[[#This Row],[толщина\nмм ]],Труба!$F$40:$F$85,Таблица1[[#This Row],[название в \nАСТРА]])","v":0},{"$f":"SUMIFS(Труба!$AA$40:$AA$85,Труба!$B$40:$B$85,Таблица1[[#This Row],[не равно\n(для расчета)]],Труба!$C$40:$C$85,\"=500\",Труба!$D$40:$D$85,Таблица1[[#This Row],[толщина\nмм ]],Труба!$F$40:$F$85,Таблица1[[#This Row],[название в \nАСТРА]])","v":0}]
[null,null,null,{"$f":"SUMIFS(Труба!$I$9:$I$36,Труба!$F$9:$F$36,Таблица1[[#This Row],[название в \nАСТРА]])","v":0},"Пруток","Пруток",11,6,{"$f":"Таблица1[[#This Row],[Размер\nБхМхТ]]","v":11},null,3000,"<>3000",5,{"$f":"SUMIFS(Труба!$G$40:$G$85,Труба!$B$40:$B$85,Таблица1[[#This Row],[длина трубы\nмм]],Труба!$C$40:$C$85,\"=500\",Труба!$D$40:$D$85,Таблица1[[#This Row],[толщина\nмм ]],Труба!$F$40:$F$85,Таблица1[[#This Row],[название в \nАСТРА]])","v":0},{"$f":"SUMIFS(Труба!$V$40:$V$85,Труба!$B$40:$B$85,Таблица1[[#This Row],[длина трубы\nмм]],Труба!$C$40:$C$85,\"=500\",Труба!$D$40:$D$85,Таблица1[[#This Row],[толщина\nмм ]],Труба!$F$40:$F$85,Таблица1[[#This Row],[название в \nАСТРА]])","v":0},{"$f":"SUMIFS(Труба!$V$40:$V$85,Труба!$B$40:$B$85,Таблица1[[#This Row],[не равно\n(для расчета)]],Труба!$C$40:$C$85,\"=500\",Труба!$D$40:$D$85,Таблица1[[#This Row],[толщина\nмм ]],Труба!$F$40:$F$85,Таблица1[[#This Row],[название в \nАСТРА]])","v":0},{"$f":"Таблица1[[#This Row],[Масса дет. целых]]+Таблица1[[#This Row],[Масса дет. Деловых]]","v":0},{"$f":"SUMIFS(Труба!$M$40:$M$85,Труба!$B$40:$B$85,Таблица1[[#This Row],[длина трубы\nмм]],Труба!$C$40:$C$85,\"=500\",Труба!$D$40:$D$85,Таблица1[[#This Row],[толщина\nмм ]],Труба!$F$40:$F$85,Таблица1[[#This Row],[название в \nАСТРА]])","v":0},{"$f":"SUMIFS(Труба!$M$40:$M$85,Труба!$B$40:$B$85,Таблица1[[#This Row],[не равно\n(для расчета)]],Труба!$C$40:$C$85,\"=500\",Труба!$D$40:$D$85,Таблица1[[#This Row],[толщина\nмм ]],Труба!$F$40:$F$85,Таблица1[[#This Row],[название в \nАСТРА]])","v":0},{"$f":"Таблица1[[#This Row],[Масса целых]]+Таблица1[[#This Row],[Масса деловых]]","v":0},{"$f":"SUMIFS(Труба!$P$40:$P$85,Труба!$B$40:$B$85,Таблица1[[#This Row],[длина трубы\nмм]],Труба!$C$40:$C$85,\"=500\",Труба!$D$40:$D$85,Таблица1[[#This Row],[толщина\nмм ]],Труба!$F$40:$F$85,Таблица1[[#This Row],[название в \nАСТРА]])","v":0},{"$f":"SUMIFS(Труба!$P$40:$P$85,Труба!$B$40:$B$85,Таблица1[[#This Row],[не равно\n(для расчета)]],Труба!$C$40:$C$85,\"=500\",Труба!$D$40:$D$85,Таблица1[[#This Row],[толщина\nмм ]],Труба!$F$40:$F$85,Таблица1[[#This Row],[название в \nАСТРА]])","v":0},{"$f":"Таблица1[[#This Row],[Дел. ост.  Целых]]+Таблица1[[#This Row],[Дел. ост. Деловых]]","v":0},{"$f":"SUMIFS(Труба!$Z$40:$Z$85,Труба!$B$40:$B$85,Таблица1[[#This Row],[длина трубы\nмм]],Труба!$C$40:$C$85,\"=500\",Труба!$D$40:$D$85,Таблица1[[#This Row],[толщина\nмм ]],Труба!$F$40:$F$85,Таблица1[[#This Row],[название в \nАСТРА]])","v":0},{"$f":"SUMIFS(Труба!$Z$40:$Z$85,Труба!$B$40:$B$85,Таблица1[[#This Row],[не равно\n(для расчета)]],Труба!$C$40:$C$85,\"=500\",Труба!$D$40:$D$85,Таблица1[[#This Row],[толщина\nмм ]],Труба!$F$40:$F$85,Таблица1[[#This Row],[название в \nАСТРА]])","v":0},{"$f":"Таблица1[[#This Row],[Расход целых]]+Таблица1[[#This Row],[Расход деловых]]","v":0},{"$f":"Таблица1[[#This Row],[Чистый лом целых]]+Таблица1[[#This Row],[Чистый лом деловых]]-Таблица1[[#This Row],[Отход на порезку]]","v":0},{"$f":"Таблица1[[#This Row],[кол-во\n на план\n этого профиля]]*Таблица1[[#This Row],[толщина реза\nмм]]/1000/2*Таблица1[[#This Row],[масса 2м\n(коэф)]]","v":0},{"$f":"SUMIFS(Труба!$AA$40:$AA$85,Труба!$B$40:$B$85,Таблица1[[#This Row],[длина трубы\nмм]],Труба!$C$40:$C$85,\"=500\",Труба!$D$40:$D$85,Таблица1[[#This Row],[толщина\nмм ]],Труба!$F$40:$F$85,Таблица1[[#This Row],[название в \nАСТРА]])","v":0},{"$f":"SUMIFS(Труба!$AA$40:$AA$85,Труба!$B$40:$B$85,Таблица1[[#This Row],[не равно\n(для расчета)]],Труба!$C$40:$C$85,\"=500\",Труба!$D$40:$D$85,Таблица1[[#This Row],[толщина\nмм ]],Труба!$F$40:$F$85,Таблица1[[#This Row],[название в \nАСТРА]])","v":0}]
[null,null,null,{"$f":"SUMIFS(Труба!$I$9:$I$36,Труба!$F$9:$F$36,Таблица1[[#This Row],[название в \nАСТРА]])","v":0},"Пруток","Пруток",12,7,{"$f":"Таблица1[[#This Row],[Размер\nБхМхТ]]","v":12},null,3000,"<>3000",5,{"$f":"SUMIFS(Труба!$G$40:$G$85,Труба!$B$40:$B$85,Таблица1[[#This Row],[длина трубы\nмм]],Труба!$C$40:$C$85,\"=500\",Труба!$D$40:$D$85,Таблица1[[#This Row],[толщина\nмм ]],Труба!$F$40:$F$85,Таблица1[[#This Row],[название в \nАСТРА]])","v":0},{"$f":"SUMIFS(Труба!$V$40:$V$85,Труба!$B$40:$B$85,Таблица1[[#This Row],[длина трубы\nмм]],Труба!$C$40:$C$85,\"=500\",Труба!$D$40:$D$85,Таблица1[[#This Row],[толщина\nмм ]],Труба!$F$40:$F$85,Таблица1[[#This Row],[название в \nАСТРА]])","v":0},{"$f":"SUMIFS(Труба!$V$40:$V$85,Труба!$B$40:$B$85,Таблица1[[#This Row],[не равно\n(для расчета)]],Труба!$C$40:$C$85,\"=500\",Труба!$D$40:$D$85,Таблица1[[#This Row],[толщина\nмм ]],Труба!$F$40:$F$85,Таблица1[[#This Row],[название в \nАСТРА]])","v":0},{"$f":"Таблица1[[#This Row],[Масса дет. целых]]+Таблица1[[#This Row],[Масса дет. Деловых]]","v":0},{"$f":"SUMIFS(Труба!$M$40:$M$85,Труба!$B$40:$B$85,Таблица1[[#This Row],[длина трубы\nмм]],Труба!$C$40:$C$85,\"=500\",Труба!$D$40:$D$85,Таблица1[[#This Row],[толщина\nмм ]],Труба!$F$40:$F$85,Таблица1[[#This Row],[название в \nАСТРА]])","v":0},{"$f":"SUMIFS(Труба!$M$40:$M$85,Труба!$B$40:$B$85,Таблица1[[#This Row],[не равно\n(для расчета)]],Труба!$C$40:$C$85,\"=500\",Труба!$D$40:$D$85,Таблица1[[#This Row],[толщина\nмм ]],Труба!$F$40:$F$85,Таблица1[[#This Row],[название в \nАСТРА]])","v":0},{"$f":"Таблица1[[#This Row],[Масса целых]]+Таблица1[[#This Row],[Масса деловых]]","v":0},{"$f":"SUMIFS(Труба!$P$40:$P$85,Труба!$B$40:$B$85,Таблица1[[#This Row],[длина трубы\nмм]],Труба!$C$40:$C$85,\"=500\",Труба!$D$40:$D$85,Таблица1[[#This Row],[толщина\nмм ]],Труба!$F$40:$F$85,Таблица1[[#This Row],[название в \nАСТРА]])","v":0},{"$f":"SUMIFS(Труба!$P$40:$P$85,Труба!$B$40:$B$85,Таблица1[[#This Row],[не равно\n(для расчета)]],Труба!$C$40:$C$85,\"=500\",Труба!$D$40:$D$85,Таблица1[[#This Row],[толщина\nмм ]],Труба!$F$40:$F$85,Таблица1[[#This Row],[название в \nАСТРА]])","v":0},{"$f":"Таблица1[[#This Row],[Дел. ост.  Целых]]+Таблица1[[#This Row],[Дел. ост. Деловых]]","v":0},{"$f":"SUMIFS(Труба!$Z$40:$Z$85,Труба!$B$40:$B$85,Таблица1[[#This Row],[длина трубы\nмм]],Труба!$C$40:$C$85,\"=500\",Труба!$D$40:$D$85,Таблица1[[#This Row],[толщина\nмм ]],Труба!$F$40:$F$85,Таблица1[[#This Row],[название в \nАСТРА]])","v":0},{"$f":"SUMIFS(Труба!$Z$40:$Z$85,Труба!$B$40:$B$85,Таблица1[[#This Row],[не равно\n(для расчета)]],Труба!$C$40:$C$85,\"=500\",Труба!$D$40:$D$85,Таблица1[[#This Row],[толщина\nмм ]],Труба!$F$40:$F$85,Таблица1[[#This Row],[название в \nАСТРА]])","v":0},{"$f":"Таблица1[[#This Row],[Расход целых]]+Таблица1[[#This Row],[Расход деловых]]","v":0},{"$f":"Таблица1[[#This Row],[Чистый лом целых]]+Таблица1[[#This Row],[Чистый лом деловых]]-Таблица1[[#This Row],[Отход на порезку]]","v":0},{"$f":"Таблица1[[#This Row],[кол-во\n на план\n этого профиля]]*Таблица1[[#This Row],[толщина реза\nмм]]/1000/2*Таблица1[[#This Row],[масса 2м\n(коэф)]]","v":0},{"$f":"SUMIFS(Труба!$AA$40:$AA$85,Труба!$B$40:$B$85,Таблица1[[#This Row],[длина трубы\nмм]],Труба!$C$40:$C$85,\"=500\",Труба!$D$40:$D$85,Таблица1[[#This Row],[толщина\nмм ]],Труба!$F$40:$F$85,Таблица1[[#This Row],[название в \nАСТРА]])","v":0},{"$f":"SUMIFS(Труба!$AA$40:$AA$85,Труба!$B$40:$B$85,Таблица1[[#This Row],[не равно\n(для расчета)]],Труба!$C$40:$C$85,\"=500\",Труба!$D$40:$D$85,Таблица1[[#This Row],[толщина\nмм ]],Труба!$F$40:$F$85,Таблица1[[#This Row],[название в \nАСТРА]])","v":0}]
[null,null,null,{"$f":"SUMIFS(Труба!$I$9:$I$36,Труба!$F$9:$F$36,Таблица1[[#This Row],[название в \nАСТРА]])","v":0},"Пруток","Пруток",13,8,{"$f":"Таблица1[[#This Row],[Размер\nБхМхТ]]","v":13},null,3000,"<>3000",5,{"$f":"SUMIFS(Труба!$G$40:$G$85,Труба!$B$40:$B$85,Таблица1[[#This Row],[длина трубы\nмм]],Труба!$C$40:$C$85,\"=500\",Труба!$D$40:$D$85,Таблица1[[#This Row],[толщина\nмм ]],Труба!$F$40:$F$85,Таблица1[[#This Row],[название в \nАСТРА]])","v":0},{"$f":"SUMIFS(Труба!$V$40:$V$85,Труба!$B$40:$B$85,Таблица1[[#This Row],[длина трубы\nмм]],Труба!$C$40:$C$85,\"=500\",Труба!$D$40:$D$85,Таблица1[[#This Row],[толщина\nмм ]],Труба!$F$40:$F$85,Таблица1[[#This Row],[название в \nАСТРА]])","v":0},{"$f":"SUMIFS(Труба!$V$40:$V$85,Труба!$B$40:$B$85,Таблица1[[#This Row],[не равно\n(для расчета)]],Труба!$C$40:$C$85,\"=500\",Труба!$D$40:$D$85,Таблица1[[#This Row],[толщина\nмм ]],Труба!$F$40:$F$85,Таблица1[[#This Row],[название в \nАСТРА]])","v":0},{"$f":"Таблица1[[#This Row],[Масса дет. целых]]+Таблица1[[#This Row],[Масса дет. Деловых]]","v":0},{"$f":"SUMIFS(Труба!$M$40:$M$85,Труба!$B$40:$B$85,Таблица1[[#This Row],[длина трубы\nмм]],Труба!$C$40:$C$85,\"=500\",Труба!$D$40:$D$85,Таблица1[[#This Row],[толщина\nмм ]],Труба!$F$40:$F$85,Таблица1[[#This Row],[название в \nАСТРА]])","v":0},{"$f":"SUMIFS(Труба!$M$40:$M$85,Труба!$B$40:$B$85,Таблица1[[#This Row],[не равно\n(для расчета)]],Труба!$C$40:$C$85,\"=500\",Труба!$D$40:$D$85,Таблица1[[#This Row],[толщина\nмм ]],Труба!$F$40:$F$85,Таблица1[[#This Row],[название в \nАСТРА]])","v":0},{"$f":"Таблица1[[#This Row],[Масса целых]]+Таблица1[[#This Row],[Масса деловых]]","v":0},{"$f":"SUMIFS(Труба!$P$40:$P$85,Труба!$B$40:$B$85,Таблица1[[#This Row],[длина трубы\nмм]],Труба!$C$40:$C$85,\"=500\",Труба!$D$40:$D$85,Таблица1[[#This Row],[толщина\nмм ]],Труба!$F$40:$F$85,Таблица1[[#This Row],[название в \nАСТРА]])","v":0},{"$f":"SUMIFS(Труба!$P$40:$P$85,Труба!$B$40:$B$85,Таблица1[[#This Row],[не равно\n(для расчета)]],Труба!$C$40:$C$85,\"=500\",Труба!$D$40:$D$85,Таблица1[[#This Row],[толщина\nмм ]],Труба!$F$40:$F$85,Таблица1[[#This Row],[название в \nАСТРА]])","v":0},{"$f":"Таблица1[[#This Row],[Дел. ост.  Целых]]+Таблица1[[#This Row],[Дел. ост. Деловых]]","v":0},{"$f":"SUMIFS(Труба!$Z$40:$Z$85,Труба!$B$40:$B$85,Таблица1[[#This Row],[длина трубы\nмм]],Труба!$C$40:$C$85,\"=500\",Труба!$D$40:$D$85,Таблица1[[#This Row],[толщина\nмм ]],Труба!$F$40:$F$85,Таблица1[[#This Row],[название в \nАСТРА]])","v":0},{"$f":"SUMIFS(Труба!$Z$40:$Z$85,Труба!$B$40:$B$85,Таблица1[[#This Row],[не равно\n(для расчета)]],Труба!$C$40:$C$85,\"=500\",Труба!$D$40:$D$85,Таблица1[[#This Row],[толщина\nмм ]],Труба!$F$40:$F$85,Таблица1[[#This Row],[название в \nАСТРА]])","v":0},{"$f":"Таблица1[[#This Row],[Расход целых]]+Таблица1[[#This Row],[Расход деловых]]","v":0},{"$f":"Таблица1[[#This Row],[Чистый лом целых]]+Таблица1[[#This Row],[Чистый лом деловых]]-Таблица1[[#This Row],[Отход на порезку]]","v":0},{"$f":"Таблица1[[#This Row],[кол-во\n на план\n этого профиля]]*Таблица1[[#This Row],[толщина реза\nмм]]/1000/2*Таблица1[[#This Row],[масса 2м\n(коэф)]]","v":0},{"$f":"SUMIFS(Труба!$AA$40:$AA$85,Труба!$B$40:$B$85,Таблица1[[#This Row],[длина трубы\nмм]],Труба!$C$40:$C$85,\"=500\",Труба!$D$40:$D$85,Таблица1[[#This Row],[толщина\nмм ]],Труба!$F$40:$F$85,Таблица1[[#This Row],[название в \nАСТРА]])","v":0},{"$f":"SUMIFS(Труба!$AA$40:$AA$85,Труба!$B$40:$B$85,Таблица1[[#This Row],[не равно\n(для расчета)]],Труба!$C$40:$C$85,\"=500\",Труба!$D$40:$D$85,Таблица1[[#This Row],[толщина\nмм ]],Труба!$F$40:$F$85,Таблица1[[#This Row],[название в \nАСТРА]])","v":0}]
[null,null,null,{"$f":"SUMIFS(Труба!$I$9:$I$36,Труба!$F$9:$F$36,Таблица1[[#This Row],[название в \nАСТРА]])","v":0},"Пруток","Пруток",14,9,{"$f":"Таблица1[[#This Row],[Размер\nБхМхТ]]","v":14},null,3000,"<>3000",5,{"$f":"SUMIFS(Труба!$G$40:$G$85,Труба!$B$40:$B$85,Таблица1[[#This Row],[длина трубы\nмм]],Труба!$C$40:$C$85,\"=500\",Труба!$D$40:$D$85,Таблица1[[#This Row],[толщина\nмм ]],Труба!$F$40:$F$85,Таблица1[[#This Row],[название в \nАСТРА]])","v":0},{"$f":"SUMIFS(Труба!$V$40:$V$85,Труба!$B$40:$B$85,Таблица1[[#This Row],[длина трубы\nмм]],Труба!$C$40:$C$85,\"=500\",Труба!$D$40:$D$85,Таблица1[[#This Row],[толщина\nмм ]],Труба!$F$40:$F$85,Таблица1[[#This Row],[название в \nАСТРА]])","v":0},{"$f":"SUMIFS(Труба!$V$40:$V$85,Труба!$B$40:$B$85,Таблица1[[#This Row],[не равно\n(для расчета)]],Труба!$C$40:$C$85,\"=500\",Труба!$D$40:$D$85,Таблица1[[#This Row],[толщина\nмм ]],Труба!$F$40:$F$85,Таблица1[[#This Row],[название в \nАСТРА]])","v":0},{"$f":"Таблица1[[#This Row],[Масса дет. целых]]+Таблица1[[#This Row],[Масса дет. Деловых]]","v":0},{"$f":"SUMIFS(Труба!$M$40:$M$85,Труба!$B$40:$B$85,Таблица1[[#This Row],[длина трубы\nмм]],Труба!$C$40:$C$85,\"=500\",Труба!$D$40:$D$85,Таблица1[[#This Row],[толщина\nмм ]],Труба!$F$40:$F$85,Таблица1[[#This Row],[название в \nАСТРА]])","v":0},{"$f":"SUMIFS(Труба!$M$40:$M$85,Труба!$B$40:$B$85,Таблица1[[#This Row],[не равно\n(для расчета)]],Труба!$C$40:$C$85,\"=500\",Труба!$D$40:$D$85,Таблица1[[#This Row],[толщина\nмм ]],Труба!$F$40:$F$85,Таблица1[[#This Row],[название в \nАСТРА]])","v":0},{"$f":"Таблица1[[#This Row],[Масса целых]]+Таблица1[[#This Row],[Масса деловых]]","v":0},{"$f":"SUMIFS(Труба!$P$40:$P$85,Труба!$B$40:$B$85,Таблица1[[#This Row],[длина трубы\nмм]],Труба!$C$40:$C$85,\"=500\",Труба!$D$40:$D$85,Таблица1[[#This Row],[толщина\nмм ]],Труба!$F$40:$F$85,Таблица1[[#This Row],[название в \nАСТРА]])","v":0},{"$f":"SUMIFS(Труба!$P$40:$P$85,Труба!$B$40:$B$85,Таблица1[[#This Row],[не равно\n(для расчета)]],Труба!$C$40:$C$85,\"=500\",Труба!$D$40:$D$85,Таблица1[[#This Row],[толщина\nмм ]],Труба!$F$40:$F$85,Таблица1[[#This Row],[название в \nАСТРА]])","v":0},{"$f":"Таблица1[[#This Row],[Дел. ост.  Целых]]+Таблица1[[#This Row],[Дел. ост. Деловых]]","v":0},{"$f":"SUMIFS(Труба!$Z$40:$Z$85,Труба!$B$40:$B$85,Таблица1[[#This Row],[длина трубы\nмм]],Труба!$C$40:$C$85,\"=500\",Труба!$D$40:$D$85,Таблица1[[#This Row],[толщина\nмм ]],Труба!$F$40:$F$85,Таблица1[[#This Row],[название в \nАСТРА]])","v":0},{"$f":"SUMIFS(Труба!$Z$40:$Z$85,Труба!$B$40:$B$85,Таблица1[[#This Row],[не равно\n(для расчета)]],Труба!$C$40:$C$85,\"=500\",Труба!$D$40:$D$85,Таблица1[[#This Row],[толщина\nмм ]],Труба!$F$40:$F$85,Таблица1[[#This Row],[название в \nАСТРА]])","v":0},{"$f":"Таблица1[[#This Row],[Расход целых]]+Таблица1[[#This Row],[Расход деловых]]","v":0},{"$f":"Таблица1[[#This Row],[Чистый лом целых]]+Таблица1[[#This Row],[Чистый лом деловых]]-Таблица1[[#This Row],[Отход на порезку]]","v":0},{"$f":"Таблица1[[#This Row],[кол-во\n на план\n этого профиля]]*Таблица1[[#This Row],[толщина реза\nмм]]/1000/2*Таблица1[[#This Row],[масса 2м\n(коэф)]]","v":0},{"$f":"SUMIFS(Труба!$AA$40:$AA$85,Труба!$B$40:$B$85,Таблица1[[#This Row],[длина трубы\nмм]],Труба!$C$40:$C$85,\"=500\",Труба!$D$40:$D$85,Таблица1[[#This Row],[толщина\nмм ]],Труба!$F$40:$F$85,Таблица1[[#This Row],[название в \nАСТРА]])","v":0},{"$f":"SUMIFS(Труба!$AA$40:$AA$85,Труба!$B$40:$B$85,Таблица1[[#This Row],[не равно\n(для расчета)]],Труба!$C$40:$C$85,\"=500\",Труба!$D$40:$D$85,Таблица1[[#This Row],[толщина\nмм ]],Труба!$F$40:$F$85,Таблица1[[#This Row],[название в \nАСТРА]])","v":0}]
[null,null,null,{"$f":"SUMIFS(Труба!$I$9:$I$36,Труба!$F$9:$F$36,Таблица1[[#This Row],[название в \nАСТРА]])","v":0},"Прямоугольная","Труба","15х15х1","Труба 15х15 чм, 1.0 мм",1,0.85199999999999998,6000,"<>6000",5,{"$f":"SUMIFS(Труба!$G$40:$G$85,Труба!$B$40:$B$85,Таблица1[[#This Row],[длина трубы\nмм]],Труба!$C$40:$C$85,\"=500\",Труба!$D$40:$D$85,Таблица1[[#This Row],[толщина\nмм ]],Труба!$F$40:$F$85,Таблица1[[#This Row],[название в \nАСТРА]])","v":0},{"$f":"SUMIFS(Труба!$V$40:$V$85,Труба!$B$40:$B$85,Таблица1[[#This Row],[длина трубы\nмм]],Труба!$C$40:$C$85,\"=500\",Труба!$D$40:$D$85,Таблица1[[#This Row],[толщина\nмм ]],Труба!$F$40:$F$85,Таблица1[[#This Row],[название в \nАСТРА]])","v":0},{"$f":"SUMIFS(Труба!$V$40:$V$85,Труба!$B$40:$B$85,Таблица1[[#This Row],[не равно\n(для расчета)]],Труба!$C$40:$C$85,\"=500\",Труба!$D$40:$D$85,Таблица1[[#This Row],[толщина\nмм ]],Труба!$F$40:$F$85,Таблица1[[#This Row],[название в \nАСТРА]])","v":0},{"$f":"Таблица1[[#This Row],[Масса дет. целых]]+Таблица1[[#This Row],[Масса дет. Деловых]]","v":0},{"$f":"SUMIFS(Труба!$M$40:$M$85,Труба!$B$40:$B$85,Таблица1[[#This Row],[длина трубы\nмм]],Труба!$C$40:$C$85,\"=500\",Труба!$D$40:$D$85,Таблица1[[#This Row],[толщина\nмм ]],Труба!$F$40:$F$85,Таблица1[[#This Row],[название в \nАСТРА]])","v":0},{"$f":"SUMIFS(Труба!$M$40:$M$85,Труба!$B$40:$B$85,Таблица1[[#This Row],[не равно\n(для расчета)]],Труба!$C$40:$C$85,\"=500\",Труба!$D$40:$D$85,Таблица1[[#This Row],[толщина\nмм ]],Труба!$F$40:$F$85,Таблица1[[#This Row],[название в \nАСТРА]])","v":0},{"$f":"Таблица1[[#This Row],[Масса целых]]+Таблица1[[#This Row],[Масса деловых]]","v":0},{"$f":"SUMIFS(Труба!$P$40:$P$85,Труба!$B$40:$B$85,Таблица1[[#This Row],[длина трубы\nмм]],Труба!$C$40:$C$85,\"=500\",Труба!$D$40:$D$85,Таблица1[[#This Row],[толщина\nмм ]],Труба!$F$40:$F$85,Таблица1[[#This Row],[название в \nАСТРА]])","v":0},{"$f":"SUMIFS(Труба!$P$40:$P$85,Труба!$B$40:$B$85,Таблица1[[#This Row],[не равно\n(для расчета)]],Труба!$C$40:$C$85,\"=500\",Труба!$D$40:$D$85,Таблица1[[#This Row],[толщина\nмм ]],Труба!$F$40:$F$85,Таблица1[[#This Row],[название в \nАСТРА]])","v":0},{"$f":"Таблица1[[#This Row],[Дел. ост.  Целых]]+Таблица1[[#This Row],[Дел. ост. Деловых]]","v":0},{"$f":"SUMIFS(Труба!$Z$40:$Z$85,Труба!$B$40:$B$85,Таблица1[[#This Row],[длина трубы\nмм]],Труба!$C$40:$C$85,\"=500\",Труба!$D$40:$D$85,Таблица1[[#This Row],[толщина\nмм ]],Труба!$F$40:$F$85,Таблица1[[#This Row],[название в \nАСТРА]])","v":0},{"$f":"SUMIFS(Труба!$Z$40:$Z$85,Труба!$B$40:$B$85,Таблица1[[#This Row],[не равно\n(для расчета)]],Труба!$C$40:$C$85,\"=500\",Труба!$D$40:$D$85,Таблица1[[#This Row],[толщина\nмм ]],Труба!$F$40:$F$85,Таблица1[[#This Row],[название в \nАСТРА]])","v":0},{"$f":"Таблица1[[#This Row],[Расход целых]]+Таблица1[[#This Row],[Расход деловых]]","v":0},{"$f":"Таблица1[[#This Row],[Чистый лом целых]]+Таблица1[[#This Row],[Чистый лом деловых]]-Таблица1[[#This Row],[Отход на порезку]]","v":0},{"$f":"Таблица1[[#This Row],[кол-во\n на план\n этого профиля]]*Таблица1[[#This Row],[толщина реза\nмм]]/1000/2*Таблица1[[#This Row],[масса 2м\n(коэф)]]","v":0},{"$f":"SUMIFS(Труба!$AA$40:$AA$85,Труба!$B$40:$B$85,Таблица1[[#This Row],[длина трубы\nмм]],Труба!$C$40:$C$85,\"=500\",Труба!$D$40:$D$85,Таблица1[[#This Row],[толщина\nмм ]],Труба!$F$40:$F$85,Таблица1[[#This Row],[название в \nАСТРА]])","v":0},{"$f":"SUMIFS(Труба!$AA$40:$AA$85,Труба!$B$40:$B$85,Таблица1[[#This Row],[не равно\n(для расчета)]],Труба!$C$40:$C$85,\"=500\",Труба!$D$40:$D$85,Таблица1[[#This Row],[толщина\nмм ]],Труба!$F$40:$F$85,Таблица1[[#This Row],[название в \nАСТРА]])","v":0}]
[null,null,null,{"$f":"SUMIFS(Труба!$I$9:$I$36,Труба!$F$9:$F$36,Таблица1[[#This Row],[название в \nАСТРА]])","v":0},"Прямоугольная","Труба","17х17х2","Труба 17х17 чм, 2,0",2,1.88,6000,"<>6000",5,{"$f":"SUMIFS(Труба!$G$40:$G$85,Труба!$B$40:$B$85,Таблица1[[#This Row],[длина трубы\nмм]],Труба!$C$40:$C$85,\"=500\",Труба!$D$40:$D$85,Таблица1[[#This Row],[толщина\nмм ]],Труба!$F$40:$F$85,Таблица1[[#This Row],[название в \nАСТРА]])","v":0},{"$f":"SUMIFS(Труба!$V$40:$V$85,Труба!$B$40:$B$85,Таблица1[[#This Row],[длина трубы\nмм]],Труба!$C$40:$C$85,\"=500\",Труба!$D$40:$D$85,Таблица1[[#This Row],[толщина\nмм ]],Труба!$F$40:$F$85,Таблица1[[#This Row],[название в \nАСТРА]])","v":0},{"$f":"SUMIFS(Труба!$V$40:$V$85,Труба!$B$40:$B$85,Таблица1[[#This Row],[не равно\n(для расчета)]],Труба!$C$40:$C$85,\"=500\",Труба!$D$40:$D$85,Таблица1[[#This Row],[толщина\nмм ]],Труба!$F$40:$F$85,Таблица1[[#This Row],[название в \nАСТРА]])","v":0},{"$f":"Таблица1[[#This Row],[Масса дет. целых]]+Таблица1[[#This Row],[Масса дет. Деловых]]","v":0},{"$f":"SUMIFS(Труба!$M$40:$M$85,Труба!$B$40:$B$85,Таблица1[[#This Row],[длина трубы\nмм]],Труба!$C$40:$C$85,\"=500\",Труба!$D$40:$D$85,Таблица1[[#This Row],[толщина\nмм ]],Труба!$F$40:$F$85,Таблица1[[#This Row],[название в \nАСТРА]])","v":0},{"$f":"SUMIFS(Труба!$M$40:$M$85,Труба!$B$40:$B$85,Таблица1[[#This Row],[не равно\n(для расчета)]],Труба!$C$40:$C$85,\"=500\",Труба!$D$40:$D$85,Таблица1[[#This Row],[толщина\nмм ]],Труба!$F$40:$F$85,Таблица1[[#This Row],[название в \nАСТРА]])","v":0},{"$f":"Таблица1[[#This Row],[Масса целых]]+Таблица1[[#This Row],[Масса деловых]]","v":0},{"$f":"SUMIFS(Труба!$P$40:$P$85,Труба!$B$40:$B$85,Таблица1[[#This Row],[длина трубы\nмм]],Труба!$C$40:$C$85,\"=500\",Труба!$D$40:$D$85,Таблица1[[#This Row],[толщина\nмм ]],Труба!$F$40:$F$85,Таблица1[[#This Row],[название в \nАСТРА]])","v":0},{"$f":"SUMIFS(Труба!$P$40:$P$85,Труба!$B$40:$B$85,Таблица1[[#This Row],[не равно\n(для расчета)]],Труба!$C$40:$C$85,\"=500\",Труба!$D$40:$D$85,Таблица1[[#This Row],[толщина\nмм ]],Труба!$F$40:$F$85,Таблица1[[#This Row],[название в \nАСТРА]])","v":0},{"$f":"Таблица1[[#This Row],[Дел. ост.  Целых]]+Таблица1[[#This Row],[Дел. ост. Деловых]]","v":0},{"$f":"SUMIFS(Труба!$Z$40:$Z$85,Труба!$B$40:$B$85,Таблица1[[#This Row],[длина трубы\nмм]],Труба!$C$40:$C$85,\"=500\",Труба!$D$40:$D$85,Таблица1[[#This Row],[толщина\nмм ]],Труба!$F$40:$F$85,Таблица1[[#This Row],[название в \nАСТРА]])","v":0},{"$f":"SUMIFS(Труба!$Z$40:$Z$85,Труба!$B$40:$B$85,Таблица1[[#This Row],[не равно\n(для расчета)]],Труба!$C$40:$C$85,\"=500\",Труба!$D$40:$D$85,Таблица1[[#This Row],[толщина\nмм ]],Труба!$F$40:$F$85,Таблица1[[#This Row],[название в \nАСТРА]])","v":0},{"$f":"Таблица1[[#This Row],[Расход целых]]+Таблица1[[#This Row],[Расход деловых]]","v":0},{"$f":"Таблица1[[#This Row],[Чистый лом целых]]+Таблица1[[#This Row],[Чистый лом деловых]]-Таблица1[[#This Row],[Отход на порезку]]","v":0},{"$f":"Таблица1[[#This Row],[кол-во\n на план\n этого профиля]]*Таблица1[[#This Row],[толщина реза\nмм]]/1000/2*Таблица1[[#This Row],[масса 2м\n(коэф)]]","v":0},{"$f":"SUMIFS(Труба!$AA$40:$AA$85,Труба!$B$40:$B$85,Таблица1[[#This Row],[длина трубы\nмм]],Труба!$C$40:$C$85,\"=500\",Труба!$D$40:$D$85,Таблица1[[#This Row],[толщина\nмм ]],Труба!$F$40:$F$85,Таблица1[[#This Row],[название в \nАСТРА]])","v":0},{"$f":"SUMIFS(Труба!$AA$40:$AA$85,Труба!$B$40:$B$85,Таблица1[[#This Row],[не равно\n(для расчета)]],Труба!$C$40:$C$85,\"=500\",Труба!$D$40:$D$85,Таблица1[[#This Row],[толщина\nмм ]],Труба!$F$40:$F$85,Таблица1[[#This Row],[название в \nАСТРА]])","v":0}]
[null,null,null,{"$f":"SUMIFS(Труба!$I$9:$I$36,Труба!$F$9:$F$36,Таблица1[[#This Row],[название в \nАСТРА]])","v":0},"Прямоугольная","Труба","20х20х0,8","Труба 20х20 чм, 0.8 мм",0.8,1.006,6000,"<>6000",5,{"$f":"SUMIFS(Труба!$G$40:$G$85,Труба!$B$40:$B$85,Таблица1[[#This Row],[длина трубы\nмм]],Труба!$C$40:$C$85,\"=500\",Труба!$D$40:$D$85,Таблица1[[#This Row],[толщина\nмм ]],Труба!$F$40:$F$85,Таблица1[[#This Row],[название в \nАСТРА]])","v":0},{"$f":"SUMIFS(Труба!$V$40:$V$85,Труба!$B$40:$B$85,Таблица1[[#This Row],[длина трубы\nмм]],Труба!$C$40:$C$85,\"=500\",Труба!$D$40:$D$85,Таблица1[[#This Row],[толщина\nмм ]],Труба!$F$40:$F$85,Таблица1[[#This Row],[название в \nАСТРА]])","v":0},{"$f":"SUMIFS(Труба!$V$40:$V$85,Труба!$B$40:$B$85,Таблица1[[#This Row],[не равно\n(для расчета)]],Труба!$C$40:$C$85,\"=500\",Труба!$D$40:$D$85,Таблица1[[#This Row],[толщина\nмм ]],Труба!$F$40:$F$85,Таблица1[[#This Row],[название в \nАСТРА]])","v":0},{"$f":"Таблица1[[#This Row],[Масса дет. целых]]+Таблица1[[#This Row],[Масса дет. Деловых]]","v":0},{"$f":"SUMIFS(Труба!$M$40:$M$85,Труба!$B$40:$B$85,Таблица1[[#This Row],[длина трубы\nмм]],Труба!$C$40:$C$85,\"=500\",Труба!$D$40:$D$85,Таблица1[[#This Row],[толщина\nмм ]],Труба!$F$40:$F$85,Таблица1[[#This Row],[название в \nАСТРА]])","v":0},{"$f":"SUMIFS(Труба!$M$40:$M$85,Труба!$B$40:$B$85,Таблица1[[#This Row],[не равно\n(для расчета)]],Труба!$C$40:$C$85,\"=500\",Труба!$D$40:$D$85,Таблица1[[#This Row],[толщина\nмм ]],Труба!$F$40:$F$85,Таблица1[[#This Row],[название в \nАСТРА]])","v":0},{"$f":"Таблица1[[#This Row],[Масса целых]]+Таблица1[[#This Row],[Масса деловых]]","v":0},{"$f":"SUMIFS(Труба!$P$40:$P$85,Труба!$B$40:$B$85,Таблица1[[#This Row],[длина трубы\nмм]],Труба!$C$40:$C$85,\"=500\",Труба!$D$40:$D$85,Таблица1[[#This Row],[толщина\nмм ]],Труба!$F$40:$F$85,Таблица1[[#This Row],[название в \nАСТРА]])","v":0},{"$f":"SUMIFS(Труба!$P$40:$P$85,Труба!$B$40:$B$85,Таблица1[[#This Row],[не равно\n(для расчета)]],Труба!$C$40:$C$85,\"=500\",Труба!$D$40:$D$85,Таблица1[[#This Row],[толщина\nмм ]],Труба!$F$40:$F$85,Таблица1[[#This Row],[название в \nАСТРА]])","v":0},{"$f":"Таблица1[[#This Row],[Дел. ост.  Целых]]+Таблица1[[#This Row],[Дел. ост. Деловых]]","v":0},{"$f":"SUMIFS(Труба!$Z$40:$Z$85,Труба!$B$40:$B$85,Таблица1[[#This Row],[длина трубы\nмм]],Труба!$C$40:$C$85,\"=500\",Труба!$D$40:$D$85,Таблица1[[#This Row],[толщина\nмм ]],Труба!$F$40:$F$85,Таблица1[[#This Row],[название в \nАСТРА]])","v":0},{"$f":"SUMIFS(Труба!$Z$40:$Z$85,Труба!$B$40:$B$85,Таблица1[[#This Row],[не равно\n(для расчета)]],Труба!$C$40:$C$85,\"=500\",Труба!$D$40:$D$85,Таблица1[[#This Row],[толщина\nмм ]],Труба!$F$40:$F$85,Таблица1[[#This Row],[название в \nАСТРА]])","v":0},{"$f":"Таблица1[[#This Row],[Расход целых]]+Таблица1[[#This Row],[Расход деловых]]","v":0},{"$f":"Таблица1[[#This Row],[Чистый лом целых]]+Таблица1[[#This Row],[Чистый лом деловых]]-Таблица1[[#This Row],[Отход на порезку]]","v":0},{"$f":"Таблица1[[#This Row],[кол-во\n на план\n этого профиля]]*Таблица1[[#This Row],[толщина реза\nмм]]/1000/2*Таблица1[[#This Row],[масса 2м\n(коэф)]]","v":0},{"$f":"SUMIFS(Труба!$AA$40:$AA$85,Труба!$B$40:$B$85,Таблица1[[#This Row],[длина трубы\nмм]],Труба!$C$40:$C$85,\"=500\",Труба!$D$40:$D$85,Таблица1[[#This Row],[толщина\nмм ]],Труба!$F$40:$F$85,Таблица1[[#This Row],[название в \nАСТРА]])","v":0},{"$f":"SUMIFS(Труба!$AA$40:$AA$85,Труба!$B$40:$B$85,Таблица1[[#This Row],[не равно\n(для расчета)]],Труба!$C$40:$C$85,\"=500\",Труба!$D$40:$D$85,Таблица1[[#This Row],[толщина\nмм ]],Труба!$F$40:$F$85,Таблица1[[#This Row],[название в \nАСТРА]])","v":0}]
[null,null,null,{"$f":"SUMIFS(Труба!$I$9:$I$36,Труба!$F$9:$F$36,Таблица1[[#This Row],[название в \nАСТРА]])","v":0},"Прямоугольная","Труба","20х20х1","Труба 20х20 чм, 1.0 мм",1,1.248,6000,"<>6000",5,{"$f":"SUMIFS(Труба!$G$40:$G$85,Труба!$B$40:$B$85,Таблица1[[#This Row],[длина трубы\nмм]],Труба!$C$40:$C$85,\"=500\",Труба!$D$40:$D$85,Таблица1[[#This Row],[толщина\nмм ]],Труба!$F$40:$F$85,Таблица1[[#This Row],[название в \nАСТРА]])","v":0},{"$f":"SUMIFS(Труба!$V$40:$V$85,Труба!$B$40:$B$85,Таблица1[[#This Row],[длина трубы\nмм]],Труба!$C$40:$C$85,\"=500\",Труба!$D$40:$D$85,Таблица1[[#This Row],[толщина\nмм ]],Труба!$F$40:$F$85,Таблица1[[#This Row],[название в \nАСТРА]])","v":0},{"$f":"SUMIFS(Труба!$V$40:$V$85,Труба!$B$40:$B$85,Таблица1[[#This Row],[не равно\n(для расчета)]],Труба!$C$40:$C$85,\"=500\",Труба!$D$40:$D$85,Таблица1[[#This Row],[толщина\nмм ]],Труба!$F$40:$F$85,Таблица1[[#This Row],[название в \nАСТРА]])","v":0},{"$f":"Таблица1[[#This Row],[Масса дет. целых]]+Таблица1[[#This Row],[Масса дет. Деловых]]","v":0},{"$f":"SUMIFS(Труба!$M$40:$M$85,Труба!$B$40:$B$85,Таблица1[[#This Row],[длина трубы\nмм]],Труба!$C$40:$C$85,\"=500\",Труба!$D$40:$D$85,Таблица1[[#This Row],[толщина\nмм ]],Труба!$F$40:$F$85,Таблица1[[#This Row],[название в \nАСТРА]])","v":0},{"$f":"SUMIFS(Труба!$M$40:$M$85,Труба!$B$40:$B$85,Таблица1[[#This Row],[не равно\n(для расчета)]],Труба!$C$40:$C$85,\"=500\",Труба!$D$40:$D$85,Таблица1[[#This Row],[толщина\nмм ]],Труба!$F$40:$F$85,Таблица1[[#This Row],[название в \nАСТРА]])","v":0},{"$f":"Таблица1[[#This Row],[Масса целых]]+Таблица1[[#This Row],[Масса деловых]]","v":0},{"$f":"SUMIFS(Труба!$P$40:$P$85,Труба!$B$40:$B$85,Таблица1[[#This Row],[длина трубы\nмм]],Труба!$C$40:$C$85,\"=500\",Труба!$D$40:$D$85,Таблица1[[#This Row],[толщина\nмм ]],Труба!$F$40:$F$85,Таблица1[[#This Row],[название в \nАСТРА]])","v":0},{"$f":"SUMIFS(Труба!$P$40:$P$85,Труба!$B$40:$B$85,Таблица1[[#This Row],[не равно\n(для расчета)]],Труба!$C$40:$C$85,\"=500\",Труба!$D$40:$D$85,Таблица1[[#This Row],[толщина\nмм ]],Труба!$F$40:$F$85,Таблица1[[#This Row],[название в \nАСТРА]])","v":0},{"$f":"Таблица1[[#This Row],[Дел. ост.  Целых]]+Таблица1[[#This Row],[Дел. ост. Деловых]]","v":0},{"$f":"SUMIFS(Труба!$Z$40:$Z$85,Труба!$B$40:$B$85,Таблица1[[#This Row],[длина трубы\nмм]],Труба!$C$40:$C$85,\"=500\",Труба!$D$40:$D$85,Таблица1[[#This Row],[толщина\nмм ]],Труба!$F$40:$F$85,Таблица1[[#This Row],[название в \nАСТРА]])","v":0},{"$f":"SUMIFS(Труба!$Z$40:$Z$85,Труба!$B$40:$B$85,Таблица1[[#This Row],[не равно\n(для расчета)]],Труба!$C$40:$C$85,\"=500\",Труба!$D$40:$D$85,Таблица1[[#This Row],[толщина\nмм ]],Труба!$F$40:$F$85,Таблица1[[#This Row],[название в \nАСТРА]])","v":0},{"$f":"Таблица1[[#This Row],[Расход целых]]+Таблица1[[#This Row],[Расход деловых]]","v":0},{"$f":"Таблица1[[#This Row],[Чистый лом целых]]+Таблица1[[#This Row],[Чистый лом деловых]]-Таблица1[[#This Row],[Отход на порезку]]","v":0},{"$f":"Таблица1[[#This Row],[кол-во\n на план\n этого профиля]]*Таблица1[[#This Row],[толщина реза\nмм]]/1000/2*Таблица1[[#This Row],[масса 2м\n(коэф)]]","v":0},{"$f":"SUMIFS(Труба!$AA$40:$AA$85,Труба!$B$40:$B$85,Таблица1[[#This Row],[длина трубы\nмм]],Труба!$C$40:$C$85,\"=500\",Труба!$D$40:$D$85,Таблица1[[#This Row],[толщина\nмм ]],Труба!$F$40:$F$85,Таблица1[[#This Row],[название в \nАСТРА]])","v":0},{"$f":"SUMIFS(Труба!$AA$40:$AA$85,Труба!$B$40:$B$85,Таблица1[[#This Row],[не равно\n(для расчета)]],Труба!$C$40:$C$85,\"=500\",Труба!$D$40:$D$85,Таблица1[[#This Row],[толщина\nмм ]],Труба!$F$40:$F$85,Таблица1[[#This Row],[название в \nАСТРА]])","v":0}]
[null,null,null,{"$f":"SUMIFS(Труба!$I$9:$I$36,Труба!$F$9:$F$36,Таблица1[[#This Row],[название в \nАСТРА]])","v":0},"Прямоугольная","Труба","20х20х1,5","Труба 20х20 чм, 1.5 мм",1.5,1.8720000000000001,6000,"<>6000",5,{"$f":"SUMIFS(Труба!$G$40:$G$85,Труба!$B$40:$B$85,Таблица1[[#This Row],[длина трубы\nмм]],Труба!$C$40:$C$85,\"=500\",Труба!$D$40:$D$85,Таблица1[[#This Row],[толщина\nмм ]],Труба!$F$40:$F$85,Таблица1[[#This Row],[название в \nАСТРА]])","v":0},{"$f":"SUMIFS(Труба!$V$40:$V$85,Труба!$B$40:$B$85,Таблица1[[#This Row],[длина трубы\nмм]],Труба!$C$40:$C$85,\"=500\",Труба!$D$40:$D$85,Таблица1[[#This Row],[толщина\nмм ]],Труба!$F$40:$F$85,Таблица1[[#This Row],[название в \nАСТРА]])","v":0},{"$f":"SUMIFS(Труба!$V$40:$V$85,Труба!$B$40:$B$85,Таблица1[[#This Row],[не равно\n(для расчета)]],Труба!$C$40:$C$85,\"=500\",Труба!$D$40:$D$85,Таблица1[[#This Row],[толщина\nмм ]],Труба!$F$40:$F$85,Таблица1[[#This Row],[название в \nАСТРА]])","v":0},{"$f":"Таблица1[[#This Row],[Масса дет. целых]]+Таблица1[[#This Row],[Масса дет. Деловых]]","v":0},{"$f":"SUMIFS(Труба!$M$40:$M$85,Труба!$B$40:$B$85,Таблица1[[#This Row],[длина трубы\nмм]],Труба!$C$40:$C$85,\"=500\",Труба!$D$40:$D$85,Таблица1[[#This Row],[толщина\nмм ]],Труба!$F$40:$F$85,Таблица1[[#This Row],[название в \nАСТРА]])","v":0},{"$f":"SUMIFS(Труба!$M$40:$M$85,Труба!$B$40:$B$85,Таблица1[[#This Row],[не равно\n(для расчета)]],Труба!$C$40:$C$85,\"=500\",Труба!$D$40:$D$85,Таблица1[[#This Row],[толщина\nмм ]],Труба!$F$40:$F$85,Таблица1[[#This Row],[название в \nАСТРА]])","v":0},{"$f":"Таблица1[[#This Row],[Масса целых]]+Таблица1[[#This Row],[Масса деловых]]","v":0},{"$f":"SUMIFS(Труба!$P$40:$P$85,Труба!$B$40:$B$85,Таблица1[[#This Row],[длина трубы\nмм]],Труба!$C$40:$C$85,\"=500\",Труба!$D$40:$D$85,Таблица1[[#This Row],[толщина\nмм ]],Труба!$F$40:$F$85,Таблица1[[#This Row],[название в \nАСТРА]])","v":0},{"$f":"SUMIFS(Труба!$P$40:$P$85,Труба!$B$40:$B$85,Таблица1[[#This Row],[не равно\n(для расчета)]],Труба!$C$40:$C$85,\"=500\",Труба!$D$40:$D$85,Таблица1[[#This Row],[толщина\nмм ]],Труба!$F$40:$F$85,Таблица1[[#This Row],[название в \nАСТРА]])","v":0},{"$f":"Таблица1[[#This Row],[Дел. ост.  Целых]]+Таблица1[[#This Row],[Дел. ост. Деловых]]","v":0},{"$f":"SUMIFS(Труба!$Z$40:$Z$85,Труба!$B$40:$B$85,Таблица1[[#This Row],[длина трубы\nмм]],Труба!$C$40:$C$85,\"=500\",Труба!$D$40:$D$85,Таблица1[[#This Row],[толщина\nмм ]],Труба!$F$40:$F$85,Таблица1[[#This Row],[название в \nАСТРА]])","v":0},{"$f":"SUMIFS(Труба!$Z$40:$Z$85,Труба!$B$40:$B$85,Таблица1[[#This Row],[не равно\n(для расчета)]],Труба!$C$40:$C$85,\"=500\",Труба!$D$40:$D$85,Таблица1[[#This Row],[толщина\nмм ]],Труба!$F$40:$F$85,Таблица1[[#This Row],[название в \nАСТРА]])","v":0},{"$f":"Таблица1[[#This Row],[Расход целых]]+Таблица1[[#This Row],[Расход деловых]]","v":0},{"$f":"Таблица1[[#This Row],[Чистый лом целых]]+Таблица1[[#This Row],[Чистый лом деловых]]-Таблица1[[#This Row],[Отход на порезку]]","v":0},{"$f":"Таблица1[[#This Row],[кол-во\n на план\n этого профиля]]*Таблица1[[#This Row],[толщина реза\nмм]]/1000/2*Таблица1[[#This Row],[масса 2м\n(коэф)]]","v":0},{"$f":"SUMIFS(Труба!$AA$40:$AA$85,Труба!$B$40:$B$85,Таблица1[[#This Row],[длина трубы\nмм]],Труба!$C$40:$C$85,\"=500\",Труба!$D$40:$D$85,Таблица1[[#This Row],[толщина\nмм ]],Труба!$F$40:$F$85,Таблица1[[#This Row],[название в \nАСТРА]])","v":0},{"$f":"SUMIFS(Труба!$AA$40:$AA$85,Труба!$B$40:$B$85,Таблица1[[#This Row],[не равно\n(для расчета)]],Труба!$C$40:$C$85,\"=500\",Труба!$D$40:$D$85,Таблица1[[#This Row],[толщина\nмм ]],Труба!$F$40:$F$85,Таблица1[[#This Row],[название в \nАСТРА]])","v":0}]
[null,null,null,{"$f":"SUMIFS(Труба!$I$9:$I$36,Труба!$F$9:$F$36,Таблица1[[#This Row],[название в \nАСТРА]])","v":0},"Прямоугольная","Труба","20х20х2","Труба 20х20 чм, 2.0 мм",2,2.2519999999999998,6000,"<>6000",5,{"$f":"SUMIFS(Труба!$G$40:$G$85,Труба!$B$40:$B$85,Таблица1[[#This Row],[длина трубы\nмм]],Труба!$C$40:$C$85,\"=500\",Труба!$D$40:$D$85,Таблица1[[#This Row],[толщина\nмм ]],Труба!$F$40:$F$85,Таблица1[[#This Row],[название в \nАСТРА]])","v":0},{"$f":"SUMIFS(Труба!$V$40:$V$85,Труба!$B$40:$B$85,Таблица1[[#This Row],[длина трубы\nмм]],Труба!$C$40:$C$85,\"=500\",Труба!$D$40:$D$85,Таблица1[[#This Row],[толщина\nмм ]],Труба!$F$40:$F$85,Таблица1[[#This Row],[название в \nАСТРА]])","v":0},{"$f":"SUMIFS(Труба!$V$40:$V$85,Труба!$B$40:$B$85,Таблица1[[#This Row],[не равно\n(для расчета)]],Труба!$C$40:$C$85,\"=500\",Труба!$D$40:$D$85,Таблица1[[#This Row],[толщина\nмм ]],Труба!$F$40:$F$85,Таблица1[[#This Row],[название в \nАСТРА]])","v":0},{"$f":"Таблица1[[#This Row],[Масса дет. целых]]+Таблица1[[#This Row],[Масса дет. Деловых]]","v":0},{"$f":"SUMIFS(Труба!$M$40:$M$85,Труба!$B$40:$B$85,Таблица1[[#This Row],[длина трубы\nмм]],Труба!$C$40:$C$85,\"=500\",Труба!$D$40:$D$85,Таблица1[[#This Row],[толщина\nмм ]],Труба!$F$40:$F$85,Таблица1[[#This Row],[название в \nАСТРА]])","v":0},{"$f":"SUMIFS(Труба!$M$40:$M$85,Труба!$B$40:$B$85,Таблица1[[#This Row],[не равно\n(для расчета)]],Труба!$C$40:$C$85,\"=500\",Труба!$D$40:$D$85,Таблица1[[#This Row],[толщина\nмм ]],Труба!$F$40:$F$85,Таблица1[[#This Row],[название в \nАСТРА]])","v":0},{"$f":"Таблица1[[#This Row],[Масса целых]]+Таблица1[[#This Row],[Масса деловых]]","v":0},{"$f":"SUMIFS(Труба!$P$40:$P$85,Труба!$B$40:$B$85,Таблица1[[#This Row],[длина трубы\nмм]],Труба!$C$40:$C$85,\"=500\",Труба!$D$40:$D$85,Таблица1[[#This Row],[толщина\nмм ]],Труба!$F$40:$F$85,Таблица1[[#This Row],[название в \nАСТРА]])","v":0},{"$f":"SUMIFS(Труба!$P$40:$P$85,Труба!$B$40:$B$85,Таблица1[[#This Row],[не равно\n(для расчета)]],Труба!$C$40:$C$85,\"=500\",Труба!$D$40:$D$85,Таблица1[[#This Row],[толщина\nмм ]],Труба!$F$40:$F$85,Таблица1[[#This Row],[название в \nАСТРА]])","v":0},{"$f":"Таблица1[[#This Row],[Дел. ост.  Целых]]+Таблица1[[#This Row],[Дел. ост. Деловых]]","v":0},{"$f":"SUMIFS(Труба!$Z$40:$Z$85,Труба!$B$40:$B$85,Таблица1[[#This Row],[длина трубы\nмм]],Труба!$C$40:$C$85,\"=500\",Труба!$D$40:$D$85,Таблица1[[#This Row],[толщина\nмм ]],Труба!$F$40:$F$85,Таблица1[[#This Row],[название в \nАСТРА]])","v":0},{"$f":"SUMIFS(Труба!$Z$40:$Z$85,Труба!$B$40:$B$85,Таблица1[[#This Row],[не равно\n(для расчета)]],Труба!$C$40:$C$85,\"=500\",Труба!$D$40:$D$85,Таблица1[[#This Row],[толщина\nмм ]],Труба!$F$40:$F$85,Таблица1[[#This Row],[название в \nАСТРА]])","v":0},{"$f":"Таблица1[[#This Row],[Расход целых]]+Таблица1[[#This Row],[Расход деловых]]","v":0},{"$f":"Таблица1[[#This Row],[Чистый лом целых]]+Таблица1[[#This Row],[Чистый лом деловых]]-Таблица1[[#This Row],[Отход на порезку]]","v":0},{"$f":"Таблица1[[#This Row],[кол-во\n на план\n этого профиля]]*Таблица1[[#This Row],[толщина реза\nмм]]/1000/2*Таблица1[[#This Row],[масса 2м\n(коэф)]]","v":0},{"$f":"SUMIFS(Труба!$AA$40:$AA$85,Труба!$B$40:$B$85,Таблица1[[#This Row],[длина трубы\nмм]],Труба!$C$40:$C$85,\"=500\",Труба!$D$40:$D$85,Таблица1[[#This Row],[толщина\nмм ]],Труба!$F$40:$F$85,Таблица1[[#This Row],[название в \nАСТРА]])","v":0},{"$f":"SUMIFS(Труба!$AA$40:$AA$85,Труба!$B$40:$B$85,Таблица1[[#This Row],[не равно\n(для расчета)]],Труба!$C$40:$C$85,\"=500\",Труба!$D$40:$D$85,Таблица1[[#This Row],[толщина\nмм ]],Труба!$F$40:$F$85,Таблица1[[#This Row],[название в \nАСТРА]])","v":0}]
[null,null,null,{"$f":"SUMIFS(Труба!$I$9:$I$36,Труба!$F$9:$F$36,Таблица1[[#This Row],[название в \nАСТРА]])","v":0},"Прямоугольная","Труба","25х25х0,8","Труба 25х25 чм, 0.8 мм",0.8,1.2383999999999999,6000,"<>6000",5,{"$f":"SUMIFS(Труба!$G$40:$G$85,Труба!$B$40:$B$85,Таблица1[[#This Row],[длина трубы\nмм]],Труба!$C$40:$C$85,\"=500\",Труба!$D$40:$D$85,Таблица1[[#This Row],[толщина\nмм ]],Труба!$F$40:$F$85,Таблица1[[#This Row],[название в \nАСТРА]])","v":0},{"$f":"SUMIFS(Труба!$V$40:$V$85,Труба!$B$40:$B$85,Таблица1[[#This Row],[длина трубы\nмм]],Труба!$C$40:$C$85,\"=500\",Труба!$D$40:$D$85,Таблица1[[#This Row],[толщина\nмм ]],Труба!$F$40:$F$85,Таблица1[[#This Row],[название в \nАСТРА]])","v":0},{"$f":"SUMIFS(Труба!$V$40:$V$85,Труба!$B$40:$B$85,Таблица1[[#This Row],[не равно\n(для расчета)]],Труба!$C$40:$C$85,\"=500\",Труба!$D$40:$D$85,Таблица1[[#This Row],[толщина\nмм ]],Труба!$F$40:$F$85,Таблица1[[#This Row],[название в \nАСТРА]])","v":0},{"$f":"Таблица1[[#This Row],[Масса дет. целых]]+Таблица1[[#This Row],[Масса дет. Деловых]]","v":0},{"$f":"SUMIFS(Труба!$M$40:$M$85,Труба!$B$40:$B$85,Таблица1[[#This Row],[длина трубы\nмм]],Труба!$C$40:$C$85,\"=500\",Труба!$D$40:$D$85,Таблица1[[#This Row],[толщина\nмм ]],Труба!$F$40:$F$85,Таблица1[[#This Row],[название в \nАСТРА]])","v":0},{"$f":"SUMIFS(Труба!$M$40:$M$85,Труба!$B$40:$B$85,Таблица1[[#This Row],[не равно\n(для расчета)]],Труба!$C$40:$C$85,\"=500\",Труба!$D$40:$D$85,Таблица1[[#This Row],[толщина\nмм ]],Труба!$F$40:$F$85,Таблица1[[#This Row],[название в \nАСТРА]])","v":0},{"$f":"Таблица1[[#This Row],[Масса целых]]+Таблица1[[#This Row],[Масса деловых]]","v":0},{"$f":"SUMIFS(Труба!$P$40:$P$85,Труба!$B$40:$B$85,Таблица1[[#This Row],[длина трубы\nмм]],Труба!$C$40:$C$85,\"=500\",Труба!$D$40:$D$85,Таблица1[[#This Row],[толщина\nмм ]],Труба!$F$40:$F$85,Таблица1[[#This Row],[название в \nАСТРА]])","v":0},{"$f":"SUMIFS(Труба!$P$40:$P$85,Труба!$B$40:$B$85,Таблица1[[#This Row],[не равно\n(для расчета)]],Труба!$C$40:$C$85,\"=500\",Труба!$D$40:$D$85,Таблица1[[#This Row],[толщина\nмм ]],Труба!$F$40:$F$85,Таблица1[[#This Row],[название в \nАСТРА]])","v":0},{"$f":"Таблица1[[#This Row],[Дел. ост.  Целых]]+Таблица1[[#This Row],[Дел. ост. Деловых]]","v":0},{"$f":"SUMIFS(Труба!$Z$40:$Z$85,Труба!$B$40:$B$85,Таблица1[[#This Row],[длина трубы\nмм]],Труба!$C$40:$C$85,\"=500\",Труба!$D$40:$D$85,Таблица1[[#This Row],[толщина\nмм ]],Труба!$F$40:$F$85,Таблица1[[#This Row],[название в \nАСТРА]])","v":0},{"$f":"SUMIFS(Труба!$Z$40:$Z$85,Труба!$B$40:$B$85,Таблица1[[#This Row],[не равно\n(для расчета)]],Труба!$C$40:$C$85,\"=500\",Труба!$D$40:$D$85,Таблица1[[#This Row],[толщина\nмм ]],Труба!$F$40:$F$85,Таблица1[[#This Row],[название в \nАСТРА]])","v":0},{"$f":"Таблица1[[#This Row],[Расход целых]]+Таблица1[[#This Row],[Расход деловых]]","v":0},{"$f":"Таблица1[[#This Row],[Чистый лом целых]]+Таблица1[[#This Row],[Чистый лом деловых]]-Таблица1[[#This Row],[Отход на порезку]]","v":0},{"$f":"Таблица1[[#This Row],[кол-во\n на план\n этого профиля]]*Таблица1[[#This Row],[толщина реза\nмм]]/1000/2*Таблица1[[#This Row],[масса 2м\n(коэф)]]","v":0},{"$f":"SUMIFS(Труба!$AA$40:$AA$85,Труба!$B$40:$B$85,Таблица1[[#This Row],[длина трубы\nмм]],Труба!$C$40:$C$85,\"=500\",Труба!$D$40:$D$85,Таблица1[[#This Row],[толщина\nмм ]],Труба!$F$40:$F$85,Таблица1[[#This Row],[название в \nАСТРА]])","v":0},{"$f":"SUMIFS(Труба!$AA$40:$AA$85,Труба!$B$40:$B$85,Таблица1[[#This Row],[не равно\n(для расчета)]],Труба!$C$40:$C$85,\"=500\",Труба!$D$40:$D$85,Таблица1[[#This Row],[толщина\nмм ]],Труба!$F$40:$F$85,Таблица1[[#This Row],[название в \nАСТРА]])","v":0}]
[null,null,null,{"$f":"SUMIFS(Труба!$I$9:$I$36,Труба!$F$9:$F$36,Таблица1[[#This Row],[название в \nАСТРА]])","v":0},"Прямоугольная","Труба","25х25х1","Труба 25х25 чм, 1.0 мм",1,1.548,6000,"<>6000",5,{"$f":"SUMIFS(Труба!$G$40:$G$85,Труба!$B$40:$B$85,Таблица1[[#This Row],[длина трубы\nмм]],Труба!$C$40:$C$85,\"=500\",Труба!$D$40:$D$85,Таблица1[[#This Row],[толщина\nмм ]],Труба!$F$40:$F$85,Таблица1[[#This Row],[название в \nАСТРА]])","v":0},{"$f":"SUMIFS(Труба!$V$40:$V$85,Труба!$B$40:$B$85,Таблица1[[#This Row],[длина трубы\nмм]],Труба!$C$40:$C$85,\"=500\",Труба!$D$40:$D$85,Таблица1[[#This Row],[толщина\nмм ]],Труба!$F$40:$F$85,Таблица1[[#This Row],[название в \nАСТРА]])","v":0},{"$f":"SUMIFS(Труба!$V$40:$V$85,Труба!$B$40:$B$85,Таблица1[[#This Row],[не равно\n(для расчета)]],Труба!$C$40:$C$85,\"=500\",Труба!$D$40:$D$85,Таблица1[[#This Row],[толщина\nмм ]],Труба!$F$40:$F$85,Таблица1[[#This Row],[название в \nАСТРА]])","v":0},{"$f":"Таблица1[[#This Row],[Масса дет. целых]]+Таблица1[[#This Row],[Масса дет. Деловых]]","v":0},{"$f":"SUMIFS(Труба!$M$40:$M$85,Труба!$B$40:$B$85,Таблица1[[#This Row],[длина трубы\nмм]],Труба!$C$40:$C$85,\"=500\",Труба!$D$40:$D$85,Таблица1[[#This Row],[толщина\nмм ]],Труба!$F$40:$F$85,Таблица1[[#This Row],[название в \nАСТРА]])","v":0},{"$f":"SUMIFS(Труба!$M$40:$M$85,Труба!$B$40:$B$85,Таблица1[[#This Row],[не равно\n(для расчета)]],Труба!$C$40:$C$85,\"=500\",Труба!$D$40:$D$85,Таблица1[[#This Row],[толщина\nмм ]],Труба!$F$40:$F$85,Таблица1[[#This Row],[название в \nАСТРА]])","v":0},{"$f":"Таблица1[[#This Row],[Масса целых]]+Таблица1[[#This Row],[Масса деловых]]","v":0},{"$f":"SUMIFS(Труба!$P$40:$P$85,Труба!$B$40:$B$85,Таблица1[[#This Row],[длина трубы\nмм]],Труба!$C$40:$C$85,\"=500\",Труба!$D$40:$D$85,Таблица1[[#This Row],[толщина\nмм ]],Труба!$F$40:$F$85,Таблица1[[#This Row],[название в \nАСТРА]])","v":0},{"$f":"SUMIFS(Труба!$P$40:$P$85,Труба!$B$40:$B$85,Таблица1[[#This Row],[не равно\n(для расчета)]],Труба!$C$40:$C$85,\"=500\",Труба!$D$40:$D$85,Таблица1[[#This Row],[толщина\nмм ]],Труба!$F$40:$F$85,Таблица1[[#This Row],[название в \nАСТРА]])","v":0},{"$f":"Таблица1[[#This Row],[Дел. ост.  Целых]]+Таблица1[[#This Row],[Дел. ост. Деловых]]","v":0},{"$f":"SUMIFS(Труба!$Z$40:$Z$85,Труба!$B$40:$B$85,Таблица1[[#This Row],[длина трубы\nмм]],Труба!$C$40:$C$85,\"=500\",Труба!$D$40:$D$85,Таблица1[[#This Row],[толщина\nмм ]],Труба!$F$40:$F$85,Таблица1[[#This Row],[название в \nАСТРА]])","v":0},{"$f":"SUMIFS(Труба!$Z$40:$Z$85,Труба!$B$40:$B$85,Таблица1[[#This Row],[не равно\n(для расчета)]],Труба!$C$40:$C$85,\"=500\",Труба!$D$40:$D$85,Таблица1[[#This Row],[толщина\nмм ]],Труба!$F$40:$F$85,Таблица1[[#This Row],[название в \nАСТРА]])","v":0},{"$f":"Таблица1[[#This Row],[Расход целых]]+Таблица1[[#This Row],[Расход деловых]]","v":0},{"$f":"Таблица1[[#This Row],[Чистый лом целых]]+Таблица1[[#This Row],[Чистый лом деловых]]-Таблица1[[#This Row],[Отход на порезку]]","v":0},{"$f":"Таблица1[[#This Row],[кол-во\n на план\n этого профиля]]*Таблица1[[#This Row],[толщина реза\nмм]]/1000/2*Таблица1[[#This Row],[масса 2м\n(коэф)]]","v":0},{"$f":"SUMIFS(Труба!$AA$40:$AA$85,Труба!$B$40:$B$85,Таблица1[[#This Row],[длина трубы\nмм]],Труба!$C$40:$C$85,\"=500\",Труба!$D$40:$D$85,Таблица1[[#This Row],[толщина\nмм ]],Труба!$F$40:$F$85,Таблица1[[#This Row],[название в \nАСТРА]])","v":0},{"$f":"SUMIFS(Труба!$AA$40:$AA$85,Труба!$B$40:$B$85,Таблица1[[#This Row],[не равно\n(для расчета)]],Труба!$C$40:$C$85,\"=500\",Труба!$D$40:$D$85,Таблица1[[#This Row],[толщина\nмм ]],Труба!$F$40:$F$85,Таблица1[[#This Row],[название в \nАСТРА]])","v":0}]
[null,null,null,{"$f":"SUMIFS(Труба!$I$9:$I$36,Труба!$F$9:$F$36,Таблица1[[#This Row],[название в \nАСТРА]])","v":0},"Прямоугольная","Труба","25х25х1,2","Труба 25х25 чм, 1.2 мм",1.2,1.8575999999999999,6000,"<>6000",5,{"$f":"SUMIFS(Труба!$G$40:$G$85,Труба!$B$40:$B$85,Таблица1[[#This Row],[длина трубы\nмм]],Труба!$C$40:$C$85,\"=500\",Труба!$D$40:$D$85,Таблица1[[#This Row],[толщина\nмм ]],Труба!$F$40:$F$85,Таблица1[[#This Row],[название в \nАСТРА]])","v":0},{"$f":"SUMIFS(Труба!$V$40:$V$85,Труба!$B$40:$B$85,Таблица1[[#This Row],[длина трубы\nмм]],Труба!$C$40:$C$85,\"=500\",Труба!$D$40:$D$85,Таблица1[[#This Row],[толщина\nмм ]],Труба!$F$40:$F$85,Таблица1[[#This Row],[название в \nАСТРА]])","v":0},{"$f":"SUMIFS(Труба!$V$40:$V$85,Труба!$B$40:$B$85,Таблица1[[#This Row],[не равно\n(для расчета)]],Труба!$C$40:$C$85,\"=500\",Труба!$D$40:$D$85,Таблица1[[#This Row],[толщина\nмм ]],Труба!$F$40:$F$85,Таблица1[[#This Row],[название в \nАСТРА]])","v":0},{"$f":"Таблица1[[#This Row],[Масса дет. целых]]+Таблица1[[#This Row],[Масса дет. Деловых]]","v":0},{"$f":"SUMIFS(Труба!$M$40:$M$85,Труба!$B$40:$B$85,Таблица1[[#This Row],[длина трубы\nмм]],Труба!$C$40:$C$85,\"=500\",Труба!$D$40:$D$85,Таблица1[[#This Row],[толщина\nмм ]],Труба!$F$40:$F$85,Таблица1[[#This Row],[название в \nАСТРА]])","v":0},{"$f":"SUMIFS(Труба!$M$40:$M$85,Труба!$B$40:$B$85,Таблица1[[#This Row],[не равно\n(для расчета)]],Труба!$C$40:$C$85,\"=500\",Труба!$D$40:$D$85,Таблица1[[#This Row],[толщина\nмм ]],Труба!$F$40:$F$85,Таблица1[[#This Row],[название в \nАСТРА]])","v":0},{"$f":"Таблица1[[#This Row],[Масса целых]]+Таблица1[[#This Row],[Масса деловых]]","v":0},{"$f":"SUMIFS(Труба!$P$40:$P$85,Труба!$B$40:$B$85,Таблица1[[#This Row],[длина трубы\nмм]],Труба!$C$40:$C$85,\"=500\",Труба!$D$40:$D$85,Таблица1[[#This Row],[толщина\nмм ]],Труба!$F$40:$F$85,Таблица1[[#This Row],[название в \nАСТРА]])","v":0},{"$f":"SUMIFS(Труба!$P$40:$P$85,Труба!$B$40:$B$85,Таблица1[[#This Row],[не равно\n(для расчета)]],Труба!$C$40:$C$85,\"=500\",Труба!$D$40:$D$85,Таблица1[[#This Row],[толщина\nмм ]],Труба!$F$40:$F$85,Таблица1[[#This Row],[название в \nАСТРА]])","v":0},{"$f":"Таблица1[[#This Row],[Дел. ост.  Целых]]+Таблица1[[#This Row],[Дел. ост. Деловых]]","v":0},{"$f":"SUMIFS(Труба!$Z$40:$Z$85,Труба!$B$40:$B$85,Таблица1[[#This Row],[длина трубы\nмм]],Труба!$C$40:$C$85,\"=500\",Труба!$D$40:$D$85,Таблица1[[#This Row],[толщина\nмм ]],Труба!$F$40:$F$85,Таблица1[[#This Row],[название в \nАСТРА]])","v":0},{"$f":"SUMIFS(Труба!$Z$40:$Z$85,Труба!$B$40:$B$85,Таблица1[[#This Row],[не равно\n(для расчета)]],Труба!$C$40:$C$85,\"=500\",Труба!$D$40:$D$85,Таблица1[[#This Row],[толщина\nмм ]],Труба!$F$40:$F$85,Таблица1[[#This Row],[название в \nАСТРА]])","v":0},{"$f":"Таблица1[[#This Row],[Расход целых]]+Таблица1[[#This Row],[Расход деловых]]","v":0},{"$f":"Таблица1[[#This Row],[Чистый лом целых]]+Таблица1[[#This Row],[Чистый лом деловых]]-Таблица1[[#This Row],[Отход на порезку]]","v":0},{"$f":"Таблица1[[#This Row],[кол-во\n на план\n этого профиля]]*Таблица1[[#This Row],[толщина реза\nмм]]/1000/2*Таблица1[[#This Row],[масса 2м\n(коэф)]]","v":0},{"$f":"SUMIFS(Труба!$AA$40:$AA$85,Труба!$B$40:$B$85,Таблица1[[#This Row],[длина трубы\nмм]],Труба!$C$40:$C$85,\"=500\",Труба!$D$40:$D$85,Таблица1[[#This Row],[толщина\nмм ]],Труба!$F$40:$F$85,Таблица1[[#This Row],[название в \nАСТРА]])","v":0},{"$f":"SUMIFS(Труба!$AA$40:$AA$85,Труба!$B$40:$B$85,Таблица1[[#This Row],[не равно\n(для расчета)]],Труба!$C$40:$C$85,\"=500\",Труба!$D$40:$D$85,Таблица1[[#This Row],[толщина\nмм ]],Труба!$F$40:$F$85,Таблица1[[#This Row],[название в \nАСТРА]])","v":0}]
[null,null,null,{"$f":"SUMIFS(Труба!$I$9:$I$36,Труба!$F$9:$F$36,Таблица1[[#This Row],[название в \nАСТРА]])","v":0},"Прямоугольная","Труба","25х25х1,5","Труба 25х25 чм, 1.5 мм",1.5,2.2200000000000002,6000,"<>6000",5,{"$f":"SUMIFS(Труба!$G$40:$G$85,Труба!$B$40:$B$85,Таблица1[[#This Row],[длина трубы\nмм]],Труба!$C$40:$C$85,\"=500\",Труба!$D$40:$D$85,Таблица1[[#This Row],[толщина\nмм ]],Труба!$F$40:$F$85,Таблица1[[#This Row],[название в \nАСТРА]])","v":0},{"$f":"SUMIFS(Труба!$V$40:$V$85,Труба!$B$40:$B$85,Таблица1[[#This Row],[длина трубы\nмм]],Труба!$C$40:$C$85,\"=500\",Труба!$D$40:$D$85,Таблица1[[#This Row],[толщина\nмм ]],Труба!$F$40:$F$85,Таблица1[[#This Row],[название в \nАСТРА]])","v":0},{"$f":"SUMIFS(Труба!$V$40:$V$85,Труба!$B$40:$B$85,Таблица1[[#This Row],[не равно\n(для расчета)]],Труба!$C$40:$C$85,\"=500\",Труба!$D$40:$D$85,Таблица1[[#This Row],[толщина\nмм ]],Труба!$F$40:$F$85,Таблица1[[#This Row],[название в \nАСТРА]])","v":0},{"$f":"Таблица1[[#This Row],[Масса дет. целых]]+Таблица1[[#This Row],[Масса дет. Деловых]]","v":0},{"$f":"SUMIFS(Труба!$M$40:$M$85,Труба!$B$40:$B$85,Таблица1[[#This Row],[длина трубы\nмм]],Труба!$C$40:$C$85,\"=500\",Труба!$D$40:$D$85,Таблица1[[#This Row],[толщина\nмм ]],Труба!$F$40:$F$85,Таблица1[[#This Row],[название в \nАСТРА]])","v":0},{"$f":"SUMIFS(Труба!$M$40:$M$85,Труба!$B$40:$B$85,Таблица1[[#This Row],[не равно\n(для расчета)]],Труба!$C$40:$C$85,\"=500\",Труба!$D$40:$D$85,Таблица1[[#This Row],[толщина\nмм ]],Труба!$F$40:$F$85,Таблица1[[#This Row],[название в \nАСТРА]])","v":0},{"$f":"Таблица1[[#This Row],[Масса целых]]+Таблица1[[#This Row],[Масса деловых]]","v":0},{"$f":"SUMIFS(Труба!$P$40:$P$85,Труба!$B$40:$B$85,Таблица1[[#This Row],[длина трубы\nмм]],Труба!$C$40:$C$85,\"=500\",Труба!$D$40:$D$85,Таблица1[[#This Row],[толщина\nмм ]],Труба!$F$40:$F$85,Таблица1[[#This Row],[название в \nАСТРА]])","v":0},{"$f":"SUMIFS(Труба!$P$40:$P$85,Труба!$B$40:$B$85,Таблица1[[#This Row],[не равно\n(для расчета)]],Труба!$C$40:$C$85,\"=500\",Труба!$D$40:$D$85,Таблица1[[#This Row],[толщина\nмм ]],Труба!$F$40:$F$85,Таблица1[[#This Row],[название в \nАСТРА]])","v":0},{"$f":"Таблица1[[#This Row],[Дел. ост.  Целых]]+Таблица1[[#This Row],[Дел. ост. Деловых]]","v":0},{"$f":"SUMIFS(Труба!$Z$40:$Z$85,Труба!$B$40:$B$85,Таблица1[[#This Row],[длина трубы\nмм]],Труба!$C$40:$C$85,\"=500\",Труба!$D$40:$D$85,Таблица1[[#This Row],[толщина\nмм ]],Труба!$F$40:$F$85,Таблица1[[#This Row],[название в \nАСТРА]])","v":0},{"$f":"SUMIFS(Труба!$Z$40:$Z$85,Труба!$B$40:$B$85,Таблица1[[#This Row],[не равно\n(для расчета)]],Труба!$C$40:$C$85,\"=500\",Труба!$D$40:$D$85,Таблица1[[#This Row],[толщина\nмм ]],Труба!$F$40:$F$85,Таблица1[[#This Row],[название в \nАСТРА]])","v":0},{"$f":"Таблица1[[#This Row],[Расход целых]]+Таблица1[[#This Row],[Расход деловых]]","v":0},{"$f":"Таблица1[[#This Row],[Чистый лом целых]]+Таблица1[[#This Row],[Чистый лом деловых]]-Таблица1[[#This Row],[Отход на порезку]]","v":0},{"$f":"Таблица1[[#This Row],[кол-во\n на план\n этого профиля]]*Таблица1[[#This Row],[толщина реза\nмм]]/1000/2*Таблица1[[#This Row],[масса 2м\n(коэф)]]","v":0},{"$f":"SUMIFS(Труба!$AA$40:$AA$85,Труба!$B$40:$B$85,Таблица1[[#This Row],[длина трубы\nмм]],Труба!$C$40:$C$85,\"=500\",Труба!$D$40:$D$85,Таблица1[[#This Row],[толщина\nмм ]],Труба!$F$40:$F$85,Таблица1[[#This Row],[название в \nАСТРА]])","v":0},{"$f":"SUMIFS(Труба!$AA$40:$AA$85,Труба!$B$40:$B$85,Таблица1[[#This Row],[не равно\n(для расчета)]],Труба!$C$40:$C$85,\"=500\",Труба!$D$40:$D$85,Таблица1[[#This Row],[толщина\nмм ]],Труба!$F$40:$F$85,Таблица1[[#This Row],[название в \nАСТРА]])","v":0}]
[null,null,null,{"$f":"SUMIFS(Труба!$I$9:$I$36,Труба!$F$9:$F$36,Таблица1[[#This Row],[название в \nАСТРА]])","v":0},"Прямоугольная","Труба","25х25х2","Труба 25х25 чм, 2.0 мм",2,3.0960000000000001,6000,"<>6000",5,{"$f":"SUMIFS(Труба!$G$40:$G$85,Труба!$B$40:$B$85,Таблица1[[#This Row],[длина трубы\nмм]],Труба!$C$40:$C$85,\"=500\",Труба!$D$40:$D$85,Таблица1[[#This Row],[толщина\nмм ]],Труба!$F$40:$F$85,Таблица1[[#This Row],[название в \nАСТРА]])","v":0},{"$f":"SUMIFS(Труба!$V$40:$V$85,Труба!$B$40:$B$85,Таблица1[[#This Row],[длина трубы\nмм]],Труба!$C$40:$C$85,\"=500\",Труба!$D$40:$D$85,Таблица1[[#This Row],[толщина\nмм ]],Труба!$F$40:$F$85,Таблица1[[#This Row],[название в \nАСТРА]])","v":0},{"$f":"SUMIFS(Труба!$V$40:$V$85,Труба!$B$40:$B$85,Таблица1[[#This Row],[не равно\n(для расчета)]],Труба!$C$40:$C$85,\"=500\",Труба!$D$40:$D$85,Таблица1[[#This Row],[толщина\nмм ]],Труба!$F$40:$F$85,Таблица1[[#This Row],[название в \nАСТРА]])","v":0},{"$f":"Таблица1[[#This Row],[Масса дет. целых]]+Таблица1[[#This Row],[Масса дет. Деловых]]","v":0},{"$f":"SUMIFS(Труба!$M$40:$M$85,Труба!$B$40:$B$85,Таблица1[[#This Row],[длина трубы\nмм]],Труба!$C$40:$C$85,\"=500\",Труба!$D$40:$D$85,Таблица1[[#This Row],[толщина\nмм ]],Труба!$F$40:$F$85,Таблица1[[#This Row],[название в \nАСТРА]])","v":0},{"$f":"SUMIFS(Труба!$M$40:$M$85,Труба!$B$40:$B$85,Таблица1[[#This Row],[не равно\n(для расчета)]],Труба!$C$40:$C$85,\"=500\",Труба!$D$40:$D$85,Таблица1[[#This Row],[толщина\nмм ]],Труба!$F$40:$F$85,Таблица1[[#This Row],[название в \nАСТРА]])","v":0},{"$f":"Таблица1[[#This Row],[Масса целых]]+Таблица1[[#This Row],[Масса деловых]]","v":0},{"$f":"SUMIFS(Труба!$P$40:$P$85,Труба!$B$40:$B$85,Таблица1[[#This Row],[длина трубы\nмм]],Труба!$C$40:$C$85,\"=500\",Труба!$D$40:$D$85,Таблица1[[#This Row],[толщина\nмм ]],Труба!$F$40:$F$85,Таблица1[[#This Row],[название в \nАСТРА]])","v":0},{"$f":"SUMIFS(Труба!$P$40:$P$85,Труба!$B$40:$B$85,Таблица1[[#This Row],[не равно\n(для расчета)]],Труба!$C$40:$C$85,\"=500\",Труба!$D$40:$D$85,Таблица1[[#This Row],[толщина\nмм ]],Труба!$F$40:$F$85,Таблица1[[#This Row],[название в \nАСТРА]])","v":0},{"$f":"Таблица1[[#This Row],[Дел. ост.  Целых]]+Таблица1[[#This Row],[Дел. ост. Деловых]]","v":0},{"$f":"SUMIFS(Труба!$Z$40:$Z$85,Труба!$B$40:$B$85,Таблица1[[#This Row],[длина трубы\nмм]],Труба!$C$40:$C$85,\"=500\",Труба!$D$40:$D$85,Таблица1[[#This Row],[толщина\nмм ]],Труба!$F$40:$F$85,Таблица1[[#This Row],[название в \nАСТРА]])","v":0},{"$f":"SUMIFS(Труба!$Z$40:$Z$85,Труба!$B$40:$B$85,Таблица1[[#This Row],[не равно\n(для расчета)]],Труба!$C$40:$C$85,\"=500\",Труба!$D$40:$D$85,Таблица1[[#This Row],[толщина\nмм ]],Труба!$F$40:$F$85,Таблица1[[#This Row],[название в \nАСТРА]])","v":0},{"$f":"Таблица1[[#This Row],[Расход целых]]+Таблица1[[#This Row],[Расход деловых]]","v":0},{"$f":"Таблица1[[#This Row],[Чистый лом целых]]+Таблица1[[#This Row],[Чистый лом деловых]]-Таблица1[[#This Row],[Отход на порезку]]","v":0},{"$f":"Таблица1[[#This Row],[кол-во\n на план\n этого профиля]]*Таблица1[[#This Row],[толщина реза\nмм]]/1000/2*Таблица1[[#This Row],[масса 2м\n(коэф)]]","v":0},{"$f":"SUMIFS(Труба!$AA$40:$AA$85,Труба!$B$40:$B$85,Таблица1[[#This Row],[длина трубы\nмм]],Труба!$C$40:$C$85,\"=500\",Труба!$D$40:$D$85,Таблица1[[#This Row],[толщина\nмм ]],Труба!$F$40:$F$85,Таблица1[[#This Row],[название в \nАСТРА]])","v":0},{"$f":"SUMIFS(Труба!$AA$40:$AA$85,Труба!$B$40:$B$85,Таблица1[[#This Row],[не равно\n(для расчета)]],Труба!$C$40:$C$85,\"=500\",Труба!$D$40:$D$85,Таблица1[[#This Row],[толщина\nмм ]],Труба!$F$40:$F$85,Таблица1[[#This Row],[название в \nАСТРА]])","v":0}]
[null,null,null,{"$f":"SUMIFS(Труба!$I$9:$I$36,Труба!$F$9:$F$36,Таблица1[[#This Row],[название в \nАСТРА]])","v":0},"Прямоугольная","Труба","28х25х1,5","Труба 25х28 чм, 1.5 мм",1.5,2.6,6000,"<>6000",5,{"$f":"SUMIFS(Труба!$G$40:$G$85,Труба!$B$40:$B$85,Таблица1[[#This Row],[длина трубы\nмм]],Труба!$C$40:$C$85,\"=500\",Труба!$D$40:$D$85,Таблица1[[#This Row],[толщина\nмм ]],Труба!$F$40:$F$85,Таблица1[[#This Row],[название в \nАСТРА]])","v":0},{"$f":"SUMIFS(Труба!$V$40:$V$85,Труба!$B$40:$B$85,Таблица1[[#This Row],[длина трубы\nмм]],Труба!$C$40:$C$85,\"=500\",Труба!$D$40:$D$85,Таблица1[[#This Row],[толщина\nмм ]],Труба!$F$40:$F$85,Таблица1[[#This Row],[название в \nАСТРА]])","v":0},{"$f":"SUMIFS(Труба!$V$40:$V$85,Труба!$B$40:$B$85,Таблица1[[#This Row],[не равно\n(для расчета)]],Труба!$C$40:$C$85,\"=500\",Труба!$D$40:$D$85,Таблица1[[#This Row],[толщина\nмм ]],Труба!$F$40:$F$85,Таблица1[[#This Row],[название в \nАСТРА]])","v":0},{"$f":"Таблица1[[#This Row],[Масса дет. целых]]+Таблица1[[#This Row],[Масса дет. Деловых]]","v":0},{"$f":"SUMIFS(Труба!$M$40:$M$85,Труба!$B$40:$B$85,Таблица1[[#This Row],[длина трубы\nмм]],Труба!$C$40:$C$85,\"=500\",Труба!$D$40:$D$85,Таблица1[[#This Row],[толщина\nмм ]],Труба!$F$40:$F$85,Таблица1[[#This Row],[название в \nАСТРА]])","v":0},{"$f":"SUMIFS(Труба!$M$40:$M$85,Труба!$B$40:$B$85,Таблица1[[#This Row],[не равно\n(для расчета)]],Труба!$C$40:$C$85,\"=500\",Труба!$D$40:$D$85,Таблица1[[#This Row],[толщина\nмм ]],Труба!$F$40:$F$85,Таблица1[[#This Row],[название в \nАСТРА]])","v":0},{"$f":"Таблица1[[#This Row],[Масса целых]]+Таблица1[[#This Row],[Масса деловых]]","v":0},{"$f":"SUMIFS(Труба!$P$40:$P$85,Труба!$B$40:$B$85,Таблица1[[#This Row],[длина трубы\nмм]],Труба!$C$40:$C$85,\"=500\",Труба!$D$40:$D$85,Таблица1[[#This Row],[толщина\nмм ]],Труба!$F$40:$F$85,Таблица1[[#This Row],[название в \nАСТРА]])","v":0},{"$f":"SUMIFS(Труба!$P$40:$P$85,Труба!$B$40:$B$85,Таблица1[[#This Row],[не равно\n(для расчета)]],Труба!$C$40:$C$85,\"=500\",Труба!$D$40:$D$85,Таблица1[[#This Row],[толщина\nмм ]],Труба!$F$40:$F$85,Таблица1[[#This Row],[название в \nАСТРА]])","v":0},{"$f":"Таблица1[[#This Row],[Дел. ост.  Целых]]+Таблица1[[#This Row],[Дел. ост. Деловых]]","v":0},{"$f":"SUMIFS(Труба!$Z$40:$Z$85,Труба!$B$40:$B$85,Таблица1[[#This Row],[длина трубы\nмм]],Труба!$C$40:$C$85,\"=500\",Труба!$D$40:$D$85,Таблица1[[#This Row],[толщина\nмм ]],Труба!$F$40:$F$85,Таблица1[[#This Row],[название в \nАСТРА]])","v":0},{"$f":"SUMIFS(Труба!$Z$40:$Z$85,Труба!$B$40:$B$85,Таблица1[[#This Row],[не равно\n(для расчета)]],Труба!$C$40:$C$85,\"=500\",Труба!$D$40:$D$85,Таблица1[[#This Row],[толщина\nмм ]],Труба!$F$40:$F$85,Таблица1[[#This Row],[название в \nАСТРА]])","v":0},{"$f":"Таблица1[[#This Row],[Расход целых]]+Таблица1[[#This Row],[Расход деловых]]","v":0},{"$f":"Таблица1[[#This Row],[Чистый лом целых]]+Таблица1[[#This Row],[Чистый лом деловых]]-Таблица1[[#This Row],[Отход на порезку]]","v":0},{"$f":"Таблица1[[#This Row],[кол-во\n на план\n этого профиля]]*Таблица1[[#This Row],[толщина реза\nмм]]/1000/2*Таблица1[[#This Row],[масса 2м\n(коэф)]]","v":0},{"$f":"SUMIFS(Труба!$AA$40:$AA$85,Труба!$B$40:$B$85,Таблица1[[#This Row],[длина трубы\nмм]],Труба!$C$40:$C$85,\"=500\",Труба!$D$40:$D$85,Таблица1[[#This Row],[толщина\nмм ]],Труба!$F$40:$F$85,Таблица1[[#This Row],[название в \nАСТРА]])","v":0},{"$f":"SUMIFS(Труба!$AA$40:$AA$85,Труба!$B$40:$B$85,Таблица1[[#This Row],[не равно\n(для расчета)]],Труба!$C$40:$C$85,\"=500\",Труба!$D$40:$D$85,Таблица1[[#This Row],[толщина\nмм ]],Труба!$F$40:$F$85,Таблица1[[#This Row],[название в \nАСТРА]])","v":0}]
[null,null,null,{"$f":"SUMIFS(Труба!$I$9:$I$36,Труба!$F$9:$F$36,Таблица1[[#This Row],[название в \nАСТРА]])","v":0},"Прямоугольная","Труба","28х25х2","Труба 25х28 чм, 2.0 мм",2,null,6000,"<>6000",5,{"$f":"SUMIFS(Труба!$G$40:$G$85,Труба!$B$40:$B$85,Таблица1[[#This Row],[длина трубы\nмм]],Труба!$C$40:$C$85,\"=500\",Труба!$D$40:$D$85,Таблица1[[#This Row],[толщина\nмм ]],Труба!$F$40:$F$85,Таблица1[[#This Row],[название в \nАСТРА]])","v":0},{"$f":"SUMIFS(Труба!$V$40:$V$85,Труба!$B$40:$B$85,Таблица1[[#This Row],[длина трубы\nмм]],Труба!$C$40:$C$85,\"=500\",Труба!$D$40:$D$85,Таблица1[[#This Row],[толщина\nмм ]],Труба!$F$40:$F$85,Таблица1[[#This Row],[название в \nАСТРА]])","v":0},{"$f":"SUMIFS(Труба!$V$40:$V$85,Труба!$B$40:$B$85,Таблица1[[#This Row],[не равно\n(для расчета)]],Труба!$C$40:$C$85,\"=500\",Труба!$D$40:$D$85,Таблица1[[#This Row],[толщина\nмм ]],Труба!$F$40:$F$85,Таблица1[[#This Row],[название в \nАСТРА]])","v":0},{"$f":"Таблица1[[#This Row],[Масса дет. целых]]+Таблица1[[#This Row],[Масса дет. Деловых]]","v":0},{"$f":"SUMIFS(Труба!$M$40:$M$85,Труба!$B$40:$B$85,Таблица1[[#This Row],[длина трубы\nмм]],Труба!$C$40:$C$85,\"=500\",Труба!$D$40:$D$85,Таблица1[[#This Row],[толщина\nмм ]],Труба!$F$40:$F$85,Таблица1[[#This Row],[название в \nАСТРА]])","v":0},{"$f":"SUMIFS(Труба!$M$40:$M$85,Труба!$B$40:$B$85,Таблица1[[#This Row],[не равно\n(для расчета)]],Труба!$C$40:$C$85,\"=500\",Труба!$D$40:$D$85,Таблица1[[#This Row],[толщина\nмм ]],Труба!$F$40:$F$85,Таблица1[[#This Row],[название в \nАСТРА]])","v":0},{"$f":"Таблица1[[#This Row],[Масса целых]]+Таблица1[[#This Row],[Масса деловых]]","v":0},{"$f":"SUMIFS(Труба!$P$40:$P$85,Труба!$B$40:$B$85,Таблица1[[#This Row],[длина трубы\nмм]],Труба!$C$40:$C$85,\"=500\",Труба!$D$40:$D$85,Таблица1[[#This Row],[толщина\nмм ]],Труба!$F$40:$F$85,Таблица1[[#This Row],[название в \nАСТРА]])","v":0},{"$f":"SUMIFS(Труба!$P$40:$P$85,Труба!$B$40:$B$85,Таблица1[[#This Row],[не равно\n(для расчета)]],Труба!$C$40:$C$85,\"=500\",Труба!$D$40:$D$85,Таблица1[[#This Row],[толщина\nмм ]],Труба!$F$40:$F$85,Таблица1[[#This Row],[название в \nАСТРА]])","v":0},{"$f":"Таблица1[[#This Row],[Дел. ост.  Целых]]+Таблица1[[#This Row],[Дел. ост. Деловых]]","v":0},{"$f":"SUMIFS(Труба!$Z$40:$Z$85,Труба!$B$40:$B$85,Таблица1[[#This Row],[длина трубы\nмм]],Труба!$C$40:$C$85,\"=500\",Труба!$D$40:$D$85,Таблица1[[#This Row],[толщина\nмм ]],Труба!$F$40:$F$85,Таблица1[[#This Row],[название в \nАСТРА]])","v":0},{"$f":"SUMIFS(Труба!$Z$40:$Z$85,Труба!$B$40:$B$85,Таблица1[[#This Row],[не равно\n(для расчета)]],Труба!$C$40:$C$85,\"=500\",Труба!$D$40:$D$85,Таблица1[[#This Row],[толщина\nмм ]],Труба!$F$40:$F$85,Таблица1[[#This Row],[название в \nАСТРА]])","v":0},{"$f":"Таблица1[[#This Row],[Расход целых]]+Таблица1[[#This Row],[Расход деловых]]","v":0},{"$f":"Таблица1[[#This Row],[Чистый лом целых]]+Таблица1[[#This Row],[Чистый лом деловых]]-Таблица1[[#This Row],[Отход на порезку]]","v":0},{"$f":"Таблица1[[#This Row],[кол-во\n на план\n этого профиля]]*Таблица1[[#This Row],[толщина реза\nмм]]/1000/2*Таблица1[[#This Row],[масса 2м\n(коэф)]]","v":0},{"$f":"SUMIFS(Труба!$AA$40:$AA$85,Труба!$B$40:$B$85,Таблица1[[#This Row],[длина трубы\nмм]],Труба!$C$40:$C$85,\"=500\",Труба!$D$40:$D$85,Таблица1[[#This Row],[толщина\nмм ]],Труба!$F$40:$F$85,Таблица1[[#This Row],[название в \nАСТРА]])","v":0},{"$f":"SUMIFS(Труба!$AA$40:$AA$85,Труба!$B$40:$B$85,Таблица1[[#This Row],[не равно\n(для расчета)]],Труба!$C$40:$C$85,\"=500\",Труба!$D$40:$D$85,Таблица1[[#This Row],[толщина\nмм ]],Труба!$F$40:$F$85,Таблица1[[#This Row],[название в \nАСТРА]])","v":0}]
[null,null,null,{"$f":"SUMIFS(Труба!$I$9:$I$36,Труба!$F$9:$F$36,Таблица1[[#This Row],[название в \nАСТРА]])","v":0},"Прямоугольная","Труба","50х25х1,2","Труба 25х50 чм, 1.2 мм",1.2,2.7,6000,"<>6000",5,{"$f":"SUMIFS(Труба!$G$40:$G$85,Труба!$B$40:$B$85,Таблица1[[#This Row],[длина трубы\nмм]],Труба!$C$40:$C$85,\"=500\",Труба!$D$40:$D$85,Таблица1[[#This Row],[толщина\nмм ]],Труба!$F$40:$F$85,Таблица1[[#This Row],[название в \nАСТРА]])","v":0},{"$f":"SUMIFS(Труба!$V$40:$V$85,Труба!$B$40:$B$85,Таблица1[[#This Row],[длина трубы\nмм]],Труба!$C$40:$C$85,\"=500\",Труба!$D$40:$D$85,Таблица1[[#This Row],[толщина\nмм ]],Труба!$F$40:$F$85,Таблица1[[#This Row],[название в \nАСТРА]])","v":0},{"$f":"SUMIFS(Труба!$V$40:$V$85,Труба!$B$40:$B$85,Таблица1[[#This Row],[не равно\n(для расчета)]],Труба!$C$40:$C$85,\"=500\",Труба!$D$40:$D$85,Таблица1[[#This Row],[толщина\nмм ]],Труба!$F$40:$F$85,Таблица1[[#This Row],[название в \nАСТРА]])","v":0},{"$f":"Таблица1[[#This Row],[Масса дет. целых]]+Таблица1[[#This Row],[Масса дет. Деловых]]","v":0},{"$f":"SUMIFS(Труба!$M$40:$M$85,Труба!$B$40:$B$85,Таблица1[[#This Row],[длина трубы\nмм]],Труба!$C$40:$C$85,\"=500\",Труба!$D$40:$D$85,Таблица1[[#This Row],[толщина\nмм ]],Труба!$F$40:$F$85,Таблица1[[#This Row],[название в \nАСТРА]])","v":0},{"$f":"SUMIFS(Труба!$M$40:$M$85,Труба!$B$40:$B$85,Таблица1[[#This Row],[не равно\n(для расчета)]],Труба!$C$40:$C$85,\"=500\",Труба!$D$40:$D$85,Таблица1[[#This Row],[толщина\nмм ]],Труба!$F$40:$F$85,Таблица1[[#This Row],[название в \nАСТРА]])","v":0},{"$f":"Таблица1[[#This Row],[Масса целых]]+Таблица1[[#This Row],[Масса деловых]]","v":0},{"$f":"SUMIFS(Труба!$P$40:$P$85,Труба!$B$40:$B$85,Таблица1[[#This Row],[длина трубы\nмм]],Труба!$C$40:$C$85,\"=500\",Труба!$D$40:$D$85,Таблица1[[#This Row],[толщина\nмм ]],Труба!$F$40:$F$85,Таблица1[[#This Row],[название в \nАСТРА]])","v":0},{"$f":"SUMIFS(Труба!$P$40:$P$85,Труба!$B$40:$B$85,Таблица1[[#This Row],[не равно\n(для расчета)]],Труба!$C$40:$C$85,\"=500\",Труба!$D$40:$D$85,Таблица1[[#This Row],[толщина\nмм ]],Труба!$F$40:$F$85,Таблица1[[#This Row],[название в \nАСТРА]])","v":0},{"$f":"Таблица1[[#This Row],[Дел. ост.  Целых]]+Таблица1[[#This Row],[Дел. ост. Деловых]]","v":0},{"$f":"SUMIFS(Труба!$Z$40:$Z$85,Труба!$B$40:$B$85,Таблица1[[#This Row],[длина трубы\nмм]],Труба!$C$40:$C$85,\"=500\",Труба!$D$40:$D$85,Таблица1[[#This Row],[толщина\nмм ]],Труба!$F$40:$F$85,Таблица1[[#This Row],[название в \nАСТРА]])","v":0},{"$f":"SUMIFS(Труба!$Z$40:$Z$85,Труба!$B$40:$B$85,Таблица1[[#This Row],[не равно\n(для расчета)]],Труба!$C$40:$C$85,\"=500\",Труба!$D$40:$D$85,Таблица1[[#This Row],[толщина\nмм ]],Труба!$F$40:$F$85,Таблица1[[#This Row],[название в \nАСТРА]])","v":0},{"$f":"Таблица1[[#This Row],[Расход целых]]+Таблица1[[#This Row],[Расход деловых]]","v":0},{"$f":"Таблица1[[#This Row],[Чистый лом целых]]+Таблица1[[#This Row],[Чистый лом деловых]]-Таблица1[[#This Row],[Отход на порезку]]","v":0},{"$f":"Таблица1[[#This Row],[кол-во\n на план\n этого профиля]]*Таблица1[[#This Row],[толщина реза\nмм]]/1000/2*Таблица1[[#This Row],[масса 2м\n(коэф)]]","v":0},{"$f":"SUMIFS(Труба!$AA$40:$AA$85,Труба!$B$40:$B$85,Таблица1[[#This Row],[длина трубы\nмм]],Труба!$C$40:$C$85,\"=500\",Труба!$D$40:$D$85,Таблица1[[#This Row],[толщина\nмм ]],Труба!$F$40:$F$85,Таблица1[[#This Row],[название в \nАСТРА]])","v":0},{"$f":"SUMIFS(Труба!$AA$40:$AA$85,Труба!$B$40:$B$85,Таблица1[[#This Row],[не равно\n(для расчета)]],Труба!$C$40:$C$85,\"=500\",Труба!$D$40:$D$85,Таблица1[[#This Row],[толщина\nмм ]],Труба!$F$40:$F$85,Таблица1[[#This Row],[название в \nАСТРА]])","v":0}]
[null,null,null,{"$f":"SUMIFS(Труба!$I$9:$I$36,Труба!$F$9:$F$36,Таблица1[[#This Row],[название в \nАСТРА]])","v":0},"Прямоугольная","Труба","30х15х1,2","Труба 30х15 чм, 1.2 мм",1.2,1.5660000000000001,6000,"<>6000",5,{"$f":"SUMIFS(Труба!$G$40:$G$85,Труба!$B$40:$B$85,Таблица1[[#This Row],[длина трубы\nмм]],Труба!$C$40:$C$85,\"=500\",Труба!$D$40:$D$85,Таблица1[[#This Row],[толщина\nмм ]],Труба!$F$40:$F$85,Таблица1[[#This Row],[название в \nАСТРА]])","v":0},{"$f":"SUMIFS(Труба!$V$40:$V$85,Труба!$B$40:$B$85,Таблица1[[#This Row],[длина трубы\nмм]],Труба!$C$40:$C$85,\"=500\",Труба!$D$40:$D$85,Таблица1[[#This Row],[толщина\nмм ]],Труба!$F$40:$F$85,Таблица1[[#This Row],[название в \nАСТРА]])","v":0},{"$f":"SUMIFS(Труба!$V$40:$V$85,Труба!$B$40:$B$85,Таблица1[[#This Row],[не равно\n(для расчета)]],Труба!$C$40:$C$85,\"=500\",Труба!$D$40:$D$85,Таблица1[[#This Row],[толщина\nмм ]],Труба!$F$40:$F$85,Таблица1[[#This Row],[название в \nАСТРА]])","v":0},{"$f":"Таблица1[[#This Row],[Масса дет. целых]]+Таблица1[[#This Row],[Масса дет. Деловых]]","v":0},{"$f":"SUMIFS(Труба!$M$40:$M$85,Труба!$B$40:$B$85,Таблица1[[#This Row],[длина трубы\nмм]],Труба!$C$40:$C$85,\"=500\",Труба!$D$40:$D$85,Таблица1[[#This Row],[толщина\nмм ]],Труба!$F$40:$F$85,Таблица1[[#This Row],[название в \nАСТРА]])","v":0},{"$f":"SUMIFS(Труба!$M$40:$M$85,Труба!$B$40:$B$85,Таблица1[[#This Row],[не равно\n(для расчета)]],Труба!$C$40:$C$85,\"=500\",Труба!$D$40:$D$85,Таблица1[[#This Row],[толщина\nмм ]],Труба!$F$40:$F$85,Таблица1[[#This Row],[название в \nАСТРА]])","v":0},{"$f":"Таблица1[[#This Row],[Масса целых]]+Таблица1[[#This Row],[Масса деловых]]","v":0},{"$f":"SUMIFS(Труба!$P$40:$P$85,Труба!$B$40:$B$85,Таблица1[[#This Row],[длина трубы\nмм]],Труба!$C$40:$C$85,\"=500\",Труба!$D$40:$D$85,Таблица1[[#This Row],[толщина\nмм ]],Труба!$F$40:$F$85,Таблица1[[#This Row],[название в \nАСТРА]])","v":0},{"$f":"SUMIFS(Труба!$P$40:$P$85,Труба!$B$40:$B$85,Таблица1[[#This Row],[не равно\n(для расчета)]],Труба!$C$40:$C$85,\"=500\",Труба!$D$40:$D$85,Таблица1[[#This Row],[толщина\nмм ]],Труба!$F$40:$F$85,Таблица1[[#This Row],[название в \nАСТРА]])","v":0},{"$f":"Таблица1[[#This Row],[Дел. ост.  Целых]]+Таблица1[[#This Row],[Дел. ост. Деловых]]","v":0},{"$f":"SUMIFS(Труба!$Z$40:$Z$85,Труба!$B$40:$B$85,Таблица1[[#This Row],[длина трубы\nмм]],Труба!$C$40:$C$85,\"=500\",Труба!$D$40:$D$85,Таблица1[[#This Row],[толщина\nмм ]],Труба!$F$40:$F$85,Таблица1[[#This Row],[название в \nАСТРА]])","v":0},{"$f":"SUMIFS(Труба!$Z$40:$Z$85,Труба!$B$40:$B$85,Таблица1[[#This Row],[не равно\n(для расчета)]],Труба!$C$40:$C$85,\"=500\",Труба!$D$40:$D$85,Таблица1[[#This Row],[толщина\nмм ]],Труба!$F$40:$F$85,Таблица1[[#This Row],[название в \nАСТРА]])","v":0},{"$f":"Таблица1[[#This Row],[Расход целых]]+Таблица1[[#This Row],[Расход деловых]]","v":0},{"$f":"Таблица1[[#This Row],[Чистый лом целых]]+Таблица1[[#This Row],[Чистый лом деловых]]-Таблица1[[#This Row],[Отход на порезку]]","v":0},{"$f":"Таблица1[[#This Row],[кол-во\n на план\n этого профиля]]*Таблица1[[#This Row],[толщина реза\nмм]]/1000/2*Таблица1[[#This Row],[масса 2м\n(коэф)]]","v":0},{"$f":"SUMIFS(Труба!$AA$40:$AA$85,Труба!$B$40:$B$85,Таблица1[[#This Row],[длина трубы\nмм]],Труба!$C$40:$C$85,\"=500\",Труба!$D$40:$D$85,Таблица1[[#This Row],[толщина\nмм ]],Труба!$F$40:$F$85,Таблица1[[#This Row],[название в \nАСТРА]])","v":0},{"$f":"SUMIFS(Труба!$AA$40:$AA$85,Труба!$B$40:$B$85,Таблица1[[#This Row],[не равно\n(для расчета)]],Труба!$C$40:$C$85,\"=500\",Труба!$D$40:$D$85,Таблица1[[#This Row],[толщина\nмм ]],Труба!$F$40:$F$85,Таблица1[[#This Row],[название в \nАСТРА]])","v":0}]
[null,null,null,{"$f":"SUMIFS(Труба!$I$9:$I$36,Труба!$F$9:$F$36,Таблица1[[#This Row],[название в \nАСТРА]])","v":0},"Прямоугольная","Труба","20х30х1","Труба 30х20 чм, 1.0 мм",1,1.5720000000000001,6000,"<>6000",5,{"$f":"SUMIFS(Труба!$G$40:$G$85,Труба!$B$40:$B$85,Таблица1[[#This Row],[длина трубы\nмм]],Труба!$C$40:$C$85,\"=500\",Труба!$D$40:$D$85,Таблица1[[#This Row],[толщина\nмм ]],Труба!$F$40:$F$85,Таблица1[[#This Row],[название в \nАСТРА]])","v":0},{"$f":"SUMIFS(Труба!$V$40:$V$85,Труба!$B$40:$B$85,Таблица1[[#This Row],[длина трубы\nмм]],Труба!$C$40:$C$85,\"=500\",Труба!$D$40:$D$85,Таблица1[[#This Row],[толщина\nмм ]],Труба!$F$40:$F$85,Таблица1[[#This Row],[название в \nАСТРА]])","v":0},{"$f":"SUMIFS(Труба!$V$40:$V$85,Труба!$B$40:$B$85,Таблица1[[#This Row],[не равно\n(для расчета)]],Труба!$C$40:$C$85,\"=500\",Труба!$D$40:$D$85,Таблица1[[#This Row],[толщина\nмм ]],Труба!$F$40:$F$85,Таблица1[[#This Row],[название в \nАСТРА]])","v":0},{"$f":"Таблица1[[#This Row],[Масса дет. целых]]+Таблица1[[#This Row],[Масса дет. Деловых]]","v":0},{"$f":"SUMIFS(Труба!$M$40:$M$85,Труба!$B$40:$B$85,Таблица1[[#This Row],[длина трубы\nмм]],Труба!$C$40:$C$85,\"=500\",Труба!$D$40:$D$85,Таблица1[[#This Row],[толщина\nмм ]],Труба!$F$40:$F$85,Таблица1[[#This Row],[название в \nАСТРА]])","v":0},{"$f":"SUMIFS(Труба!$M$40:$M$85,Труба!$B$40:$B$85,Таблица1[[#This Row],[не равно\n(для расчета)]],Труба!$C$40:$C$85,\"=500\",Труба!$D$40:$D$85,Таблица1[[#This Row],[толщина\nмм ]],Труба!$F$40:$F$85,Таблица1[[#This Row],[название в \nАСТРА]])","v":0},{"$f":"Таблица1[[#This Row],[Масса целых]]+Таблица1[[#This Row],[Масса деловых]]","v":0},{"$f":"SUMIFS(Труба!$P$40:$P$85,Труба!$B$40:$B$85,Таблица1[[#This Row],[длина трубы\nмм]],Труба!$C$40:$C$85,\"=500\",Труба!$D$40:$D$85,Таблица1[[#This Row],[толщина\nмм ]],Труба!$F$40:$F$85,Таблица1[[#This Row],[название в \nАСТРА]])","v":0},{"$f":"SUMIFS(Труба!$P$40:$P$85,Труба!$B$40:$B$85,Таблица1[[#This Row],[не равно\n(для расчета)]],Труба!$C$40:$C$85,\"=500\",Труба!$D$40:$D$85,Таблица1[[#This Row],[толщина\nмм ]],Труба!$F$40:$F$85,Таблица1[[#This Row],[название в \nАСТРА]])","v":0},{"$f":"Таблица1[[#This Row],[Дел. ост.  Целых]]+Таблица1[[#This Row],[Дел. ост. Деловых]]","v":0},{"$f":"SUMIFS(Труба!$Z$40:$Z$85,Труба!$B$40:$B$85,Таблица1[[#This Row],[длина трубы\nмм]],Труба!$C$40:$C$85,\"=500\",Труба!$D$40:$D$85,Таблица1[[#This Row],[толщина\nмм ]],Труба!$F$40:$F$85,Таблица1[[#This Row],[название в \nАСТРА]])","v":0},{"$f":"SUMIFS(Труба!$Z$40:$Z$85,Труба!$B$40:$B$85,Таблица1[[#This Row],[не равно\n(для расчета)]],Труба!$C$40:$C$85,\"=500\",Труба!$D$40:$D$85,Таблица1[[#This Row],[толщина\nмм ]],Труба!$F$40:$F$85,Таблица1[[#This Row],[название в \nАСТРА]])","v":0},{"$f":"Таблица1[[#This Row],[Расход целых]]+Таблица1[[#This Row],[Расход деловых]]","v":0},{"$f":"Таблица1[[#This Row],[Чистый лом целых]]+Таблица1[[#This Row],[Чистый лом деловых]]-Таблица1[[#This Row],[Отход на порезку]]","v":0},{"$f":"Таблица1[[#This Row],[кол-во\n на план\n этого профиля]]*Таблица1[[#This Row],[толщина реза\nмм]]/1000/2*Таблица1[[#This Row],[масса 2м\n(коэф)]]","v":0},{"$f":"SUMIFS(Труба!$AA$40:$AA$85,Труба!$B$40:$B$85,Таблица1[[#This Row],[длина трубы\nмм]],Труба!$C$40:$C$85,\"=500\",Труба!$D$40:$D$85,Таблица1[[#This Row],[толщина\nмм ]],Труба!$F$40:$F$85,Таблица1[[#This Row],[название в \nАСТРА]])","v":0},{"$f":"SUMIFS(Труба!$AA$40:$AA$85,Труба!$B$40:$B$85,Таблица1[[#This Row],[не равно\n(для расчета)]],Труба!$C$40:$C$85,\"=500\",Труба!$D$40:$D$85,Таблица1[[#This Row],[толщина\nмм ]],Труба!$F$40:$F$85,Таблица1[[#This Row],[название в \nАСТРА]])","v":0}]
[null,null,null,{"$f":"SUMIFS(Труба!$I$9:$I$36,Труба!$F$9:$F$36,Таблица1[[#This Row],[название в \nАСТРА]])","v":0},"Прямоугольная","Труба","50х30х2","Труба 30х50 чм, 2.0 мм",2,4.8899999999999997,6000,"<>6000",5,{"$f":"SUMIFS(Труба!$G$40:$G$85,Труба!$B$40:$B$85,Таблица1[[#This Row],[длина трубы\nмм]],Труба!$C$40:$C$85,\"=500\",Труба!$D$40:$D$85,Таблица1[[#This Row],[толщина\nмм ]],Труба!$F$40:$F$85,Таблица1[[#This Row],[название в \nАСТРА]])","v":0},{"$f":"SUMIFS(Труба!$V$40:$V$85,Труба!$B$40:$B$85,Таблица1[[#This Row],[длина трубы\nмм]],Труба!$C$40:$C$85,\"=500\",Труба!$D$40:$D$85,Таблица1[[#This Row],[толщина\nмм ]],Труба!$F$40:$F$85,Таблица1[[#This Row],[название в \nАСТРА]])","v":0},{"$f":"SUMIFS(Труба!$V$40:$V$85,Труба!$B$40:$B$85,Таблица1[[#This Row],[не равно\n(для расчета)]],Труба!$C$40:$C$85,\"=500\",Труба!$D$40:$D$85,Таблица1[[#This Row],[толщина\nмм ]],Труба!$F$40:$F$85,Таблица1[[#This Row],[название в \nАСТРА]])","v":0},{"$f":"Таблица1[[#This Row],[Масса дет. целых]]+Таблица1[[#This Row],[Масса дет. Деловых]]","v":0},{"$f":"SUMIFS(Труба!$M$40:$M$85,Труба!$B$40:$B$85,Таблица1[[#This Row],[длина трубы\nмм]],Труба!$C$40:$C$85,\"=500\",Труба!$D$40:$D$85,Таблица1[[#This Row],[толщина\nмм ]],Труба!$F$40:$F$85,Таблица1[[#This Row],[название в \nАСТРА]])","v":0},{"$f":"SUMIFS(Труба!$M$40:$M$85,Труба!$B$40:$B$85,Таблица1[[#This Row],[не равно\n(для расчета)]],Труба!$C$40:$C$85,\"=500\",Труба!$D$40:$D$85,Таблица1[[#This Row],[толщина\nмм ]],Труба!$F$40:$F$85,Таблица1[[#This Row],[название в \nАСТРА]])","v":0},{"$f":"Таблица1[[#This Row],[Масса целых]]+Таблица1[[#This Row],[Масса деловых]]","v":0},{"$f":"SUMIFS(Труба!$P$40:$P$85,Труба!$B$40:$B$85,Таблица1[[#This Row],[длина трубы\nмм]],Труба!$C$40:$C$85,\"=500\",Труба!$D$40:$D$85,Таблица1[[#This Row],[толщина\nмм ]],Труба!$F$40:$F$85,Таблица1[[#This Row],[название в \nАСТРА]])","v":0},{"$f":"SUMIFS(Труба!$P$40:$P$85,Труба!$B$40:$B$85,Таблица1[[#This Row],[не равно\n(для расчета)]],Труба!$C$40:$C$85,\"=500\",Труба!$D$40:$D$85,Таблица1[[#This Row],[толщина\nмм ]],Труба!$F$40:$F$85,Таблица1[[#This Row],[название в \nАСТРА]])","v":0},{"$f":"Таблица1[[#This Row],[Дел. ост.  Целых]]+Таблица1[[#This Row],[Дел. ост. Деловых]]","v":0},{"$f":"SUMIFS(Труба!$Z$40:$Z$85,Труба!$B$40:$B$85,Таблица1[[#This Row],[длина трубы\nмм]],Труба!$C$40:$C$85,\"=500\",Труба!$D$40:$D$85,Таблица1[[#This Row],[толщина\nмм ]],Труба!$F$40:$F$85,Таблица1[[#This Row],[название в \nАСТРА]])","v":0},{"$f":"SUMIFS(Труба!$Z$40:$Z$85,Труба!$B$40:$B$85,Таблица1[[#This Row],[не равно\n(для расчета)]],Труба!$C$40:$C$85,\"=500\",Труба!$D$40:$D$85,Таблица1[[#This Row],[толщина\nмм ]],Труба!$F$40:$F$85,Таблица1[[#This Row],[название в \nАСТРА]])","v":0},{"$f":"Таблица1[[#This Row],[Расход целых]]+Таблица1[[#This Row],[Расход деловых]]","v":0},{"$f":"Таблица1[[#This Row],[Чистый лом целых]]+Таблица1[[#This Row],[Чистый лом деловых]]-Таблица1[[#This Row],[Отход на порезку]]","v":0},{"$f":"Таблица1[[#This Row],[кол-во\n на план\n этого профиля]]*Таблица1[[#This Row],[толщина реза\nмм]]/1000/2*Таблица1[[#This Row],[масса 2м\n(коэф)]]","v":0},{"$f":"SUMIFS(Труба!$AA$40:$AA$85,Труба!$B$40:$B$85,Таблица1[[#This Row],[длина трубы\nмм]],Труба!$C$40:$C$85,\"=500\",Труба!$D$40:$D$85,Таблица1[[#This Row],[толщина\nмм ]],Труба!$F$40:$F$85,Таблица1[[#This Row],[название в \nАСТРА]])","v":0},{"$f":"SUMIFS(Труба!$AA$40:$AA$85,Труба!$B$40:$B$85,Таблица1[[#This Row],[не равно\n(для расчета)]],Труба!$C$40:$C$85,\"=500\",Труба!$D$40:$D$85,Таблица1[[#This Row],[толщина\nмм ]],Труба!$F$40:$F$85,Таблица1[[#This Row],[название в \nАСТРА]])","v":0}]
[null,null,null,{"$f":"SUMIFS(Труба!$I$9:$I$36,Труба!$F$9:$F$36,Таблица1[[#This Row],[название в \nАСТРА]])","v":0},"Прямоугольная","Труба","40х20х1","Труба 40х20 чм, 1.0 мм",1,1.8839999999999999,6000,"<>6000",5,{"$f":"SUMIFS(Труба!$G$40:$G$85,Труба!$B$40:$B$85,Таблица1[[#This Row],[длина трубы\nмм]],Труба!$C$40:$C$85,\"=500\",Труба!$D$40:$D$85,Таблица1[[#This Row],[толщина\nмм ]],Труба!$F$40:$F$85,Таблица1[[#This Row],[название в \nАСТРА]])","v":0},{"$f":"SUMIFS(Труба!$V$40:$V$85,Труба!$B$40:$B$85,Таблица1[[#This Row],[длина трубы\nмм]],Труба!$C$40:$C$85,\"=500\",Труба!$D$40:$D$85,Таблица1[[#This Row],[толщина\nмм ]],Труба!$F$40:$F$85,Таблица1[[#This Row],[название в \nАСТРА]])","v":0},{"$f":"SUMIFS(Труба!$V$40:$V$85,Труба!$B$40:$B$85,Таблица1[[#This Row],[не равно\n(для расчета)]],Труба!$C$40:$C$85,\"=500\",Труба!$D$40:$D$85,Таблица1[[#This Row],[толщина\nмм ]],Труба!$F$40:$F$85,Таблица1[[#This Row],[название в \nАСТРА]])","v":0},{"$f":"Таблица1[[#This Row],[Масса дет. целых]]+Таблица1[[#This Row],[Масса дет. Деловых]]","v":0},{"$f":"SUMIFS(Труба!$M$40:$M$85,Труба!$B$40:$B$85,Таблица1[[#This Row],[длина трубы\nмм]],Труба!$C$40:$C$85,\"=500\",Труба!$D$40:$D$85,Таблица1[[#This Row],[толщина\nмм ]],Труба!$F$40:$F$85,Таблица1[[#This Row],[название в \nАСТРА]])","v":0},{"$f":"SUMIFS(Труба!$M$40:$M$85,Труба!$B$40:$B$85,Таблица1[[#This Row],[не равно\n(для расчета)]],Труба!$C$40:$C$85,\"=500\",Труба!$D$40:$D$85,Таблица1[[#This Row],[толщина\nмм ]],Труба!$F$40:$F$85,Таблица1[[#This Row],[название в \nАСТРА]])","v":0},{"$f":"Таблица1[[#This Row],[Масса целых]]+Таблица1[[#This Row],[Масса деловых]]","v":0},{"$f":"SUMIFS(Труба!$P$40:$P$85,Труба!$B$40:$B$85,Таблица1[[#This Row],[длина трубы\nмм]],Труба!$C$40:$C$85,\"=500\",Труба!$D$40:$D$85,Таблица1[[#This Row],[толщина\nмм ]],Труба!$F$40:$F$85,Таблица1[[#This Row],[название в \nАСТРА]])","v":0},{"$f":"SUMIFS(Труба!$P$40:$P$85,Труба!$B$40:$B$85,Таблица1[[#This Row],[не равно\n(для расчета)]],Труба!$C$40:$C$85,\"=500\",Труба!$D$40:$D$85,Таблица1[[#This Row],[толщина\nмм ]],Труба!$F$40:$F$85,Таблица1[[#This Row],[название в \nАСТРА]])","v":0},{"$f":"Таблица1[[#This Row],[Дел. ост.  Целых]]+Таблица1[[#This Row],[Дел. ост. Деловых]]","v":0},{"$f":"SUMIFS(Труба!$Z$40:$Z$85,Труба!$B$40:$B$85,Таблица1[[#This Row],[длина трубы\nмм]],Труба!$C$40:$C$85,\"=500\",Труба!$D$40:$D$85,Таблица1[[#This Row],[толщина\nмм ]],Труба!$F$40:$F$85,Таблица1[[#This Row],[название в \nАСТРА]])","v":0},{"$f":"SUMIFS(Труба!$Z$40:$Z$85,Труба!$B$40:$B$85,Таблица1[[#This Row],[не равно\n(для расчета)]],Труба!$C$40:$C$85,\"=500\",Труба!$D$40:$D$85,Таблица1[[#This Row],[толщина\nмм ]],Труба!$F$40:$F$85,Таблица1[[#This Row],[название в \nАСТРА]])","v":0},{"$f":"Таблица1[[#This Row],[Расход целых]]+Таблица1[[#This Row],[Расход деловых]]","v":0},{"$f":"Таблица1[[#This Row],[Чистый лом целых]]+Таблица1[[#This Row],[Чистый лом деловых]]-Таблица1[[#This Row],[Отход на порезку]]","v":0},{"$f":"Таблица1[[#This Row],[кол-во\n на план\n этого профиля]]*Таблица1[[#This Row],[толщина реза\nмм]]/1000/2*Таблица1[[#This Row],[масса 2м\n(коэф)]]","v":0},{"$f":"SUMIFS(Труба!$AA$40:$AA$85,Труба!$B$40:$B$85,Таблица1[[#This Row],[длина трубы\nмм]],Труба!$C$40:$C$85,\"=500\",Труба!$D$40:$D$85,Таблица1[[#This Row],[толщина\nмм ]],Труба!$F$40:$F$85,Таблица1[[#This Row],[название в \nАСТРА]])","v":0},{"$f":"SUMIFS(Труба!$AA$40:$AA$85,Труба!$B$40:$B$85,Таблица1[[#This Row],[не равно\n(для расчета)]],Труба!$C$40:$C$85,\"=500\",Труба!$D$40:$D$85,Таблица1[[#This Row],[толщина\nмм ]],Труба!$F$40:$F$85,Таблица1[[#This Row],[название в \nАСТРА]])","v":0}]
[null,null,null,{"$f":"SUMIFS(Труба!$I$9:$I$36,Труба!$F$9:$F$36,Таблица1[[#This Row],[название в \nАСТРА]])","v":0},"Прямоугольная","Труба","40х20х1,5","Труба 40х20 чм, 1.5 мм",1.5,2.88,6000,"<>6000",5,{"$f":"SUMIFS(Труба!$G$40:$G$85,Труба!$B$40:$B$85,Таблица1[[#This Row],[длина трубы\nмм]],Труба!$C$40:$C$85,\"=500\",Труба!$D$40:$D$85,Таблица1[[#This Row],[толщина\nмм ]],Труба!$F$40:$F$85,Таблица1[[#This Row],[название в \nАСТРА]])","v":0},{"$f":"SUMIFS(Труба!$V$40:$V$85,Труба!$B$40:$B$85,Таблица1[[#This Row],[длина трубы\nмм]],Труба!$C$40:$C$85,\"=500\",Труба!$D$40:$D$85,Таблица1[[#This Row],[толщина\nмм ]],Труба!$F$40:$F$85,Таблица1[[#This Row],[название в \nАСТРА]])","v":0},{"$f":"SUMIFS(Труба!$V$40:$V$85,Труба!$B$40:$B$85,Таблица1[[#This Row],[не равно\n(для расчета)]],Труба!$C$40:$C$85,\"=500\",Труба!$D$40:$D$85,Таблица1[[#This Row],[толщина\nмм ]],Труба!$F$40:$F$85,Таблица1[[#This Row],[название в \nАСТРА]])","v":0},{"$f":"Таблица1[[#This Row],[Масса дет. целых]]+Таблица1[[#This Row],[Масса дет. Деловых]]","v":0},{"$f":"SUMIFS(Труба!$M$40:$M$85,Труба!$B$40:$B$85,Таблица1[[#This Row],[длина трубы\nмм]],Труба!$C$40:$C$85,\"=500\",Труба!$D$40:$D$85,Таблица1[[#This Row],[толщина\nмм ]],Труба!$F$40:$F$85,Таблица1[[#This Row],[название в \nАСТРА]])","v":0},{"$f":"SUMIFS(Труба!$M$40:$M$85,Труба!$B$40:$B$85,Таблица1[[#This Row],[не равно\n(для расчета)]],Труба!$C$40:$C$85,\"=500\",Труба!$D$40:$D$85,Таблица1[[#This Row],[толщина\nмм ]],Труба!$F$40:$F$85,Таблица1[[#This Row],[название в \nАСТРА]])","v":0},{"$f":"Таблица1[[#This Row],[Масса целых]]+Таблица1[[#This Row],[Масса деловых]]","v":0},{"$f":"SUMIFS(Труба!$P$40:$P$85,Труба!$B$40:$B$85,Таблица1[[#This Row],[длина трубы\nмм]],Труба!$C$40:$C$85,\"=500\",Труба!$D$40:$D$85,Таблица1[[#This Row],[толщина\nмм ]],Труба!$F$40:$F$85,Таблица1[[#This Row],[название в \nАСТРА]])","v":0},{"$f":"SUMIFS(Труба!$P$40:$P$85,Труба!$B$40:$B$85,Таблица1[[#This Row],[не равно\n(для расчета)]],Труба!$C$40:$C$85,\"=500\",Труба!$D$40:$D$85,Таблица1[[#This Row],[толщина\nмм ]],Труба!$F$40:$F$85,Таблица1[[#This Row],[название в \nАСТРА]])","v":0},{"$f":"Таблица1[[#This Row],[Дел. ост.  Целых]]+Таблица1[[#This Row],[Дел. ост. Деловых]]","v":0},{"$f":"SUMIFS(Труба!$Z$40:$Z$85,Труба!$B$40:$B$85,Таблица1[[#This Row],[длина трубы\nмм]],Труба!$C$40:$C$85,\"=500\",Труба!$D$40:$D$85,Таблица1[[#This Row],[толщина\nмм ]],Труба!$F$40:$F$85,Таблица1[[#This Row],[название в \nАСТРА]])","v":0},{"$f":"SUMIFS(Труба!$Z$40:$Z$85,Труба!$B$40:$B$85,Таблица1[[#This Row],[не равно\n(для расчета)]],Труба!$C$40:$C$85,\"=500\",Труба!$D$40:$D$85,Таблица1[[#This Row],[толщина\nмм ]],Труба!$F$40:$F$85,Таблица1[[#This Row],[название в \nАСТРА]])","v":0},{"$f":"Таблица1[[#This Row],[Расход целых]]+Таблица1[[#This Row],[Расход деловых]]","v":0},{"$f":"Таблица1[[#This Row],[Чистый лом целых]]+Таблица1[[#This Row],[Чистый лом деловых]]-Таблица1[[#This Row],[Отход на порезку]]","v":0},{"$f":"Таблица1[[#This Row],[кол-во\n на план\n этого профиля]]*Таблица1[[#This Row],[толщина реза\nмм]]/1000/2*Таблица1[[#This Row],[масса 2м\n(коэф)]]","v":0},{"$f":"SUMIFS(Труба!$AA$40:$AA$85,Труба!$B$40:$B$85,Таблица1[[#This Row],[длина трубы\nмм]],Труба!$C$40:$C$85,\"=500\",Труба!$D$40:$D$85,Таблица1[[#This Row],[толщина\nмм ]],Труба!$F$40:$F$85,Таблица1[[#This Row],[название в \nАСТРА]])","v":0},{"$f":"SUMIFS(Труба!$AA$40:$AA$85,Труба!$B$40:$B$85,Таблица1[[#This Row],[не равно\n(для расчета)]],Труба!$C$40:$C$85,\"=500\",Труба!$D$40:$D$85,Таблица1[[#This Row],[толщина\nмм ]],Труба!$F$40:$F$85,Таблица1[[#This Row],[название в \nАСТРА]])","v":0}]
[null,null,null,{"$f":"SUMIFS(Труба!$I$9:$I$36,Труба!$F$9:$F$36,Таблица1[[#This Row],[название в \nАСТРА]])","v":0},"Прямоугольная","Труба","40х20х2","Труба 40х20 чм, 2.0 мм",2,3.4,6000,"<>6000",5,{"$f":"SUMIFS(Труба!$G$40:$G$85,Труба!$B$40:$B$85,Таблица1[[#This Row],[длина трубы\nмм]],Труба!$C$40:$C$85,\"=500\",Труба!$D$40:$D$85,Таблица1[[#This Row],[толщина\nмм ]],Труба!$F$40:$F$85,Таблица1[[#This Row],[название в \nАСТРА]])","v":0},{"$f":"SUMIFS(Труба!$V$40:$V$85,Труба!$B$40:$B$85,Таблица1[[#This Row],[длина трубы\nмм]],Труба!$C$40:$C$85,\"=500\",Труба!$D$40:$D$85,Таблица1[[#This Row],[толщина\nмм ]],Труба!$F$40:$F$85,Таблица1[[#This Row],[название в \nАСТРА]])","v":0},{"$f":"SUMIFS(Труба!$V$40:$V$85,Труба!$B$40:$B$85,Таблица1[[#This Row],[не равно\n(для расчета)]],Труба!$C$40:$C$85,\"=500\",Труба!$D$40:$D$85,Таблица1[[#This Row],[толщина\nмм ]],Труба!$F$40:$F$85,Таблица1[[#This Row],[название в \nАСТРА]])","v":0},{"$f":"Таблица1[[#This Row],[Масса дет. целых]]+Таблица1[[#This Row],[Масса дет. Деловых]]","v":0},{"$f":"SUMIFS(Труба!$M$40:$M$85,Труба!$B$40:$B$85,Таблица1[[#This Row],[длина трубы\nмм]],Труба!$C$40:$C$85,\"=500\",Труба!$D$40:$D$85,Таблица1[[#This Row],[толщина\nмм ]],Труба!$F$40:$F$85,Таблица1[[#This Row],[название в \nАСТРА]])","v":0},{"$f":"SUMIFS(Труба!$M$40:$M$85,Труба!$B$40:$B$85,Таблица1[[#This Row],[не равно\n(для расчета)]],Труба!$C$40:$C$85,\"=500\",Труба!$D$40:$D$85,Таблица1[[#This Row],[толщина\nмм ]],Труба!$F$40:$F$85,Таблица1[[#This Row],[название в \nАСТРА]])","v":0},{"$f":"Таблица1[[#This Row],[Масса целых]]+Таблица1[[#This Row],[Масса деловых]]","v":0},{"$f":"SUMIFS(Труба!$P$40:$P$85,Труба!$B$40:$B$85,Таблица1[[#This Row],[длина трубы\nмм]],Труба!$C$40:$C$85,\"=500\",Труба!$D$40:$D$85,Таблица1[[#This Row],[толщина\nмм ]],Труба!$F$40:$F$85,Таблица1[[#This Row],[название в \nАСТРА]])","v":0},{"$f":"SUMIFS(Труба!$P$40:$P$85,Труба!$B$40:$B$85,Таблица1[[#This Row],[не равно\n(для расчета)]],Труба!$C$40:$C$85,\"=500\",Труба!$D$40:$D$85,Таблица1[[#This Row],[толщина\nмм ]],Труба!$F$40:$F$85,Таблица1[[#This Row],[название в \nАСТРА]])","v":0},{"$f":"Таблица1[[#This Row],[Дел. ост.  Целых]]+Таблица1[[#This Row],[Дел. ост. Деловых]]","v":0},{"$f":"SUMIFS(Труба!$Z$40:$Z$85,Труба!$B$40:$B$85,Таблица1[[#This Row],[длина трубы\nмм]],Труба!$C$40:$C$85,\"=500\",Труба!$D$40:$D$85,Таблица1[[#This Row],[толщина\nмм ]],Труба!$F$40:$F$85,Таблица1[[#This Row],[название в \nАСТРА]])","v":0},{"$f":"SUMIFS(Труба!$Z$40:$Z$85,Труба!$B$40:$B$85,Таблица1[[#This Row],[не равно\n(для расчета)]],Труба!$C$40:$C$85,\"=500\",Труба!$D$40:$D$85,Таблица1[[#This Row],[толщина\nмм ]],Труба!$F$40:$F$85,Таблица1[[#This Row],[название в \nАСТРА]])","v":0},{"$f":"Таблица1[[#This Row],[Расход целых]]+Таблица1[[#This Row],[Расход деловых]]","v":0},{"$f":"Таблица1[[#This Row],[Чистый лом целых]]+Таблица1[[#This Row],[Чистый лом деловых]]-Таблица1[[#This Row],[Отход на порезку]]","v":0},{"$f":"Таблица1[[#This Row],[кол-во\n на план\n этого профиля]]*Таблица1[[#This Row],[толщина реза\nмм]]/1000/2*Таблица1[[#This Row],[масса 2м\n(коэф)]]","v":0},{"$f":"SUMIFS(Труба!$AA$40:$AA$85,Труба!$B$40:$B$85,Таблица1[[#This Row],[длина трубы\nмм]],Труба!$C$40:$C$85,\"=500\",Труба!$D$40:$D$85,Таблица1[[#This Row],[толщина\nмм ]],Труба!$F$40:$F$85,Таблица1[[#This Row],[название в \nАСТРА]])","v":0},{"$f":"SUMIFS(Труба!$AA$40:$AA$85,Труба!$B$40:$B$85,Таблица1[[#This Row],[не равно\n(для расчета)]],Труба!$C$40:$C$85,\"=500\",Труба!$D$40:$D$85,Таблица1[[#This Row],[толщина\nмм ]],Труба!$F$40:$F$85,Таблица1[[#This Row],[название в \nАСТРА]])","v":0}]
[null,null,null,{"$f":"SUMIFS(Труба!$I$9:$I$36,Труба!$F$9:$F$36,Таблица1[[#This Row],[название в \nАСТРА]])","v":0},"Прямоугольная","Труба","40х25х2","Труба 40х25 чм, 2.0 мм",2,4.08,6000,"<>6000",5,{"$f":"SUMIFS(Труба!$G$40:$G$85,Труба!$B$40:$B$85,Таблица1[[#This Row],[длина трубы\nмм]],Труба!$C$40:$C$85,\"=500\",Труба!$D$40:$D$85,Таблица1[[#This Row],[толщина\nмм ]],Труба!$F$40:$F$85,Таблица1[[#This Row],[название в \nАСТРА]])","v":0},{"$f":"SUMIFS(Труба!$V$40:$V$85,Труба!$B$40:$B$85,Таблица1[[#This Row],[длина трубы\nмм]],Труба!$C$40:$C$85,\"=500\",Труба!$D$40:$D$85,Таблица1[[#This Row],[толщина\nмм ]],Труба!$F$40:$F$85,Таблица1[[#This Row],[название в \nАСТРА]])","v":0},{"$f":"SUMIFS(Труба!$V$40:$V$85,Труба!$B$40:$B$85,Таблица1[[#This Row],[не равно\n(для расчета)]],Труба!$C$40:$C$85,\"=500\",Труба!$D$40:$D$85,Таблица1[[#This Row],[толщина\nмм ]],Труба!$F$40:$F$85,Таблица1[[#This Row],[название в \nАСТРА]])","v":0},{"$f":"Таблица1[[#This Row],[Масса дет. целых]]+Таблица1[[#This Row],[Масса дет. Деловых]]","v":0},{"$f":"SUMIFS(Труба!$M$40:$M$85,Труба!$B$40:$B$85,Таблица1[[#This Row],[длина трубы\nмм]],Труба!$C$40:$C$85,\"=500\",Труба!$D$40:$D$85,Таблица1[[#This Row],[толщина\nмм ]],Труба!$F$40:$F$85,Таблица1[[#This Row],[название в \nАСТРА]])","v":0},{"$f":"SUMIFS(Труба!$M$40:$M$85,Труба!$B$40:$B$85,Таблица1[[#This Row],[не равно\n(для расчета)]],Труба!$C$40:$C$85,\"=500\",Труба!$D$40:$D$85,Таблица1[[#This Row],[толщина\nмм ]],Труба!$F$40:$F$85,Таблица1[[#This Row],[название в \nАСТРА]])","v":0},{"$f":"Таблица1[[#This Row],[Масса целых]]+Таблица1[[#This Row],[Масса деловых]]","v":0},{"$f":"SUMIFS(Труба!$P$40:$P$85,Труба!$B$40:$B$85,Таблица1[[#This Row],[длина трубы\nмм]],Труба!$C$40:$C$85,\"=500\",Труба!$D$40:$D$85,Таблица1[[#This Row],[толщина\nмм ]],Труба!$F$40:$F$85,Таблица1[[#This Row],[название в \nАСТРА]])","v":0},{"$f":"SUMIFS(Труба!$P$40:$P$85,Труба!$B$40:$B$85,Таблица1[[#This Row],[не равно\n(для расчета)]],Труба!$C$40:$C$85,\"=500\",Труба!$D$40:$D$85,Таблица1[[#This Row],[толщина\nмм ]],Труба!$F$40:$F$85,Таблица1[[#This Row],[название в \nАСТРА]])","v":0},{"$f":"Таблица1[[#This Row],[Дел. ост.  Целых]]+Таблица1[[#This Row],[Дел. ост. Деловых]]","v":0},{"$f":"SUMIFS(Труба!$Z$40:$Z$85,Труба!$B$40:$B$85,Таблица1[[#This Row],[длина трубы\nмм]],Труба!$C$40:$C$85,\"=500\",Труба!$D$40:$D$85,Таблица1[[#This Row],[толщина\nмм ]],Труба!$F$40:$F$85,Таблица1[[#This Row],[название в \nАСТРА]])","v":0},{"$f":"SUMIFS(Труба!$Z$40:$Z$85,Труба!$B$40:$B$85,Таблица1[[#This Row],[не равно\n(для расчета)]],Труба!$C$40:$C$85,\"=500\",Труба!$D$40:$D$85,Таблица1[[#This Row],[толщина\nмм ]],Труба!$F$40:$F$85,Таблица1[[#This Row],[название в \nАСТРА]])","v":0},{"$f":"Таблица1[[#This Row],[Расход целых]]+Таблица1[[#This Row],[Расход деловых]]","v":0},{"$f":"Таблица1[[#This Row],[Чистый лом целых]]+Таблица1[[#This Row],[Чистый лом деловых]]-Таблица1[[#This Row],[Отход на порезку]]","v":0},{"$f":"Таблица1[[#This Row],[кол-во\n на план\n этого профиля]]*Таблица1[[#This Row],[толщина реза\nмм]]/1000/2*Таблица1[[#This Row],[масса 2м\n(коэф)]]","v":0},{"$f":"SUMIFS(Труба!$AA$40:$AA$85,Труба!$B$40:$B$85,Таблица1[[#This Row],[длина трубы\nмм]],Труба!$C$40:$C$85,\"=500\",Труба!$D$40:$D$85,Таблица1[[#This Row],[толщина\nмм ]],Труба!$F$40:$F$85,Таблица1[[#This Row],[название в \nАСТРА]])","v":0},{"$f":"SUMIFS(Труба!$AA$40:$AA$85,Труба!$B$40:$B$85,Таблица1[[#This Row],[не равно\n(для расчета)]],Труба!$C$40:$C$85,\"=500\",Труба!$D$40:$D$85,Таблица1[[#This Row],[толщина\nмм ]],Труба!$F$40:$F$85,Таблица1[[#This Row],[название в \nАСТРА]])","v":0}]